Creditor Name,Voucher Number,Payment Date,Goods Amount,CIPFA Subjective,CIPFA Sub group,Directorate,Section,
1st Clearflow Ltd,04010999,10/09/2010,550.00,Premises Related,Repair Maintenance and Alterations,Environment,Leisure,
3663 BFS Group Ltd,03991077,01/09/2010,517.40,Supplies and Services,Catering,Adult Social Care,Adult Social Care,
3663 BFS Group Ltd,04034959,22/09/2010,602.33,Supplies and Services,Catering,"Housing, Culture & Capital",Royal Pavilion & Museums,
3663 BFS Group Ltd,04065151,01/10/2010,536.76,Supplies and Services,Catering,Section 75 South Downs Health,Contrib to S31 Partnership,
64 Church Road Limited,0039301,03/09/2010,715.00,Premises Related,Rents Payable,"Housing, Culture & Capital",Housing Strategy,
64 Church Road Limited,0039302,03/09/2010,715.00,Premises Related,Rents Payable,"Housing, Culture & Capital",Housing Strategy,
64 Church Road Limited,0039888,29/09/2010,550.00,Premises Related,Rents Payable,"Housing, Culture & Capital",Housing Strategy,
67 Centre,03998782,15/09/2010,"4,000.00",Supplies and Services,Grants and Subscriptions,Chilren & Young People's Trust,Area Integrated Working,
abandofbrothers,04000378,08/09/2010,"4,750.00",Supplies and Services,Grants and Subscriptions,Chilren & Young People's Trust,Area Integrated Working,
Abbey Care Group Ltd-Saxon Court,CF01457398,17/09/2010,-71.15,Customer and Client Receipts,Fees and Charges,Section 75 Adult Social Care,Contrib to S31 Partnership,
Abbey Care Group Ltd-Saxon Court,CF01457398,17/09/2010,765.44,Third Party Payments,Other Establishments,Section 75 Adult Social Care,Contrib to S31 Partnership,
Abbey Care Group Ltd-Saxon Court,CF01457399,17/09/2010,-71.15,Customer and Client Receipts,Fees and Charges,Section 75 Adult Social Care,Contrib to S31 Partnership,
Abbey Care Group Ltd-Saxon Court,CF01457399,17/09/2010,765.44,Third Party Payments,Other Establishments,Section 75 Adult Social Care,Contrib to S31 Partnership,
Abbey Care Group Ltd-Saxon Court,CF01457400,17/09/2010,-71.15,Customer and Client Receipts,Fees and Charges,Section 75 Adult Social Care,Contrib to S31 Partnership,
Abbey Care Group Ltd-Saxon Court,CF01457400,17/09/2010,765.44,Third Party Payments,Other Establishments,Section 75 Adult Social Care,Contrib to S31 Partnership,
Abbey Care Group Ltd-Saxon Court,CF01457401,17/09/2010,-71.15,Customer and Client Receipts,Fees and Charges,Section 75 Adult Social Care,Contrib to S31 Partnership,
Abbey Care Group Ltd-Saxon Court,CF01457401,17/09/2010,765.44,Third Party Payments,Other Establishments,Section 75 Adult Social Care,Contrib to S31 Partnership,
Abbey Care Group Ltd-Saxon Court,CF01457402,17/09/2010,-71.15,Customer and Client Receipts,Fees and Charges,Section 75 Adult Social Care,Contrib to S31 Partnership,
Abbey Care Group Ltd-Saxon Court,CF01457402,17/09/2010,808.71,Third Party Payments,Other Establishments,Section 75 Adult Social Care,Contrib to S31 Partnership,
Abbey Care Group Ltd-Saxon Court,CF01457403,17/09/2010,-71.15,Customer and Client Receipts,Fees and Charges,Section 75 Adult Social Care,Contrib to S31 Partnership,
Abbey Care Group Ltd-Saxon Court,CF01457403,17/09/2010,808.71,Third Party Payments,Other Establishments,Section 75 Adult Social Care,Contrib to S31 Partnership,
Abbey Care Group Ltd-Saxon Court,CF01457404,17/09/2010,-71.15,Customer and Client Receipts,Fees and Charges,Section 75 Adult Social Care,Contrib to S31 Partnership,
Abbey Care Group Ltd-Saxon Court,CF01457404,17/09/2010,808.71,Third Party Payments,Other Establishments,Section 75 Adult Social Care,Contrib to S31 Partnership,
Abbey Care Group Ltd-Saxon Court,CF01457405,17/09/2010,-71.15,Customer and Client Receipts,Fees and Charges,Section 75 Adult Social Care,Contrib to S31 Partnership,
Abbey Care Group Ltd-Saxon Court,CF01457405,17/09/2010,808.71,Third Party Payments,Other Establishments,Section 75 Adult Social Care,Contrib to S31 Partnership,
Abi House,CF01456114,15/09/2010,-96.10,Customer and Client Receipts,Fees and Charges,Adult Social Care,Adult Social Care,
Abi House,CF01456114,15/09/2010,"1,519.30",Third Party Payments,Other Establishments,Adult Social Care,Adult Social Care,
Abi House,CF01456115,15/09/2010,-96.10,Customer and Client Receipts,Fees and Charges,Adult Social Care,Adult Social Care,
Abi House,CF01456115,15/09/2010,"1,519.30",Third Party Payments,Other Establishments,Adult Social Care,Adult Social Care,
Abi House,CF01456116,15/09/2010,-96.10,Customer and Client Receipts,Fees and Charges,Adult Social Care,Adult Social Care,
Abi House,CF01456116,15/09/2010,"1,519.30",Third Party Payments,Other Establishments,Adult Social Care,Adult Social Care,
Abi House,CF01456117,15/09/2010,-96.10,Customer and Client Receipts,Fees and Charges,Adult Social Care,Adult Social Care,
Abi House,CF01456117,15/09/2010,"1,519.30",Third Party Payments,Other Establishments,Adult Social Care,Adult Social Care,
ABIR Architects Ltd,04052562,29/09/2010,"2,389.91",New Construction and Conversion,,Environment,Leisure,
Accurate Roofing Ltd,04045825,24/09/2010,"26,297.71",New Construction and Conversion,,Chilren & Young People's Trust,Director Childrens Services,
Acorn Web Offset Ltd,03991653,17/09/2010,"6,604.20",Supplies and Services,Printing Stationery & General Office Expenses,Strategy & Governance,Communications,
ACPH Ltd T/a Hopscotch Nursery,04017329,15/09/2010,896.00,Third Party Payments,Other Agencies,Chilren & Young People's Trust,Learning Schools & Skills,
ACPH Ltd T/a Hopscotch Nursery,04029731,17/09/2010,832.00,Third Party Payments,Other Agencies,Chilren & Young People's Trust,Learning Schools & Skills,
ACPH Ltd T/a Hopscotch Nursery,04029744,17/09/2010,896.00,Third Party Payments,Other Agencies,Chilren & Young People's Trust,Learning Schools & Skills,
ACPH Ltd T/a Hopscotch Nursery,04029760,17/09/2010,616.00,Third Party Payments,Other Agencies,Chilren & Young People's Trust,Learning Schools & Skills,
ACPH Ltd T/a Hopscotch Nursery,04043021,24/09/2010,584.10,Supplies and Services,Services,Chilren & Young People's Trust,Learning Schools & Skills,
ACPH Ltd T/a Hopscotch Nursery,UL01444342,01/09/2010,"2,775.00",Supplies and Services,Grants and Subscriptions,Chilren & Young People's Trust,Area Integrated Working,
ACPH Ltd T/a Hopscotch Nursery,UL01444343,01/09/2010,"2,922.60",Supplies and Services,Grants and Subscriptions,Chilren & Young People's Trust,Area Integrated Working,
ACPH Ltd T/a Hopscotch Nursery,UL01444344,01/09/2010,"5,692.95",Supplies and Services,Grants and Subscriptions,Chilren & Young People's Trust,Area Integrated Working,
ACPH Ltd T/a Hopscotch Nursery,UL01473443,01/10/2010,"2,775.00",Supplies and Services,Grants and Subscriptions,Chilren & Young People's Trust,Area Integrated Working,
ACPH Ltd T/a Hopscotch Nursery,UL01473444,01/10/2010,"2,838.00",Supplies and Services,Grants and Subscriptions,Chilren & Young People's Trust,Area Integrated Working,
ACPH Ltd T/a Hopscotch Nursery,UL01473445,01/10/2010,"5,444.00",Supplies and Services,Grants and Subscriptions,Chilren & Young People's Trust,Area Integrated Working,
Payment to Individual,CF01458803,17/09/2010,979.20,Third Party Payments,Other Establishments,Section 75 Adult Social Care,Contrib to S31 Partnership,
Payment to Individual,CF01458804,17/09/2010,979.20,Third Party Payments,Other Establishments,Section 75 Adult Social Care,Contrib to S31 Partnership,
Payment to Individual,CF01458805,17/09/2010,979.20,Third Party Payments,Other Establishments,Section 75 Adult Social Care,Contrib to S31 Partnership,
Payment to Individual,CF01458806,17/09/2010,979.20,Third Party Payments,Other Establishments,Section 75 Adult Social Care,Contrib to S31 Partnership,
Payment to Individual,CF01458811,17/09/2010,556.80,Third Party Payments,Other Establishments,Section 75 Adult Social Care,Contrib to S31 Partnership,
Payment to Individual,CF01458812,17/09/2010,556.80,Third Party Payments,Other Establishments,Section 75 Adult Social Care,Contrib to S31 Partnership,
Payment to Individual,CF01458813,17/09/2010,556.80,Third Party Payments,Other Establishments,Section 75 Adult Social Care,Contrib to S31 Partnership,
Payment to Individual,CF01458814,17/09/2010,556.80,Third Party Payments,Other Establishments,Section 75 Adult Social Care,Contrib to S31 Partnership,
Adapt Mobility,04008422,09/09/2010,"4,198.00",New Construction and Conversion,,"Housing, Culture & Capital",Housing Management,
Oak House RH,CF01444613,01/09/2010,-71.15,Customer and Client Receipts,Fees and Charges,Section 75 Adult Social Care,Contrib to S31 Partnership,
Oak House RH,CF01444613,01/09/2010,628.22,Third Party Payments,Other Establishments,Section 75 Adult Social Care,Contrib to S31 Partnership,
Oak House RH,CF01444614,01/09/2010,-71.15,Customer and Client Receipts,Fees and Charges,Section 75 Adult Social Care,Contrib to S31 Partnership,
Oak House RH,CF01444614,01/09/2010,628.22,Third Party Payments,Other Establishments,Section 75 Adult Social Care,Contrib to S31 Partnership,
Oak House RH,CF01444615,01/09/2010,-71.15,Customer and Client Receipts,Fees and Charges,Section 75 Adult Social Care,Contrib to S31 Partnership,
Oak House RH,CF01444615,01/09/2010,628.22,Third Party Payments,Other Establishments,Section 75 Adult Social Care,Contrib to S31 Partnership,
Oak House RH,CF01444616,01/09/2010,-71.15,Customer and Client Receipts,Fees and Charges,Section 75 Adult Social Care,Contrib to S31 Partnership,
Oak House RH,CF01444616,01/09/2010,628.22,Third Party Payments,Other Establishments,Section 75 Adult Social Care,Contrib to S31 Partnership,
Oak House RH,CF01444617,01/09/2010,-71.15,Customer and Client Receipts,Fees and Charges,Section 75 Adult Social Care,Contrib to S31 Partnership,
Oak House RH,CF01444617,01/09/2010,628.22,Third Party Payments,Other Establishments,Section 75 Adult Social Care,Contrib to S31 Partnership,
Oak House RH,CF01444618,01/09/2010,-71.15,Customer and Client Receipts,Fees and Charges,Section 75 Adult Social Care,Contrib to S31 Partnership,
Oak House RH,CF01444618,01/09/2010,628.22,Third Party Payments,Other Establishments,Section 75 Adult Social Care,Contrib to S31 Partnership,
Oak House RH,CF01444619,01/09/2010,-71.15,Customer and Client Receipts,Fees and Charges,Section 75 Adult Social Care,Contrib to S31 Partnership,
Oak House RH,CF01444619,01/09/2010,628.22,Third Party Payments,Other Establishments,Section 75 Adult Social Care,Contrib to S31 Partnership,
Oak House RH,CF01444620,01/09/2010,-71.15,Customer and Client Receipts,Fees and Charges,Section 75 Adult Social Care,Contrib to S31 Partnership,
Oak House RH,CF01444620,01/09/2010,628.22,Third Party Payments,Other Establishments,Section 75 Adult Social Care,Contrib to S31 Partnership,
Oak House RH,CF01444621,01/09/2010,-71.15,Customer and Client Receipts,Fees and Charges,Section 75 Adult Social Care,Contrib to S31 Partnership,
Oak House RH,CF01444621,01/09/2010,720.41,Third Party Payments,Other Establishments,Section 75 Adult Social Care,Contrib to S31 Partnership,
Oak House RH,CF01444622,01/09/2010,-71.15,Customer and Client Receipts,Fees and Charges,Section 75 Adult Social Care,Contrib to S31 Partnership,
Oak House RH,CF01444622,01/09/2010,720.41,Third Party Payments,Other Establishments,Section 75 Adult Social Care,Contrib to S31 Partnership,
Oak House RH,CF01444623,01/09/2010,-71.15,Customer and Client Receipts,Fees and Charges,Section 75 Adult Social Care,Contrib to S31 Partnership,
Oak House RH,CF01444623,01/09/2010,720.41,Third Party Payments,Other Establishments,Section 75 Adult Social Care,Contrib to S31 Partnership,
Oak House RH,CF01444624,01/09/2010,-71.15,Customer and Client Receipts,Fees and Charges,Section 75 Adult Social Care,Contrib to S31 Partnership,
Oak House RH,CF01444624,01/09/2010,720.41,Third Party Payments,Other Establishments,Section 75 Adult Social Care,Contrib to S31 Partnership,
Oak House RH,CF01444625,01/09/2010,-71.15,Customer and Client Receipts,Fees and Charges,Section 75 Adult Social Care,Contrib to S31 Partnership,
Oak House RH,CF01444625,01/09/2010,720.41,Third Party Payments,Other Establishments,Section 75 Adult Social Care,Contrib to S31 Partnership,
Oak House RH,CF01444626,01/09/2010,-71.15,Customer and Client Receipts,Fees and Charges,Section 75 Adult Social Care,Contrib to S31 Partnership,
Oak House RH,CF01444626,01/09/2010,720.41,Third Party Payments,Other Establishments,Section 75 Adult Social Care,Contrib to S31 Partnership,
Oak House RH,CF01444627,01/09/2010,-71.15,Customer and Client Receipts,Fees and Charges,Section 75 Adult Social Care,Contrib to S31 Partnership,
Oak House RH,CF01444627,01/09/2010,720.41,Third Party Payments,Other Establishments,Section 75 Adult Social Care,Contrib to S31 Partnership,
Oak House RH,CF01444628,01/09/2010,-71.15,Customer and Client Receipts,Fees and Charges,Section 75 Adult Social Care,Contrib to S31 Partnership,
Oak House RH,CF01444628,01/09/2010,720.41,Third Party Payments,Other Establishments,Section 75 Adult Social Care,Contrib to S31 Partnership,
Oak House RH,CF01444637,01/09/2010,-71.15,Customer and Client Receipts,Fees and Charges,Section 75 Adult Social Care,Contrib to S31 Partnership,
Oak House RH,CF01444637,01/09/2010,626.36,Third Party Payments,Other Establishments,Section 75 Adult Social Care,Contrib to S31 Partnership,
Oak House RH,CF01444638,01/09/2010,-71.15,Customer and Client Receipts,Fees and Charges,Section 75 Adult Social Care,Contrib to S31 Partnership,
Oak House RH,CF01444638,01/09/2010,626.36,Third Party Payments,Other Establishments,Section 75 Adult Social Care,Contrib to S31 Partnership,
Oak House RH,CF01444639,01/09/2010,-71.15,Customer and Client Receipts,Fees and Charges,Section 75 Adult Social Care,Contrib to S31 Partnership,
Oak House RH,CF01444639,01/09/2010,626.36,Third Party Payments,Other Establishments,Section 75 Adult Social Care,Contrib to S31 Partnership,
Oak House RH,CF01444640,01/09/2010,-71.15,Customer and Client Receipts,Fees and Charges,Section 75 Adult Social Care,Contrib to S31 Partnership,
Oak House RH,CF01444640,01/09/2010,626.36,Third Party Payments,Other Establishments,Section 75 Adult Social Care,Contrib to S31 Partnership,
Oak House RH,CF01444641,01/09/2010,-71.15,Customer and Client Receipts,Fees and Charges,Section 75 Adult Social Care,Contrib to S31 Partnership,
Oak House RH,CF01444641,01/09/2010,626.36,Third Party Payments,Other Establishments,Section 75 Adult Social Care,Contrib to S31 Partnership,
Oak House RH,CF01444642,01/09/2010,-71.15,Customer and Client Receipts,Fees and Charges,Section 75 Adult Social Care,Contrib to S31 Partnership,
Oak House RH,CF01444642,01/09/2010,626.36,Third Party Payments,Other Establishments,Section 75 Adult Social Care,Contrib to S31 Partnership,
Oak House RH,CF01444643,01/09/2010,-71.15,Customer and Client Receipts,Fees and Charges,Section 75 Adult Social Care,Contrib to S31 Partnership,
Oak House RH,CF01444643,01/09/2010,626.36,Third Party Payments,Other Establishments,Section 75 Adult Social Care,Contrib to S31 Partnership,
Oak House RH,CF01444644,01/09/2010,-71.15,Customer and Client Receipts,Fees and Charges,Section 75 Adult Social Care,Contrib to S31 Partnership,
Oak House RH,CF01444644,01/09/2010,626.36,Third Party Payments,Other Establishments,Section 75 Adult Social Care,Contrib to S31 Partnership,
Oak House RH,CF01455253,15/09/2010,-71.15,Customer and Client Receipts,Fees and Charges,Section 75 Adult Social Care,Contrib to S31 Partnership,
Oak House RH,CF01455253,15/09/2010,628.22,Third Party Payments,Other Establishments,Section 75 Adult Social Care,Contrib to S31 Partnership,
Oak House RH,CF01455254,15/09/2010,-71.15,Customer and Client Receipts,Fees and Charges,Section 75 Adult Social Care,Contrib to S31 Partnership,
Oak House RH,CF01455254,15/09/2010,628.22,Third Party Payments,Other Establishments,Section 75 Adult Social Care,Contrib to S31 Partnership,
Oak House RH,CF01455255,15/09/2010,-71.15,Customer and Client Receipts,Fees and Charges,Section 75 Adult Social Care,Contrib to S31 Partnership,
Oak House RH,CF01455255,15/09/2010,628.22,Third Party Payments,Other Establishments,Section 75 Adult Social Care,Contrib to S31 Partnership,
Oak House RH,CF01455256,15/09/2010,-71.15,Customer and Client Receipts,Fees and Charges,Section 75 Adult Social Care,Contrib to S31 Partnership,
Oak House RH,CF01455256,15/09/2010,628.22,Third Party Payments,Other Establishments,Section 75 Adult Social Care,Contrib to S31 Partnership,
Oak House RH,CF01455257,15/09/2010,-71.15,Customer and Client Receipts,Fees and Charges,Section 75 Adult Social Care,Contrib to S31 Partnership,
Oak House RH,CF01455257,15/09/2010,720.41,Third Party Payments,Other Establishments,Section 75 Adult Social Care,Contrib to S31 Partnership,
Oak House RH,CF01455258,15/09/2010,-71.15,Customer and Client Receipts,Fees and Charges,Section 75 Adult Social Care,Contrib to S31 Partnership,
Oak House RH,CF01455258,15/09/2010,720.41,Third Party Payments,Other Establishments,Section 75 Adult Social Care,Contrib to S31 Partnership,
Oak House RH,CF01455259,15/09/2010,-71.15,Customer and Client Receipts,Fees and Charges,Section 75 Adult Social Care,Contrib to S31 Partnership,
Oak House RH,CF01455259,15/09/2010,720.41,Third Party Payments,Other Establishments,Section 75 Adult Social Care,Contrib to S31 Partnership,
Oak House RH,CF01455260,15/09/2010,-71.15,Customer and Client Receipts,Fees and Charges,Section 75 Adult Social Care,Contrib to S31 Partnership,
Oak House RH,CF01455260,15/09/2010,720.41,Third Party Payments,Other Establishments,Section 75 Adult Social Care,Contrib to S31 Partnership,
Oak House RH,CF01455261,15/09/2010,-71.15,Customer and Client Receipts,Fees and Charges,Section 75 Adult Social Care,Contrib to S31 Partnership,
Oak House RH,CF01455261,15/09/2010,720.41,Third Party Payments,Other Establishments,Section 75 Adult Social Care,Contrib to S31 Partnership,
Oak House RH,CF01455262,15/09/2010,-71.15,Customer and Client Receipts,Fees and Charges,Section 75 Adult Social Care,Contrib to S31 Partnership,
Oak House RH,CF01455262,15/09/2010,720.41,Third Party Payments,Other Establishments,Section 75 Adult Social Care,Contrib to S31 Partnership,
Oak House RH,CF01455267,15/09/2010,-71.15,Customer and Client Receipts,Fees and Charges,Section 75 Adult Social Care,Contrib to S31 Partnership,
Oak House RH,CF01455267,15/09/2010,626.36,Third Party Payments,Other Establishments,Section 75 Adult Social Care,Contrib to S31 Partnership,
Oak House RH,CF01455268,15/09/2010,-71.15,Customer and Client Receipts,Fees and Charges,Section 75 Adult Social Care,Contrib to S31 Partnership,
Oak House RH,CF01455268,15/09/2010,626.36,Third Party Payments,Other Establishments,Section 75 Adult Social Care,Contrib to S31 Partnership,
Oak House RH,CF01455269,15/09/2010,-71.15,Customer and Client Receipts,Fees and Charges,Section 75 Adult Social Care,Contrib to S31 Partnership,
Oak House RH,CF01455269,15/09/2010,626.36,Third Party Payments,Other Establishments,Section 75 Adult Social Care,Contrib to S31 Partnership,
Oak House RH,CF01455270,15/09/2010,-71.15,Customer and Client Receipts,Fees and Charges,Section 75 Adult Social Care,Contrib to S31 Partnership,
Oak House RH,CF01455270,15/09/2010,626.36,Third Party Payments,Other Establishments,Section 75 Adult Social Care,Contrib to S31 Partnership,
Oak House RH,CF01455271,15/09/2010,-71.15,Customer and Client Receipts,Fees and Charges,Section 75 Adult Social Care,Contrib to S31 Partnership,
Oak House RH,CF01455271,15/09/2010,626.36,Third Party Payments,Other Establishments,Section 75 Adult Social Care,Contrib to S31 Partnership,
Oak House RH,CF01455272,15/09/2010,-71.15,Customer and Client Receipts,Fees and Charges,Section 75 Adult Social Care,Contrib to S31 Partnership,
Oak House RH,CF01455272,15/09/2010,626.36,Third Party Payments,Other Establishments,Section 75 Adult Social Care,Contrib to S31 Partnership,
Oak House RH,CF01471910,29/09/2010,-71.15,Customer and Client Receipts,Fees and Charges,Section 75 Adult Social Care,Contrib to S31 Partnership,
Oak House RH,CF01471910,29/09/2010,628.22,Third Party Payments,Other Establishments,Section 75 Adult Social Care,Contrib to S31 Partnership,
Oak House RH,CF01471911,29/09/2010,-71.15,Customer and Client Receipts,Fees and Charges,Section 75 Adult Social Care,Contrib to S31 Partnership,
Oak House RH,CF01471911,29/09/2010,628.22,Third Party Payments,Other Establishments,Section 75 Adult Social Care,Contrib to S31 Partnership,
Oak House RH,CF01471912,29/09/2010,-71.15,Customer and Client Receipts,Fees and Charges,Section 75 Adult Social Care,Contrib to S31 Partnership,
Oak House RH,CF01471912,29/09/2010,628.22,Third Party Payments,Other Establishments,Section 75 Adult Social Care,Contrib to S31 Partnership,
Oak House RH,CF01471913,29/09/2010,-71.15,Customer and Client Receipts,Fees and Charges,Section 75 Adult Social Care,Contrib to S31 Partnership,
Oak House RH,CF01471913,29/09/2010,628.22,Third Party Payments,Other Establishments,Section 75 Adult Social Care,Contrib to S31 Partnership,
Oak House RH,CF01471914,29/09/2010,-71.15,Customer and Client Receipts,Fees and Charges,Section 75 Adult Social Care,Contrib to S31 Partnership,
Oak House RH,CF01471914,29/09/2010,720.41,Third Party Payments,Other Establishments,Section 75 Adult Social Care,Contrib to S31 Partnership,
Oak House RH,CF01471915,29/09/2010,-71.15,Customer and Client Receipts,Fees and Charges,Section 75 Adult Social Care,Contrib to S31 Partnership,
Oak House RH,CF01471915,29/09/2010,720.41,Third Party Payments,Other Establishments,Section 75 Adult Social Care,Contrib to S31 Partnership,
Oak House RH,CF01471916,29/09/2010,-71.15,Customer and Client Receipts,Fees and Charges,Section 75 Adult Social Care,Contrib to S31 Partnership,
Oak House RH,CF01471916,29/09/2010,720.41,Third Party Payments,Other Establishments,Section 75 Adult Social Care,Contrib to S31 Partnership,
Oak House RH,CF01471917,29/09/2010,-71.15,Customer and Client Receipts,Fees and Charges,Section 75 Adult Social Care,Contrib to S31 Partnership,
Oak House RH,CF01471917,29/09/2010,720.41,Third Party Payments,Other Establishments,Section 75 Adult Social Care,Contrib to S31 Partnership,
Oak House RH,CF01471922,29/09/2010,-71.15,Customer and Client Receipts,Fees and Charges,Section 75 Adult Social Care,Contrib to S31 Partnership,
Oak House RH,CF01471922,29/09/2010,626.36,Third Party Payments,Other Establishments,Section 75 Adult Social Care,Contrib to S31 Partnership,
Oak House RH,CF01471923,29/09/2010,-71.15,Customer and Client Receipts,Fees and Charges,Section 75 Adult Social Care,Contrib to S31 Partnership,
Oak House RH,CF01471923,29/09/2010,626.36,Third Party Payments,Other Establishments,Section 75 Adult Social Care,Contrib to S31 Partnership,
Oak House RH,CF01471924,29/09/2010,-71.15,Customer and Client Receipts,Fees and Charges,Section 75 Adult Social Care,Contrib to S31 Partnership,
Oak House RH,CF01471924,29/09/2010,626.36,Third Party Payments,Other Establishments,Section 75 Adult Social Care,Contrib to S31 Partnership,
Oak House RH,CF01471925,29/09/2010,-71.15,Customer and Client Receipts,Fees and Charges,Section 75 Adult Social Care,Contrib to S31 Partnership,
Oak House RH,CF01471925,29/09/2010,626.36,Third Party Payments,Other Establishments,Section 75 Adult Social Care,Contrib to S31 Partnership,
Addressing & Mailing Solutions Ltd,03971136,08/09/2010,"4,000.00",Supplies and Services,Equipment Furniture and Materials,Strategy & Governance,Communications,
Adelaide Nursing Home,CF01465373,22/09/2010,-125.55,Customer and Client Receipts,Fees and Charges,Adult Social Care,Adult Social Care,
Adelaide Nursing Home,CF01465373,22/09/2010,644.40,Third Party Payments,Other Establishments,Adult Social Care,Adult Social Care,
Adelaide Nursing Home,CF01465374,22/09/2010,-125.55,Customer and Client Receipts,Fees and Charges,Adult Social Care,Adult Social Care,
Adelaide Nursing Home,CF01465374,22/09/2010,644.40,Third Party Payments,Other Establishments,Adult Social Care,Adult Social Care,
Adelaide Nursing Home,CF01465375,22/09/2010,-125.55,Customer and Client Receipts,Fees and Charges,Adult Social Care,Adult Social Care,
Adelaide Nursing Home,CF01465375,22/09/2010,644.40,Third Party Payments,Other Establishments,Adult Social Care,Adult Social Care,
Adelaide Nursing Home,CF01465376,22/09/2010,-125.55,Customer and Client Receipts,Fees and Charges,Adult Social Care,Adult Social Care,
Adelaide Nursing Home,CF01465376,22/09/2010,644.40,Third Party Payments,Other Establishments,Adult Social Care,Adult Social Care,
Adelaide Nursing Home,CF01465377,22/09/2010,546.30,Third Party Payments,Other Establishments,Adult Social Care,Adult Social Care,
Adelaide Nursing Home,CF01465378,22/09/2010,546.30,Third Party Payments,Other Establishments,Adult Social Care,Adult Social Care,
Adelaide Nursing Home,CF01465379,22/09/2010,546.30,Third Party Payments,Other Establishments,Adult Social Care,Adult Social Care,
Adelaide Nursing Home,CF01465380,22/09/2010,546.30,Third Party Payments,Other Establishments,Adult Social Care,Adult Social Care,
Adelaide Nursing Home,CF01465381,22/09/2010,546.30,Third Party Payments,Other Establishments,Adult Social Care,Adult Social Care,
Adelaide Nursing Home,CF01465382,22/09/2010,546.30,Third Party Payments,Other Establishments,Adult Social Care,Adult Social Care,
Adelaide Nursing Home,CF01465383,22/09/2010,546.30,Third Party Payments,Other Establishments,Adult Social Care,Adult Social Care,
Adelaide Nursing Home,CF01465384,22/09/2010,546.30,Third Party Payments,Other Establishments,Adult Social Care,Adult Social Care,
Adelaide Nursing Home,CF01465393,22/09/2010,539.40,Third Party Payments,Other Establishments,Adult Social Care,Adult Social Care,
Adelaide Nursing Home,CF01465394,22/09/2010,539.40,Third Party Payments,Other Establishments,Adult Social Care,Adult Social Care,
Adelaide Nursing Home,CF01465395,22/09/2010,539.40,Third Party Payments,Other Establishments,Adult Social Care,Adult Social Care,
Adelaide Nursing Home,CF01465396,22/09/2010,539.40,Third Party Payments,Other Establishments,Adult Social Care,Adult Social Care,
Adelaide Nursing Home,CF01465401,22/09/2010,551.30,Third Party Payments,Other Establishments,Adult Social Care,Adult Social Care,
Adelaide Nursing Home,CF01465402,22/09/2010,551.30,Third Party Payments,Other Establishments,Adult Social Care,Adult Social Care,
Adelaide Nursing Home,CF01465403,22/09/2010,551.30,Third Party Payments,Other Establishments,Adult Social Care,Adult Social Care,
Adelaide Nursing Home,CF01465404,22/09/2010,551.30,Third Party Payments,Other Establishments,Adult Social Care,Adult Social Care,
Adelphi Court Services Limited,0039973,29/09/2010,"9,603.00",Premises Related,Rents Payable,"Housing, Culture & Capital",Housing Strategy,
ADT Fire & Security Plc,03986312,01/09/2010,"2,486.20",Premises Related,Repair Maintenance and Alterations,Finance & Resources,Property & Design,
ADT Fire & Security Plc,03986464,01/09/2010,671.41,Premises Related,Repair Maintenance and Alterations,Finance & Resources,Property & Design,
ADT Fire & Security Plc,03986590,01/09/2010,671.41,Premises Related,Repair Maintenance and Alterations,Finance & Resources,Property & Design,
ADT Fire & Security Plc,04017772,15/09/2010,727.00,Premises Related,Repair Maintenance and Alterations,Finance & Resources,Property & Design,
ADT Fire & Security Plc,04048291,24/09/2010,886.27,Premises Related,Repair Maintenance and Alterations,Environment,Sustainable Transport&Planning,
Advanced Connections Ltd,03981090,10/09/2010,"2,069.00",Plant Machinery and Equipment,,Chilren & Young People's Trust,Director Childrens Services,
Advanced Connections Ltd,03981126,10/09/2010,760.00,Plant Machinery and Equipment,,Chilren & Young People's Trust,Director Childrens Services,
Advanced Connections Ltd,04010766,17/09/2010,760.00,Plant Machinery and Equipment,,Chilren & Young People's Trust,Director Childrens Services,
Advanced Connections Ltd,04032773,01/10/2010,"3,597.00",Plant Machinery and Equipment,,Chilren & Young People's Trust,Director Childrens Services,
Advanced Connections Ltd,04042653,01/10/2010,"7,557.00",Plant Machinery and Equipment,,Chilren & Young People's Trust,Director Childrens Services,
Adventure Unlimited,03990858,01/09/2010,816.70,Supplies and Services,Miscellaneous Expenses,"Housing, Culture & Capital",Culture & Economy,
Adventure Unlimited,04023999,15/09/2010,653.36,Supplies and Services,Miscellaneous Expenses,"Housing, Culture & Capital",Culture & Economy,
Adventure Unlimited,04057130,29/09/2010,"2,500.00",Supplies and Services,Grants and Subscriptions,Strategy & Governance,Communities & Equality,
Beachside Rest Home,CF01463120,22/09/2010,575.00,Third Party Payments,Other Establishments,Section 75 Sussex Partnership,Contrib to S31 Partnership,
Beachside Rest Home,CF01463121,22/09/2010,575.00,Third Party Payments,Other Establishments,Section 75 Sussex Partnership,Contrib to S31 Partnership,
Beachside Rest Home,CF01463122,22/09/2010,575.00,Third Party Payments,Other Establishments,Section 75 Sussex Partnership,Contrib to S31 Partnership,
Beachside Rest Home,CF01463123,22/09/2010,575.00,Third Party Payments,Other Establishments,Section 75 Sussex Partnership,Contrib to S31 Partnership,
A & F Pilbeam Ltd,04008493,10/09/2010,"4,877.50",New Construction and Conversion,,"Housing, Culture & Capital",Housing Management,
A & F Pilbeam Ltd,04020691,15/09/2010,"33,252.44",Premises Related,Repair Maintenance and Alterations,Finance & Resources,Property & Design,
"Age Concern Brighton, Hove & Portslade",04012188,10/09/2010,"25,000.00",Third Party Payments,Other Establishments,Adult Social Care,Adult Social Care,
"Age Concern Brighton, Hove & Portslade",04057813,29/09/2010,"7,500.00",Supplies and Services,Grants and Subscriptions,Strategy & Governance,Communities & Equality,
Age UK,04054748,29/09/2010,"5,000.00",Supplies and Services,Services,Strategy & Governance,Human Resources,
Agincare UK Ltd,03990340,01/09/2010,"2,543.00",Third Party Payments,Other Establishments,Adult Social Care,Adult Social Care,
Agincare UK Ltd,CF01459870,17/09/2010,-75.00,Customer and Client Receipts,Fees and Charges,Adult Social Care,Adult Social Care,
Agincare UK Ltd,CF01459870,17/09/2010,678.23,Third Party Payments,Other Establishments,Adult Social Care,Adult Social Care,
Agincare UK Ltd,CF01466673,22/09/2010,-68.00,Customer and Client Receipts,Fees and Charges,Adult Social Care,Adult Social Care,
Agincare UK Ltd,CF01466673,22/09/2010,750.19,Third Party Payments,Other Establishments,Adult Social Care,Adult Social Care,
Agincare UK Ltd,CF01466674,22/09/2010,-68.00,Customer and Client Receipts,Fees and Charges,Adult Social Care,Adult Social Care,
Agincare UK Ltd,CF01466674,22/09/2010,750.19,Third Party Payments,Other Establishments,Adult Social Care,Adult Social Care,
Agincare UK Ltd,CF01472841,29/09/2010,-75.00,Customer and Client Receipts,Fees and Charges,Adult Social Care,Adult Social Care,
Agincare UK Ltd,CF01472841,29/09/2010,678.23,Third Party Payments,Other Establishments,Adult Social Care,Adult Social Care,
A G M Floors Ltd,03994867,03/09/2010,"3,650.00",Premises Related,Repair Maintenance and Alterations,"Housing, Culture & Capital",Tourism & Venues,
A G M Floors Ltd,03998889,08/09/2010,"10,714.00",Premises Related,Repair Maintenance and Alterations,"Housing, Culture & Capital",Tourism & Venues,
Payment to Individual,0039785,24/09/2010,700.00,Premises Related,Rents Payable,"Housing, Culture & Capital",Housing Strategy,
Aidapt T/A Aidapt Bathrooms Ltd,04022411,15/09/2010,594.00,Supplies and Services,Equipment Furniture and Materials,Section 75 South Downs Health,Contrib to S31 Partnership,
Aitch Care Homes (London) Ltd,CF01444649,01/09/2010,-71.15,Customer and Client Receipts,Fees and Charges,Section 75 Adult Social Care,Contrib to S31 Partnership,
Aitch Care Homes (London) Ltd,CF01444649,01/09/2010,"1,289.50",Third Party Payments,Other Establishments,Section 75 Adult Social Care,Contrib to S31 Partnership,
Aitch Care Homes (London) Ltd,CF01444650,01/09/2010,-71.15,Customer and Client Receipts,Fees and Charges,Section 75 Adult Social Care,Contrib to S31 Partnership,
Aitch Care Homes (London) Ltd,CF01444650,01/09/2010,"1,289.50",Third Party Payments,Other Establishments,Section 75 Adult Social Care,Contrib to S31 Partnership,
Aitch Care Homes (London) Ltd,CF01444651,01/09/2010,-71.15,Customer and Client Receipts,Fees and Charges,Section 75 Adult Social Care,Contrib to S31 Partnership,
Aitch Care Homes (London) Ltd,CF01444651,01/09/2010,"1,289.50",Third Party Payments,Other Establishments,Section 75 Adult Social Care,Contrib to S31 Partnership,
Aitch Care Homes (London) Ltd,CF01444652,01/09/2010,-71.15,Customer and Client Receipts,Fees and Charges,Section 75 Adult Social Care,Contrib to S31 Partnership,
Aitch Care Homes (London) Ltd,CF01444652,01/09/2010,"1,289.50",Third Party Payments,Other Establishments,Section 75 Adult Social Care,Contrib to S31 Partnership,
Aitch Care Homes (London) Ltd,CF01444657,01/09/2010,-84.80,Customer and Client Receipts,Fees and Charges,Section 75 Adult Social Care,Contrib to S31 Partnership,
Aitch Care Homes (London) Ltd,CF01444657,01/09/2010,"1,100.00",Third Party Payments,Other Establishments,Section 75 Adult Social Care,Contrib to S31 Partnership,
Aitch Care Homes (London) Ltd,CF01444658,01/09/2010,-84.80,Customer and Client Receipts,Fees and Charges,Section 75 Adult Social Care,Contrib to S31 Partnership,
Aitch Care Homes (London) Ltd,CF01444658,01/09/2010,"1,100.00",Third Party Payments,Other Establishments,Section 75 Adult Social Care,Contrib to S31 Partnership,
Aitch Care Homes (London) Ltd,CF01444659,01/09/2010,-84.80,Customer and Client Receipts,Fees and Charges,Section 75 Adult Social Care,Contrib to S31 Partnership,
Aitch Care Homes (London) Ltd,CF01444659,01/09/2010,"1,100.00",Third Party Payments,Other Establishments,Section 75 Adult Social Care,Contrib to S31 Partnership,
Aitch Care Homes (London) Ltd,CF01444660,01/09/2010,-84.80,Customer and Client Receipts,Fees and Charges,Section 75 Adult Social Care,Contrib to S31 Partnership,
Aitch Care Homes (London) Ltd,CF01444660,01/09/2010,"1,100.00",Third Party Payments,Other Establishments,Section 75 Adult Social Care,Contrib to S31 Partnership,
Aitch Care Homes (London) Ltd,CF01444676,01/09/2010,-84.10,Customer and Client Receipts,Fees and Charges,Section 75 Adult Social Care,Contrib to S31 Partnership,
Aitch Care Homes (London) Ltd,CF01444676,01/09/2010,"1,572.00",Third Party Payments,Other Establishments,Section 75 Adult Social Care,Contrib to S31 Partnership,
Aitch Care Homes (London) Ltd,CF01444677,01/09/2010,-84.10,Customer and Client Receipts,Fees and Charges,Section 75 Adult Social Care,Contrib to S31 Partnership,
Aitch Care Homes (London) Ltd,CF01444677,01/09/2010,"1,572.00",Third Party Payments,Other Establishments,Section 75 Adult Social Care,Contrib to S31 Partnership,
Aitch Care Homes (London) Ltd,CF01444678,01/09/2010,-84.10,Customer and Client Receipts,Fees and Charges,Section 75 Adult Social Care,Contrib to S31 Partnership,
Aitch Care Homes (London) Ltd,CF01444678,01/09/2010,"1,572.00",Third Party Payments,Other Establishments,Section 75 Adult Social Care,Contrib to S31 Partnership,
Aitch Care Homes (London) Ltd,CF01444679,01/09/2010,-84.10,Customer and Client Receipts,Fees and Charges,Section 75 Adult Social Care,Contrib to S31 Partnership,
Aitch Care Homes (London) Ltd,CF01444679,01/09/2010,"1,572.00",Third Party Payments,Other Establishments,Section 75 Adult Social Care,Contrib to S31 Partnership,
Aitch Care Homes (London) Ltd,CF01444680,01/09/2010,-84.80,Customer and Client Receipts,Fees and Charges,Section 75 Adult Social Care,Contrib to S31 Partnership,
Aitch Care Homes (London) Ltd,CF01444680,01/09/2010,"1,523.50",Third Party Payments,Other Establishments,Section 75 Adult Social Care,Contrib to S31 Partnership,
Aitch Care Homes (London) Ltd,CF01444681,01/09/2010,-84.80,Customer and Client Receipts,Fees and Charges,Section 75 Adult Social Care,Contrib to S31 Partnership,
Aitch Care Homes (London) Ltd,CF01444681,01/09/2010,"1,523.50",Third Party Payments,Other Establishments,Section 75 Adult Social Care,Contrib to S31 Partnership,
Aitch Care Homes (London) Ltd,CF01444682,01/09/2010,-84.80,Customer and Client Receipts,Fees and Charges,Section 75 Adult Social Care,Contrib to S31 Partnership,
Aitch Care Homes (London) Ltd,CF01444682,01/09/2010,"1,523.50",Third Party Payments,Other Establishments,Section 75 Adult Social Care,Contrib to S31 Partnership,
Aitch Care Homes (London) Ltd,CF01444683,01/09/2010,-84.80,Customer and Client Receipts,Fees and Charges,Section 75 Adult Social Care,Contrib to S31 Partnership,
Aitch Care Homes (London) Ltd,CF01444683,01/09/2010,"1,523.50",Third Party Payments,Other Establishments,Section 75 Adult Social Care,Contrib to S31 Partnership,
Aitch Care Homes (London) Ltd,CF01444684,01/09/2010,-84.10,Customer and Client Receipts,Fees and Charges,Section 75 Adult Social Care,Contrib to S31 Partnership,
Aitch Care Homes (London) Ltd,CF01444684,01/09/2010,"1,347.00",Third Party Payments,Other Establishments,Section 75 Adult Social Care,Contrib to S31 Partnership,
Aitch Care Homes (London) Ltd,CF01444685,01/09/2010,-84.10,Customer and Client Receipts,Fees and Charges,Section 75 Adult Social Care,Contrib to S31 Partnership,
Aitch Care Homes (London) Ltd,CF01444685,01/09/2010,"1,347.00",Third Party Payments,Other Establishments,Section 75 Adult Social Care,Contrib to S31 Partnership,
Aitch Care Homes (London) Ltd,CF01444686,01/09/2010,-84.10,Customer and Client Receipts,Fees and Charges,Section 75 Adult Social Care,Contrib to S31 Partnership,
Aitch Care Homes (London) Ltd,CF01444686,01/09/2010,"1,347.00",Third Party Payments,Other Establishments,Section 75 Adult Social Care,Contrib to S31 Partnership,
Aitch Care Homes (London) Ltd,CF01444687,01/09/2010,-84.10,Customer and Client Receipts,Fees and Charges,Section 75 Adult Social Care,Contrib to S31 Partnership,
Aitch Care Homes (London) Ltd,CF01444687,01/09/2010,"1,347.00",Third Party Payments,Other Establishments,Section 75 Adult Social Care,Contrib to S31 Partnership,
Aitch Care Homes (London) Ltd,CF01444688,01/09/2010,-57.55,Customer and Client Receipts,Fees and Charges,Section 75 Adult Social Care,Contrib to S31 Partnership,
Aitch Care Homes (London) Ltd,CF01444688,01/09/2010,"1,285.00",Third Party Payments,Other Establishments,Section 75 Adult Social Care,Contrib to S31 Partnership,
Aitch Care Homes (London) Ltd,CF01444689,01/09/2010,-57.55,Customer and Client Receipts,Fees and Charges,Section 75 Adult Social Care,Contrib to S31 Partnership,
Aitch Care Homes (London) Ltd,CF01444689,01/09/2010,"1,285.00",Third Party Payments,Other Establishments,Section 75 Adult Social Care,Contrib to S31 Partnership,
Aitch Care Homes (London) Ltd,CF01444690,01/09/2010,-57.55,Customer and Client Receipts,Fees and Charges,Section 75 Adult Social Care,Contrib to S31 Partnership,
Aitch Care Homes (London) Ltd,CF01444690,01/09/2010,"1,285.00",Third Party Payments,Other Establishments,Section 75 Adult Social Care,Contrib to S31 Partnership,
Aitch Care Homes (London) Ltd,CF01444691,01/09/2010,-57.55,Customer and Client Receipts,Fees and Charges,Section 75 Adult Social Care,Contrib to S31 Partnership,
Aitch Care Homes (London) Ltd,CF01444691,01/09/2010,"1,285.00",Third Party Payments,Other Establishments,Section 75 Adult Social Care,Contrib to S31 Partnership,
Aitch Care Homes (London) Ltd,CF01444692,01/09/2010,-71.15,Customer and Client Receipts,Fees and Charges,Section 75 Adult Social Care,Contrib to S31 Partnership,
Aitch Care Homes (London) Ltd,CF01444692,01/09/2010,"1,676.00",Third Party Payments,Other Establishments,Section 75 Adult Social Care,Contrib to S31 Partnership,
Aitch Care Homes (London) Ltd,CF01444693,01/09/2010,-71.15,Customer and Client Receipts,Fees and Charges,Section 75 Adult Social Care,Contrib to S31 Partnership,
Aitch Care Homes (London) Ltd,CF01444693,01/09/2010,"1,676.00",Third Party Payments,Other Establishments,Section 75 Adult Social Care,Contrib to S31 Partnership,
Aitch Care Homes (London) Ltd,CF01444694,01/09/2010,-71.15,Customer and Client Receipts,Fees and Charges,Section 75 Adult Social Care,Contrib to S31 Partnership,
Aitch Care Homes (London) Ltd,CF01444694,01/09/2010,"1,676.00",Third Party Payments,Other Establishments,Section 75 Adult Social Care,Contrib to S31 Partnership,
Aitch Care Homes (London) Ltd,CF01444695,01/09/2010,-71.15,Customer and Client Receipts,Fees and Charges,Section 75 Adult Social Care,Contrib to S31 Partnership,
Aitch Care Homes (London) Ltd,CF01444695,01/09/2010,"1,676.00",Third Party Payments,Other Establishments,Section 75 Adult Social Care,Contrib to S31 Partnership,
Aitch Care Homes (London) Ltd,CF01444696,01/09/2010,-57.55,Customer and Client Receipts,Fees and Charges,Section 75 Adult Social Care,Contrib to S31 Partnership,
Aitch Care Homes (London) Ltd,CF01444696,01/09/2010,"1,169.50",Third Party Payments,Other Establishments,Section 75 Adult Social Care,Contrib to S31 Partnership,
Aitch Care Homes (London) Ltd,CF01444697,01/09/2010,-57.55,Customer and Client Receipts,Fees and Charges,Section 75 Adult Social Care,Contrib to S31 Partnership,
Aitch Care Homes (London) Ltd,CF01444697,01/09/2010,"1,169.50",Third Party Payments,Other Establishments,Section 75 Adult Social Care,Contrib to S31 Partnership,
Aitch Care Homes (London) Ltd,CF01444698,01/09/2010,-57.55,Customer and Client Receipts,Fees and Charges,Section 75 Adult Social Care,Contrib to S31 Partnership,
Aitch Care Homes (London) Ltd,CF01444698,01/09/2010,"1,169.50",Third Party Payments,Other Establishments,Section 75 Adult Social Care,Contrib to S31 Partnership,
Aitch Care Homes (London) Ltd,CF01444699,01/09/2010,-57.55,Customer and Client Receipts,Fees and Charges,Section 75 Adult Social Care,Contrib to S31 Partnership,
Aitch Care Homes (London) Ltd,CF01444699,01/09/2010,"1,169.50",Third Party Payments,Other Establishments,Section 75 Adult Social Care,Contrib to S31 Partnership,
Aitch Care Homes (London) Ltd,CF01444700,01/09/2010,-84.10,Customer and Client Receipts,Fees and Charges,Section 75 Adult Social Care,Contrib to S31 Partnership,
Aitch Care Homes (London) Ltd,CF01444700,01/09/2010,"1,571.00",Third Party Payments,Other Establishments,Section 75 Adult Social Care,Contrib to S31 Partnership,
Aitch Care Homes (London) Ltd,CF01444701,01/09/2010,-84.10,Customer and Client Receipts,Fees and Charges,Section 75 Adult Social Care,Contrib to S31 Partnership,
Aitch Care Homes (London) Ltd,CF01444701,01/09/2010,"1,571.00",Third Party Payments,Other Establishments,Section 75 Adult Social Care,Contrib to S31 Partnership,
Aitch Care Homes (London) Ltd,CF01444702,01/09/2010,-84.10,Customer and Client Receipts,Fees and Charges,Section 75 Adult Social Care,Contrib to S31 Partnership,
Aitch Care Homes (London) Ltd,CF01444702,01/09/2010,"1,571.00",Third Party Payments,Other Establishments,Section 75 Adult Social Care,Contrib to S31 Partnership,
Aitch Care Homes (London) Ltd,CF01444703,01/09/2010,-84.10,Customer and Client Receipts,Fees and Charges,Section 75 Adult Social Care,Contrib to S31 Partnership,
Aitch Care Homes (London) Ltd,CF01444703,01/09/2010,"1,571.00",Third Party Payments,Other Establishments,Section 75 Adult Social Care,Contrib to S31 Partnership,
Aitch Care Homes (London) Ltd,CF01472046,29/09/2010,-71.15,Customer and Client Receipts,Fees and Charges,Section 75 Adult Social Care,Contrib to S31 Partnership,
Aitch Care Homes (London) Ltd,CF01472046,29/09/2010,"1,289.50",Third Party Payments,Other Establishments,Section 75 Adult Social Care,Contrib to S31 Partnership,
Aitch Care Homes (London) Ltd,CF01472047,29/09/2010,-71.15,Customer and Client Receipts,Fees and Charges,Section 75 Adult Social Care,Contrib to S31 Partnership,
Aitch Care Homes (London) Ltd,CF01472047,29/09/2010,"1,289.50",Third Party Payments,Other Establishments,Section 75 Adult Social Care,Contrib to S31 Partnership,
Aitch Care Homes (London) Ltd,CF01472048,29/09/2010,-71.15,Customer and Client Receipts,Fees and Charges,Section 75 Adult Social Care,Contrib to S31 Partnership,
Aitch Care Homes (London) Ltd,CF01472048,29/09/2010,"1,289.50",Third Party Payments,Other Establishments,Section 75 Adult Social Care,Contrib to S31 Partnership,
A J Taylor Electrical Contractors Ltd,04018412,15/09/2010,732.00,Premises Related,Repair Maintenance and Alterations,Finance & Resources,Property & Design,
Alan Keef Ltd,04012683,10/09/2010,800.00,Premises Related,Repair Maintenance and Alterations,Finance & Resources,Property & Design,
Payment to Individual,0039737,22/09/2010,740.00,Premises Related,Rents Payable,"Housing, Culture & Capital",Housing Strategy,
Payment to Individual,04038638,22/09/2010,570.00,Supplies and Services,Miscellaneous Expenses,Environment,Leisure,
Albourne Irrigation Services Ltd,04011082,10/09/2010,667.83,Premises Related,Repair Maintenance and Alterations,Finance & Resources,Property & Design,
Aldrington Press Ltd,04031473,17/09/2010,593.73,Supplies and Services,Equipment Furniture and Materials,Environment,Public Safety,
Alere Ltd,04036782,22/09/2010,945.00,Supplies and Services,Equipment Furniture and Materials,Environment,Public Safety,
Alere Ltd,04036805,22/09/2010,"1,902.40",Supplies and Services,Equipment Furniture and Materials,Environment,Public Safety,
Alexander Advertising(International)Ltd,03998724,08/09/2010,"1,401.70",Supplies and Services,Miscellaneous Expenses,Environment,City Planning,
Alexander Advertising(International)Ltd,03998737,08/09/2010,"1,906.31",Supplies and Services,Miscellaneous Expenses,Environment,City Planning,
Alexander Advertising(International)Ltd,04036889,22/09/2010,"1,415.96",Supplies and Services,Miscellaneous Expenses,Environment,City Planning,
Alexander Advertising(International)Ltd,04038010,22/09/2010,"1,682.04",Supplies and Services,Miscellaneous Expenses,Environment,City Planning,
Payment to Individual,0039349,08/09/2010,775.00,Premises Related,Rents Payable,"Housing, Culture & Capital",Housing Strategy,
Alfa Electric Ltd,03990298,01/09/2010,"18,848.16",New Construction and Conversion,,Chilren & Young People's Trust,Director Childrens Services,
Alfa Electric Ltd,04030704,17/09/2010,"1,833.51",Premises Related,Repair Maintenance and Alterations,Finance & Resources,Property & Design,
Alfa Electric Ltd,04046235,24/09/2010,"8,503.96",New Construction and Conversion,,Chilren & Young People's Trust,Director Childrens Services,
Payment to Individual,0039883,29/09/2010,875.00,Premises Related,Rents Payable,"Housing, Culture & Capital",Housing Strategy,
Payment to Individual,0039884,29/09/2010,875.00,Premises Related,Rents Payable,"Housing, Culture & Capital",Housing Strategy,
A-List Properties Limited,0039488,15/09/2010,850.00,Premises Related,Rents Payable,"Housing, Culture & Capital",Housing Strategy,
Allied Estates (South Eastern) Ltd,0039459,15/09/2010,600.00,Premises Related,Rents Payable,"Housing, Culture & Capital",Housing Strategy,
Allied Estates (South Eastern) Ltd,0039564,17/09/2010,619.00,Premises Related,Rents Payable,"Housing, Culture & Capital",Housing Strategy,
Allied Healthcare Brighton Domicillary,CF01449451,08/09/2010,520.91,Third Party Payments,Other Establishments,Adult Social Care,Adult Social Care,
Allied Healthcare Brighton Domicillary,CF01457305,15/09/2010,557.21,Third Party Payments,Other Establishments,Adult Social Care,Adult Social Care,
Allied Healthcare Brighton Domicillary,CF01461701,22/09/2010,606.38,Third Party Payments,Other Establishments,Adult Social Care,Adult Social Care,
Allsop Residential Investment Management (ARIM),0039481,15/09/2010,715.00,Premises Related,Rents Payable,"Housing, Culture & Capital",Housing Strategy,
Allsorts Youth Project,04057800,29/09/2010,"5,500.00",Supplies and Services,Grants and Subscriptions,Strategy & Governance,Communities & Equality,
Alphaguard K9 Ltd,04026983,17/09/2010,"2,670.00",Supplies and Services,Services,Environment,Public Safety,
Altodigital UK Ltd,04024396,15/09/2010,"74,400.00",Supplies and Services,Communications and Computing,Finance & Resources,ICT,
Alzheimers Society,04020293,09/09/2010,"6,268.37",Customer and Client Receipts,Fees and Charges,Strategy & Governance,Legal and Democratic Services,
A M Construction (Southern) Ltd,03988909,01/09/2010,975.00,Third Party Payments,Private Contractors,Environment,Quality of Life & Green Spaces,
Payment to Individual,04032469,17/09/2010,"1,089.15",Third Party Payments,Other Establishments,Chilren & Young People's Trust,Learning Schools & Skills,
Amey Mechanical & Electrical Services Ltd,04040040,22/09/2010,"11,975.15",Premises Related,Repair Maintenance and Alterations,Chilren & Young People's Trust,Area Integrated Working,
Amey OW Limited,03998423,08/09/2010,577.99,New Construction and Conversion,,Environment,Sustainable Transport&Planning,
Amey OW Limited,04012405,10/09/2010,"39,308.73",New Construction and Conversion,,Environment,Sustainable Transport&Planning,
Amey OW Limited,04022356,15/09/2010,"1,233.28",New Construction and Conversion,,Environment,Sustainable Transport&Planning,
Amey OW Limited,04040558,22/09/2010,"2,227.38",New Construction and Conversion,,Environment,Sustainable Transport&Planning,
Amigos Pre-School Playgroup,UL01444345,01/09/2010,"1,415.00",Supplies and Services,Grants and Subscriptions,Chilren & Young People's Trust,Area Integrated Working,
Amigos Pre-School Playgroup,UL01473446,01/10/2010,"1,415.00",Supplies and Services,Grants and Subscriptions,Chilren & Young People's Trust,Area Integrated Working,
Amstech Contracts Ltd,03989296,01/09/2010,"1,392.00",New Construction and Conversion,,Chilren & Young People's Trust,Director Childrens Services,
Amstech Contracts Ltd,04021917,15/09/2010,"14,328.00",New Construction and Conversion,,Chilren & Young People's Trust,Director Childrens Services,
Amstech Contracts Ltd,04030403,17/09/2010,"10,219.00",New Construction and Conversion,,Chilren & Young People's Trust,Director Childrens Services,
ANA Treatment Centres Ltd,CF01466191,22/09/2010,522.86,Third Party Payments,Other Establishments,Section 75 Sussex Partnership,Contrib to S31 Partnership,
Anchor Trust,CS01450653,08/09/2010,"2,451.54",Transfer Payments,Supporting People,"Housing, Culture & Capital",Housing Strategy,
Anchor Trust,CS01450654,08/09/2010,"2,451.54",Transfer Payments,Supporting People,"Housing, Culture & Capital",Housing Strategy,
Anchor Trust,CS01450655,08/09/2010,"2,451.54",Transfer Payments,Supporting People,"Housing, Culture & Capital",Housing Strategy,
Anchor Trust,CS01450656,08/09/2010,"2,451.54",Transfer Payments,Supporting People,"Housing, Culture & Capital",Housing Strategy,
Anchor Trust Homes (Partridge House),CF01464287,22/09/2010,"28,553.20",Third Party Payments,Other Establishments,Section 75 Sussex Partnership,Contrib to S31 Partnership,
Anchor Trust Homes (Partridge House),CF01464288,22/09/2010,"28,553.20",Third Party Payments,Other Establishments,Section 75 Sussex Partnership,Contrib to S31 Partnership,
Anchor Trust Homes (Partridge House),CF01464289,22/09/2010,"28,553.20",Third Party Payments,Other Establishments,Section 75 Sussex Partnership,Contrib to S31 Partnership,
Anchor Trust Homes (Partridge House),CF01464290,22/09/2010,"28,553.20",Third Party Payments,Other Establishments,Section 75 Sussex Partnership,Contrib to S31 Partnership,
Anchor Trust Homes (Sycamore Court),CF01464933,22/09/2010,"4,172.40",Third Party Payments,Other Establishments,Adult Social Care,Adult Social Care,
Anchor Trust Homes (Sycamore Court),CF01464934,22/09/2010,"4,172.40",Third Party Payments,Other Establishments,Adult Social Care,Adult Social Care,
Anchor Trust Homes (Sycamore Court),CF01464935,22/09/2010,"4,172.40",Third Party Payments,Other Establishments,Adult Social Care,Adult Social Care,
Anchor Trust Homes (Sycamore Court),CF01464936,22/09/2010,"4,172.40",Third Party Payments,Other Establishments,Adult Social Care,Adult Social Care,
Anchor Trust Homes (Sycamore Court),CF01465054,22/09/2010,"21,420.80",Third Party Payments,Other Establishments,Adult Social Care,Adult Social Care,
Anchor Trust Homes (Sycamore Court),CF01465055,22/09/2010,"21,420.80",Third Party Payments,Other Establishments,Adult Social Care,Adult Social Care,
Anchor Trust Homes (Sycamore Court),CF01465056,22/09/2010,"21,420.80",Third Party Payments,Other Establishments,Adult Social Care,Adult Social Care,
Anchor Trust Homes (Sycamore Court),CF01465057,22/09/2010,"21,420.80",Third Party Payments,Other Establishments,Adult Social Care,Adult Social Care,
Anderida Adolescent Care Ltd,CF01443872,01/09/2010,"4,435.58",Third Party Payments,Other Establishments,Chilren & Young People's Trust,Commissioning & Governance,
Anderida Adolescent Care Ltd,CF01443873,01/09/2010,"4,435.58",Third Party Payments,Other Establishments,Chilren & Young People's Trust,Commissioning & Governance,
Anderida Adolescent Care Ltd,CF01443874,01/09/2010,"4,435.58",Third Party Payments,Other Establishments,Chilren & Young People's Trust,Commissioning & Governance,
Anderida Adolescent Care Ltd,CF01443875,01/09/2010,"4,435.58",Third Party Payments,Other Establishments,Chilren & Young People's Trust,Commissioning & Governance,
Payment to Individual,0039761,22/09/2010,850.00,Premises Related,Rents Payable,"Housing, Culture & Capital",Housing Strategy,
Payment to Individual,CF01458271,17/09/2010,-273.37,Customer and Client Receipts,Fees and Charges,Section 75 Adult Social Care,Contrib to S31 Partnership,
Payment to Individual,CF01458271,17/09/2010,814.92,Third Party Payments,Other Establishments,Section 75 Adult Social Care,Contrib to S31 Partnership,
Payment to Individual,CF01458272,17/09/2010,-273.37,Customer and Client Receipts,Fees and Charges,Section 75 Adult Social Care,Contrib to S31 Partnership,
Payment to Individual,CF01458272,17/09/2010,814.92,Third Party Payments,Other Establishments,Section 75 Adult Social Care,Contrib to S31 Partnership,
Payment to Individual,CF01458273,17/09/2010,-273.37,Customer and Client Receipts,Fees and Charges,Section 75 Adult Social Care,Contrib to S31 Partnership,
Payment to Individual,CF01458273,17/09/2010,814.92,Third Party Payments,Other Establishments,Section 75 Adult Social Care,Contrib to S31 Partnership,
Payment to Individual,CF01458274,17/09/2010,-273.37,Customer and Client Receipts,Fees and Charges,Section 75 Adult Social Care,Contrib to S31 Partnership,
Payment to Individual,CF01458274,17/09/2010,814.92,Third Party Payments,Other Establishments,Section 75 Adult Social Care,Contrib to S31 Partnership,
Payment to Individual,0039447,10/09/2010,550.00,Premises Related,Rents Payable,"Housing, Culture & Capital",Housing Strategy,
Andus Print Limited,03991514,01/09/2010,"3,260.00",Supplies and Services,Printing Stationery & General Office Expenses,Strategy & Governance,Communications,
Angmering Day Nurseries Ltd,UL01444435,01/09/2010,"1,548.00",Supplies and Services,Grants and Subscriptions,Chilren & Young People's Trust,Area Integrated Working,
Angmering Day Nurseries Ltd,UL01473427,01/10/2010,"1,548.00",Supplies and Services,Grants and Subscriptions,Chilren & Young People's Trust,Area Integrated Working,
Payment to Individual,0039756,22/09/2010,700.00,Premises Related,Rents Payable,"Housing, Culture & Capital",Housing Strategy,
Payment to Individual,0039075,01/09/2010,715.00,Premises Related,Rents Payable,"Housing, Culture & Capital",Housing Strategy,
Payment to Individual,0040116,01/10/2010,715.00,Premises Related,Rents Payable,"Housing, Culture & Capital",Housing Strategy,
Payment to Individual,0039259,03/09/2010,740.00,Premises Related,Rents Payable,"Housing, Culture & Capital",Housing Strategy,
Payment to Individual,0040186,01/10/2010,740.00,Premises Related,Rents Payable,"Housing, Culture & Capital",Housing Strategy,
Payment to Individual,04000912,08/09/2010,"5,000.00",Supplies and Services,Services,Chilren & Young People's Trust,Learning Schools & Skills,
Payment to Individual,0039691,22/09/2010,685.00,Premises Related,Rents Payable,"Housing, Culture & Capital",Housing Strategy,
Payment to Individual,0039803,24/09/2010,750.00,Premises Related,Rents Payable,"Housing, Culture & Capital",Housing Strategy,
Apollo Group Holdings Limited,04007656,10/09/2010,"9,742.33",New Construction and Conversion,,"Housing, Culture & Capital",Housing Management,
Apollo Group Holdings Limited,04007672,10/09/2010,"46,657.35",New Construction and Conversion,,"Housing, Culture & Capital",Housing Management,
Applegate Properties Ltd,0039406,10/09/2010,765.00,Premises Related,Rents Payable,"Housing, Culture & Capital",Housing Strategy,
Applegate Properties Ltd,0039479,15/09/2010,"1,200.00",Premises Related,Rents Payable,"Housing, Culture & Capital",Housing Strategy,
APT Skidata Ltd,04049119,24/09/2010,"3,969.99",Supplies and Services,Equipment Furniture and Materials,Environment,Sustainable Transport&Planning,
APT Skidata Ltd,04049135,24/09/2010,"2,548.00",Plant Machinery and Equipment,,Environment,Sustainable Transport&Planning,
ARC Adventure (Sussex) Ltd,CF01443836,08/09/2010,"1,500.00",Third Party Payments,Other Establishments,Chilren & Young People's Trust,Commissioning & Governance,
ARC Adventure (Sussex) Ltd,CF01443837,08/09/2010,"3,500.00",Third Party Payments,Other Establishments,Chilren & Young People's Trust,Commissioning & Governance,
ARC Adventure (Sussex) Ltd,CF01443838,08/09/2010,"3,500.00",Third Party Payments,Other Establishments,Chilren & Young People's Trust,Commissioning & Governance,
ARC Adventure (Sussex) Ltd,CF01443839,08/09/2010,"3,500.00",Third Party Payments,Other Establishments,Chilren & Young People's Trust,Commissioning & Governance,
ARC Adventure (Sussex) Ltd,CF01443840,08/09/2010,"3,500.00",Third Party Payments,Other Establishments,Chilren & Young People's Trust,Commissioning & Governance,
ARC Adventure (Sussex) Ltd,CF01443841,08/09/2010,"1,500.00",Third Party Payments,Other Establishments,Chilren & Young People's Trust,Commissioning & Governance,
ARC Adventure (Sussex) Ltd,CF01443842,08/09/2010,"3,500.00",Third Party Payments,Other Establishments,Chilren & Young People's Trust,Commissioning & Governance,
ARC Adventure (Sussex) Ltd,CF01443843,08/09/2010,"3,500.00",Third Party Payments,Other Establishments,Chilren & Young People's Trust,Commissioning & Governance,
ARC Adventure (Sussex) Ltd,CF01443844,08/09/2010,"3,500.00",Third Party Payments,Other Establishments,Chilren & Young People's Trust,Commissioning & Governance,
ARC Adventure (Sussex) Ltd,CF01443845,08/09/2010,"3,500.00",Third Party Payments,Other Establishments,Chilren & Young People's Trust,Commissioning & Governance,
ARC Adventure (Sussex) Ltd,CF01443846,08/09/2010,"1,500.00",Third Party Payments,Other Establishments,Chilren & Young People's Trust,Commissioning & Governance,
ARC Adventure (Sussex) Ltd,CF01443847,08/09/2010,"3,500.00",Third Party Payments,Other Establishments,Chilren & Young People's Trust,Commissioning & Governance,
ARC Adventure (Sussex) Ltd,CF01443848,08/09/2010,"3,500.00",Third Party Payments,Other Establishments,Chilren & Young People's Trust,Commissioning & Governance,
ARC Adventure (Sussex) Ltd,CF01443849,08/09/2010,"3,500.00",Third Party Payments,Other Establishments,Chilren & Young People's Trust,Commissioning & Governance,
ARC Adventure (Sussex) Ltd,CF01443850,08/09/2010,"3,500.00",Third Party Payments,Other Establishments,Chilren & Young People's Trust,Commissioning & Governance,
Archant Life Ltd,04056432,29/09/2010,500.00,Supplies and Services,Printing Stationery & General Office Expenses,"Housing, Culture & Capital",Royal Pavilion & Museums,
Arcool Ltd,04065698,01/10/2010,545.00,Supplies and Services,Equipment Furniture and Materials,Chilren & Young People's Trust,Learning Schools & Skills,
Arcool Ltd,04066846,01/10/2010,984.00,Supplies and Services,Equipment Furniture and Materials,Chilren & Young People's Trust,Learning Schools & Skills,
Argos BS Corporate Link - USE 82879,03992788,17/09/2010,"5,857.31",Supplies and Services,Equipment Furniture and Materials,"Housing, Culture & Capital",Tourism & Venues,
Arken P.O.P Ltd,04057059,29/09/2010,40.30,Supplies and Services,Communications and Computing,Strategy & Governance,Communications,
Arken P.O.P Ltd,04057059,29/09/2010,744.62,Supplies and Services,Equipment Furniture and Materials,Strategy & Governance,Communications,
Arrow Geophysics Ltd,03992539,01/09/2010,650.00,Third Party Payments,Private Contractors,Environment,Quality of Life & Green Spaces,
Art on the Move Ltd,04040668,22/09/2010,968.98,Supplies and Services,Services,"Housing, Culture & Capital",Royal Pavilion & Museums,
Arundel Domiciliary Care Services,CF01457283,15/09/2010,"1,050.00",Third Party Payments,Other Establishments,Section 75 Adult Social Care,Contrib to S31 Partnership,
Arundel Domiciliary Care Services,CF01457284,15/09/2010,"1,050.00",Third Party Payments,Other Establishments,Section 75 Adult Social Care,Contrib to S31 Partnership,
Arundel Domiciliary Care Services,CF01457285,15/09/2010,"1,050.00",Third Party Payments,Other Establishments,Section 75 Adult Social Care,Contrib to S31 Partnership,
Arundel Domiciliary Care Services,CF01457286,15/09/2010,"1,050.00",Third Party Payments,Other Establishments,Section 75 Adult Social Care,Contrib to S31 Partnership,
Arundel Domiciliary Care Services,CF01457289,15/09/2010,634.68,Third Party Payments,Other Establishments,Section 75 Adult Social Care,Contrib to S31 Partnership,
Arundel Domiciliary Care Services,CF01457290,15/09/2010,635.44,Third Party Payments,Other Establishments,Section 75 Adult Social Care,Contrib to S31 Partnership,
Arundel Domiciliary Care Services,CF01457291,15/09/2010,635.44,Third Party Payments,Other Establishments,Section 75 Adult Social Care,Contrib to S31 Partnership,
Arundel Domiciliary Care Services,CF01457292,15/09/2010,635.44,Third Party Payments,Other Establishments,Section 75 Adult Social Care,Contrib to S31 Partnership,
Arun Pumps Ltd,04029854,17/09/2010,888.20,Premises Related,Repair Maintenance and Alterations,Environment,Leisure,
ARVAL PHH,04016236,15/09/2010,"2,249.41",Transport Related,Direct Transport Costs,Environment,Quality of Life & Green Spaces,
ARVAL PHH,04026569,17/09/2010,580.57,Transport Related,Direct Transport Costs,Adult Social Care,Housing Management,
ARVAL PHH,04065355,01/10/2010,610.82,Transport Related,Direct Transport Costs,Adult Social Care,Housing Management,
ARVAL PHH,04066066,01/10/2010,625.48,Transport Related,Direct Transport Costs,Adult Social Care,Housing Management,
Ascendit Lifts Ltd,03993444,03/09/2010,"4,875.00",New Construction and Conversion,,"Housing, Culture & Capital",Housing Management,
Ascendit Lifts Ltd,03993813,03/09/2010,"4,361.00",Capital Grants,,"Housing, Culture & Capital",Housing Strategy,
Ascendit Lifts Ltd,04034137,22/09/2010,"1,715.00",New Construction and Conversion,,"Housing, Culture & Capital",Housing Management,
ASD Unique Services Ltd,CF01444764,01/09/2010,-71.15,Customer and Client Receipts,Fees and Charges,Section 75 Adult Social Care,Contrib to S31 Partnership,
ASD Unique Services Ltd,CF01444764,01/09/2010,"1,121.55",Third Party Payments,Other Establishments,Section 75 Adult Social Care,Contrib to S31 Partnership,
ASD Unique Services Ltd,CF01444765,01/09/2010,-71.15,Customer and Client Receipts,Fees and Charges,Section 75 Adult Social Care,Contrib to S31 Partnership,
ASD Unique Services Ltd,CF01444765,01/09/2010,"1,121.55",Third Party Payments,Other Establishments,Section 75 Adult Social Care,Contrib to S31 Partnership,
ASD Unique Services Ltd,CF01444766,01/09/2010,-71.15,Customer and Client Receipts,Fees and Charges,Section 75 Adult Social Care,Contrib to S31 Partnership,
ASD Unique Services Ltd,CF01444766,01/09/2010,"1,121.55",Third Party Payments,Other Establishments,Section 75 Adult Social Care,Contrib to S31 Partnership,
ASD Unique Services Ltd,CF01444767,01/09/2010,-71.15,Customer and Client Receipts,Fees and Charges,Section 75 Adult Social Care,Contrib to S31 Partnership,
ASD Unique Services Ltd,CF01444767,01/09/2010,"1,121.55",Third Party Payments,Other Establishments,Section 75 Adult Social Care,Contrib to S31 Partnership,
Ashacre Scaffolding Ltd,04043555,24/09/2010,"2,155.00",Premises Related,Repair Maintenance and Alterations,Finance & Resources,Property & Design,
Ashdown NH - Newcare Homes Ltd,CF01462766,22/09/2010,553.20,Third Party Payments,Other Establishments,Section 75 Sussex Partnership,Contrib to S31 Partnership,
Ashdown NH - Newcare Homes Ltd,CF01462767,22/09/2010,553.20,Third Party Payments,Other Establishments,Section 75 Sussex Partnership,Contrib to S31 Partnership,
Ashdown NH - Newcare Homes Ltd,CF01462768,22/09/2010,553.20,Third Party Payments,Other Establishments,Section 75 Sussex Partnership,Contrib to S31 Partnership,
Ashdown NH - Newcare Homes Ltd,CF01462936,22/09/2010,644.40,Third Party Payments,Other Establishments,Adult Social Care,Adult Social Care,
Ashdown NH - Newcare Homes Ltd,CF01462937,22/09/2010,644.40,Third Party Payments,Other Establishments,Adult Social Care,Adult Social Care,
Ashdown NH - Newcare Homes Ltd,CF01462938,22/09/2010,644.40,Third Party Payments,Other Establishments,Adult Social Care,Adult Social Care,
Ashdown NH - Newcare Homes Ltd,CF01462939,22/09/2010,644.40,Third Party Payments,Other Establishments,Adult Social Care,Adult Social Care,
Ashdown NH - Newcare Homes Ltd,CF01462940,22/09/2010,-124.05,Customer and Client Receipts,Fees and Charges,Section 75 Sussex Partnership,Contrib to S31 Partnership,
Ashdown NH - Newcare Homes Ltd,CF01462940,22/09/2010,629.40,Third Party Payments,Other Establishments,Section 75 Sussex Partnership,Contrib to S31 Partnership,
Ashdown NH - Newcare Homes Ltd,CF01462941,22/09/2010,-124.05,Customer and Client Receipts,Fees and Charges,Section 75 Sussex Partnership,Contrib to S31 Partnership,
Ashdown NH - Newcare Homes Ltd,CF01462941,22/09/2010,629.40,Third Party Payments,Other Establishments,Section 75 Sussex Partnership,Contrib to S31 Partnership,
Ashdown NH - Newcare Homes Ltd,CF01462942,22/09/2010,-124.05,Customer and Client Receipts,Fees and Charges,Section 75 Sussex Partnership,Contrib to S31 Partnership,
Ashdown NH - Newcare Homes Ltd,CF01462942,22/09/2010,629.40,Third Party Payments,Other Establishments,Section 75 Sussex Partnership,Contrib to S31 Partnership,
Ashdown NH - Newcare Homes Ltd,CF01462943,22/09/2010,-124.05,Customer and Client Receipts,Fees and Charges,Section 75 Sussex Partnership,Contrib to S31 Partnership,
Ashdown NH - Newcare Homes Ltd,CF01462943,22/09/2010,629.40,Third Party Payments,Other Establishments,Section 75 Sussex Partnership,Contrib to S31 Partnership,
Ashdown NH - Newcare Homes Ltd,CF01462944,22/09/2010,668.40,Third Party Payments,Other Establishments,Section 75 Sussex Partnership,Contrib to S31 Partnership,
Ashdown NH - Newcare Homes Ltd,CF01462945,22/09/2010,668.40,Third Party Payments,Other Establishments,Section 75 Sussex Partnership,Contrib to S31 Partnership,
Ashdown NH - Newcare Homes Ltd,CF01462946,22/09/2010,668.40,Third Party Payments,Other Establishments,Section 75 Sussex Partnership,Contrib to S31 Partnership,
Ashdown NH - Newcare Homes Ltd,CF01462947,22/09/2010,668.40,Third Party Payments,Other Establishments,Section 75 Sussex Partnership,Contrib to S31 Partnership,
Ashdown NH - Newcare Homes Ltd,CF01462948,22/09/2010,617.40,Third Party Payments,Other Establishments,Adult Social Care,Adult Social Care,
Ashdown NH - Newcare Homes Ltd,CF01462949,22/09/2010,617.40,Third Party Payments,Other Establishments,Adult Social Care,Adult Social Care,
Ashdown NH - Newcare Homes Ltd,CF01462950,22/09/2010,617.40,Third Party Payments,Other Establishments,Adult Social Care,Adult Social Care,
Ashdown NH - Newcare Homes Ltd,CF01462951,22/09/2010,617.40,Third Party Payments,Other Establishments,Adult Social Care,Adult Social Care,
Ashdown NH - Newcare Homes Ltd,CF01462952,22/09/2010,553.20,Third Party Payments,Other Establishments,Adult Social Care,Adult Social Care,
Ashdown NH - Newcare Homes Ltd,CF01462953,22/09/2010,553.20,Third Party Payments,Other Establishments,Adult Social Care,Adult Social Care,
Ashdown NH - Newcare Homes Ltd,CF01462954,22/09/2010,553.20,Third Party Payments,Other Establishments,Adult Social Care,Adult Social Care,
Ashdown NH - Newcare Homes Ltd,CF01462955,22/09/2010,553.20,Third Party Payments,Other Establishments,Adult Social Care,Adult Social Care,
Ashdown NH - Newcare Homes Ltd,CF01462956,22/09/2010,553.20,Third Party Payments,Other Establishments,Section 75 Sussex Partnership,Contrib to S31 Partnership,
Ashdown NH - Newcare Homes Ltd,CF01462957,22/09/2010,553.20,Third Party Payments,Other Establishments,Section 75 Sussex Partnership,Contrib to S31 Partnership,
Ashdown NH - Newcare Homes Ltd,CF01462958,22/09/2010,553.20,Third Party Payments,Other Establishments,Section 75 Sussex Partnership,Contrib to S31 Partnership,
Ashdown NH - Newcare Homes Ltd,CF01462959,22/09/2010,553.20,Third Party Payments,Other Establishments,Section 75 Sussex Partnership,Contrib to S31 Partnership,
Payment to Individual,0039889,29/09/2010,925.00,Premises Related,Rents Payable,"Housing, Culture & Capital",Housing Strategy,
Ashton House,CF01471928,29/09/2010,-110.30,Customer and Client Receipts,Fees and Charges,Section 75 Sussex Partnership,Contrib to S31 Partnership,
Ashton House,CF01471928,29/09/2010,748.40,Third Party Payments,Other Establishments,Section 75 Sussex Partnership,Contrib to S31 Partnership,
Ashton House,CF01471929,29/09/2010,-110.30,Customer and Client Receipts,Fees and Charges,Section 75 Sussex Partnership,Contrib to S31 Partnership,
Ashton House,CF01471929,29/09/2010,748.40,Third Party Payments,Other Establishments,Section 75 Sussex Partnership,Contrib to S31 Partnership,
Ashton House,CF01471930,29/09/2010,-110.30,Customer and Client Receipts,Fees and Charges,Section 75 Sussex Partnership,Contrib to S31 Partnership,
Ashton House,CF01471930,29/09/2010,748.40,Third Party Payments,Other Establishments,Section 75 Sussex Partnership,Contrib to S31 Partnership,
Ashton House,CF01471931,29/09/2010,-110.30,Customer and Client Receipts,Fees and Charges,Section 75 Sussex Partnership,Contrib to S31 Partnership,
Ashton House,CF01471931,29/09/2010,748.40,Third Party Payments,Other Establishments,Section 75 Sussex Partnership,Contrib to S31 Partnership,
Ashton House,CF01471932,29/09/2010,-121.09,Customer and Client Receipts,Fees and Charges,Section 75 Sussex Partnership,Contrib to S31 Partnership,
Ashton House,CF01471932,29/09/2010,748.40,Third Party Payments,Other Establishments,Section 75 Sussex Partnership,Contrib to S31 Partnership,
Ashton House,CF01471933,29/09/2010,-121.09,Customer and Client Receipts,Fees and Charges,Section 75 Sussex Partnership,Contrib to S31 Partnership,
Ashton House,CF01471933,29/09/2010,748.40,Third Party Payments,Other Establishments,Section 75 Sussex Partnership,Contrib to S31 Partnership,
Ashton House,CF01471934,29/09/2010,-121.09,Customer and Client Receipts,Fees and Charges,Section 75 Sussex Partnership,Contrib to S31 Partnership,
Ashton House,CF01471934,29/09/2010,748.40,Third Party Payments,Other Establishments,Section 75 Sussex Partnership,Contrib to S31 Partnership,
Ashton House,CF01471935,29/09/2010,-121.09,Customer and Client Receipts,Fees and Charges,Section 75 Sussex Partnership,Contrib to S31 Partnership,
Ashton House,CF01471935,29/09/2010,748.40,Third Party Payments,Other Establishments,Section 75 Sussex Partnership,Contrib to S31 Partnership,
Ashton House,CF01471944,29/09/2010,-136.48,Customer and Client Receipts,Fees and Charges,Section 75 Sussex Partnership,Contrib to S31 Partnership,
Ashton House,CF01471944,29/09/2010,802.40,Third Party Payments,Other Establishments,Section 75 Sussex Partnership,Contrib to S31 Partnership,
Ashton House,CF01471945,29/09/2010,-136.48,Customer and Client Receipts,Fees and Charges,Section 75 Sussex Partnership,Contrib to S31 Partnership,
Ashton House,CF01471945,29/09/2010,802.40,Third Party Payments,Other Establishments,Section 75 Sussex Partnership,Contrib to S31 Partnership,
Ashton House,CF01471946,29/09/2010,-136.48,Customer and Client Receipts,Fees and Charges,Section 75 Sussex Partnership,Contrib to S31 Partnership,
Ashton House,CF01471946,29/09/2010,802.40,Third Party Payments,Other Establishments,Section 75 Sussex Partnership,Contrib to S31 Partnership,
Ashton House,CF01471947,29/09/2010,-136.48,Customer and Client Receipts,Fees and Charges,Section 75 Sussex Partnership,Contrib to S31 Partnership,
Ashton House,CF01471947,29/09/2010,802.40,Third Party Payments,Other Establishments,Section 75 Sussex Partnership,Contrib to S31 Partnership,
Ashton House,CF01471948,29/09/2010,626.40,Third Party Payments,Other Establishments,Section 75 Sussex Partnership,Contrib to S31 Partnership,
Ashton House,CF01471949,29/09/2010,626.40,Third Party Payments,Other Establishments,Section 75 Sussex Partnership,Contrib to S31 Partnership,
Ashton House,CF01471950,29/09/2010,626.40,Third Party Payments,Other Establishments,Section 75 Sussex Partnership,Contrib to S31 Partnership,
Ashton House,CF01471951,29/09/2010,626.40,Third Party Payments,Other Establishments,Section 75 Sussex Partnership,Contrib to S31 Partnership,
Aspen Arboricultural Ltd,04000446,08/09/2010,700.00,Third Party Payments,Private Contractors,Environment,Quality of Life & Green Spaces,
Asphaleia Ltd,CF01454635,15/09/2010,670.72,Third Party Payments,Other Establishments,Chilren & Young People's Trust,Commissioning & Governance,
Asphaleia Ltd,CF01454636,15/09/2010,670.72,Third Party Payments,Other Establishments,Chilren & Young People's Trust,Commissioning & Governance,
Asphaleia Ltd,CF01454637,15/09/2010,670.72,Third Party Payments,Other Establishments,Chilren & Young People's Trust,Commissioning & Governance,
Asphaleia Ltd,CF01454638,15/09/2010,670.72,Third Party Payments,Other Establishments,Chilren & Young People's Trust,Commissioning & Governance,
Aspirations,CF01445431,01/09/2010,832.65,Third Party Payments,Other Establishments,Section 75 Adult Social Care,Contrib to S31 Partnership,
Aspirations Active,04030746,17/09/2010,709.83,Third Party Payments,Other Establishments,Section 75 Adult Social Care,Contrib to S31 Partnership,
Aspirations Active,04030762,17/09/2010,709.83,Third Party Payments,Other Establishments,Section 75 Adult Social Care,Contrib to S31 Partnership,
Aspirations Active,04068433,01/10/2010,"2,218.48",Third Party Payments,Other Establishments,Section 75 Adult Social Care,Contrib to S31 Partnership,
Aspirations Active,CF01445330,01/09/2010,538.15,Third Party Payments,Other Establishments,Section 75 Adult Social Care,Contrib to S31 Partnership,
Aspirations Active,CF01445331,01/09/2010,538.15,Third Party Payments,Other Establishments,Section 75 Adult Social Care,Contrib to S31 Partnership,
Aspirations Active,CF01445332,01/09/2010,538.15,Third Party Payments,Other Establishments,Section 75 Adult Social Care,Contrib to S31 Partnership,
Aspirations Active,CF01445333,01/09/2010,538.15,Third Party Payments,Other Establishments,Section 75 Adult Social Care,Contrib to S31 Partnership,
Aspirations Active,CF01445349,01/09/2010,559.90,Third Party Payments,Other Establishments,Section 75 Adult Social Care,Contrib to S31 Partnership,
Aspirations Active,CF01445350,01/09/2010,559.90,Third Party Payments,Other Establishments,Section 75 Adult Social Care,Contrib to S31 Partnership,
Aspirations Active,CF01445351,01/09/2010,559.90,Third Party Payments,Other Establishments,Section 75 Adult Social Care,Contrib to S31 Partnership,
Aspirations Active,CF01445352,01/09/2010,559.90,Third Party Payments,Other Establishments,Section 75 Adult Social Care,Contrib to S31 Partnership,
Aspirations Active,CF01445364,01/09/2010,582.60,Third Party Payments,Other Establishments,Section 75 Adult Social Care,Contrib to S31 Partnership,
Aspirations Active,CF01445365,01/09/2010,582.60,Third Party Payments,Other Establishments,Section 75 Adult Social Care,Contrib to S31 Partnership,
Aspirations Active,CF01445366,01/09/2010,582.60,Third Party Payments,Other Establishments,Section 75 Adult Social Care,Contrib to S31 Partnership,
Aspirations Active,CF01445367,01/09/2010,582.60,Third Party Payments,Other Establishments,Section 75 Adult Social Care,Contrib to S31 Partnership,
Aspirations Active,CF01445369,01/09/2010,548.90,Third Party Payments,Other Establishments,Section 75 Adult Social Care,Contrib to S31 Partnership,
Aspirations Active,CF01445370,01/09/2010,548.90,Third Party Payments,Other Establishments,Section 75 Adult Social Care,Contrib to S31 Partnership,
Aspirations Active,CF01445371,01/09/2010,548.90,Third Party Payments,Other Establishments,Section 75 Adult Social Care,Contrib to S31 Partnership,
Aspirations Active,CF01445373,01/09/2010,559.90,Third Party Payments,Other Establishments,Section 75 Adult Social Care,Contrib to S31 Partnership,
Aspirations Active,CF01475149,01/10/2010,538.15,Third Party Payments,Other Establishments,Section 75 Adult Social Care,Contrib to S31 Partnership,
Aspirations Active,CF01475150,01/10/2010,538.15,Third Party Payments,Other Establishments,Section 75 Adult Social Care,Contrib to S31 Partnership,
Aspirations Active,CF01475151,01/10/2010,538.15,Third Party Payments,Other Establishments,Section 75 Adult Social Care,Contrib to S31 Partnership,
Aspirations Active,CF01475169,01/10/2010,559.90,Third Party Payments,Other Establishments,Section 75 Adult Social Care,Contrib to S31 Partnership,
Aspirations Active,CF01475170,01/10/2010,559.90,Third Party Payments,Other Establishments,Section 75 Adult Social Care,Contrib to S31 Partnership,
Aspirations Active,CF01475171,01/10/2010,559.90,Third Party Payments,Other Establishments,Section 75 Adult Social Care,Contrib to S31 Partnership,
Aspirations Active,CF01475184,01/10/2010,582.60,Third Party Payments,Other Establishments,Section 75 Adult Social Care,Contrib to S31 Partnership,
Aspirations Active,CF01475185,01/10/2010,582.60,Third Party Payments,Other Establishments,Section 75 Adult Social Care,Contrib to S31 Partnership,
Aspirations Active,CF01475186,01/10/2010,582.60,Third Party Payments,Other Establishments,Section 75 Adult Social Care,Contrib to S31 Partnership,
Aspirations Active,CF01475189,01/10/2010,548.90,Third Party Payments,Other Establishments,Section 75 Adult Social Care,Contrib to S31 Partnership,
Aspirations Active,CF01475190,01/10/2010,548.90,Third Party Payments,Other Establishments,Section 75 Adult Social Care,Contrib to S31 Partnership,
Aspirations Active,CF01475191,01/10/2010,548.90,Third Party Payments,Other Establishments,Section 75 Adult Social Care,Contrib to S31 Partnership,
Asset Advantage Limited,03995989,08/09/2010,800.00,Capital Financing Costs,Capital Financing Costs,Finance & Resources,Financing Costs,
Assoc of Directors of Adult Social Services,03991734,01/09/2010,"1,035.00",Supplies and Services,Expenses,Adult Social Care,Director of ASC & Hsg,
Assoc Of Electoral Administrators Ltd,04031237,01/10/2010,517.00,Supplies and Services,Expenses,Finance & Resources,Customer Services,
A TAD Ltd t/a Carewatch (Brighton & Hove),03990175,01/09/2010,"10,687.00",Third Party Payments,Other Establishments,Adult Social Care,Adult Social Care,
A TAD Ltd t/a Carewatch (Brighton & Hove),CF01444188,01/09/2010,-38.00,Customer and Client Receipts,Fees and Charges,Adult Social Care,Adult Social Care,
A TAD Ltd t/a Carewatch (Brighton & Hove),CF01444188,01/09/2010,539.59,Third Party Payments,Other Establishments,Adult Social Care,Adult Social Care,
A TAD Ltd t/a Carewatch (Brighton & Hove),CF01444189,01/09/2010,-38.00,Customer and Client Receipts,Fees and Charges,Adult Social Care,Adult Social Care,
A TAD Ltd t/a Carewatch (Brighton & Hove),CF01444189,01/09/2010,558.21,Third Party Payments,Other Establishments,Adult Social Care,Adult Social Care,
A TAD Ltd t/a Carewatch (Brighton & Hove),CF01444856,01/09/2010,-38.00,Customer and Client Receipts,Fees and Charges,Adult Social Care,Adult Social Care,
A TAD Ltd t/a Carewatch (Brighton & Hove),CF01444856,01/09/2010,539.59,Third Party Payments,Other Establishments,Adult Social Care,Adult Social Care,
A TAD Ltd t/a Carewatch (Brighton & Hove),CF01444857,01/09/2010,-38.00,Customer and Client Receipts,Fees and Charges,Adult Social Care,Adult Social Care,
A TAD Ltd t/a Carewatch (Brighton & Hove),CF01444857,01/09/2010,734.34,Third Party Payments,Other Establishments,Adult Social Care,Adult Social Care,
A TAD Ltd t/a Carewatch (Brighton & Hove),CF01452461,10/09/2010,-30.00,Customer and Client Receipts,Fees and Charges,Adult Social Care,Adult Social Care,
A TAD Ltd t/a Carewatch (Brighton & Hove),CF01452461,10/09/2010,637.84,Third Party Payments,Other Establishments,Adult Social Care,Adult Social Care,
A TAD Ltd t/a Carewatch (Brighton & Hove),CF01452462,10/09/2010,-30.00,Customer and Client Receipts,Fees and Charges,Adult Social Care,Adult Social Care,
A TAD Ltd t/a Carewatch (Brighton & Hove),CF01452462,10/09/2010,533.89,Third Party Payments,Other Establishments,Adult Social Care,Adult Social Care,
A TAD Ltd t/a Carewatch (Brighton & Hove),CF01452479,10/09/2010,505.83,Third Party Payments,Other Establishments,Adult Social Care,Adult Social Care,
A TAD Ltd t/a Carewatch (Brighton & Hove),CF01452480,10/09/2010,637.84,Third Party Payments,Other Establishments,Adult Social Care,Adult Social Care,
A TAD Ltd t/a Carewatch (Brighton & Hove),CF01452516,10/09/2010,-26.00,Customer and Client Receipts,Fees and Charges,Adult Social Care,Adult Social Care,
A TAD Ltd t/a Carewatch (Brighton & Hove),CF01452516,10/09/2010,637.84,Third Party Payments,Other Establishments,Adult Social Care,Adult Social Care,
A TAD Ltd t/a Carewatch (Brighton & Hove),CF01452522,10/09/2010,728.84,Third Party Payments,Other Establishments,Adult Social Care,Adult Social Care,
A TAD Ltd t/a Carewatch (Brighton & Hove),CF01452523,10/09/2010,759.00,Third Party Payments,Other Establishments,Adult Social Care,Adult Social Care,
A TAD Ltd t/a Carewatch (Brighton & Hove),CF01452552,10/09/2010,-38.00,Customer and Client Receipts,Fees and Charges,Adult Social Care,Adult Social Care,
A TAD Ltd t/a Carewatch (Brighton & Hove),CF01452552,10/09/2010,539.59,Third Party Payments,Other Establishments,Adult Social Care,Adult Social Care,
A TAD Ltd t/a Carewatch (Brighton & Hove),CF01452585,10/09/2010,647.92,Third Party Payments,Other Establishments,Adult Social Care,Adult Social Care,
A TAD Ltd t/a Carewatch (Brighton & Hove),CF01452586,10/09/2010,678.23,Third Party Payments,Other Establishments,Adult Social Care,Adult Social Care,
A TAD Ltd t/a Carewatch (Brighton & Hove),CF01452728,10/09/2010,717.20,Third Party Payments,Other Establishments,Adult Social Care,Adult Social Care,
A TAD Ltd t/a Carewatch (Brighton & Hove),CF01452729,10/09/2010,842.80,Third Party Payments,Other Establishments,Adult Social Care,Adult Social Care,
A TAD Ltd t/a Carewatch (Brighton & Hove),CF01452767,10/09/2010,637.84,Third Party Payments,Other Establishments,Adult Social Care,Adult Social Care,
A TAD Ltd t/a Carewatch (Brighton & Hove),CF01452768,10/09/2010,635.80,Third Party Payments,Other Establishments,Adult Social Care,Adult Social Care,
A TAD Ltd t/a Carewatch (Brighton & Hove),CF01452813,10/09/2010,582.80,Third Party Payments,Other Establishments,Section 75 Sussex Partnership,Contrib to S31 Partnership,
A TAD Ltd t/a Carewatch (Brighton & Hove),CF01452814,10/09/2010,842.80,Third Party Payments,Other Establishments,Section 75 Sussex Partnership,Contrib to S31 Partnership,
A TAD Ltd t/a Carewatch (Brighton & Hove),CF01470114,24/09/2010,540.03,Third Party Payments,Other Establishments,Adult Social Care,Adult Social Care,
A TAD Ltd t/a Carewatch (Brighton & Hove),CF01470115,24/09/2010,637.84,Third Party Payments,Other Establishments,Adult Social Care,Adult Social Care,
A TAD Ltd t/a Carewatch (Brighton & Hove),CF01470147,24/09/2010,-26.00,Customer and Client Receipts,Fees and Charges,Adult Social Care,Adult Social Care,
A TAD Ltd t/a Carewatch (Brighton & Hove),CF01470147,24/09/2010,637.84,Third Party Payments,Other Establishments,Adult Social Care,Adult Social Care,
A TAD Ltd t/a Carewatch (Brighton & Hove),CF01470177,24/09/2010,770.32,Third Party Payments,Other Establishments,Adult Social Care,Adult Social Care,
A TAD Ltd t/a Carewatch (Brighton & Hove),CF01470178,24/09/2010,759.00,Third Party Payments,Other Establishments,Adult Social Care,Adult Social Care,
A TAD Ltd t/a Carewatch (Brighton & Hove),CF01470202,24/09/2010,650.27,Third Party Payments,Other Establishments,Adult Social Care,Adult Social Care,
A TAD Ltd t/a Carewatch (Brighton & Hove),CF01470203,24/09/2010,678.23,Third Party Payments,Other Establishments,Adult Social Care,Adult Social Care,
A TAD Ltd t/a Carewatch (Brighton & Hove),CF01470249,24/09/2010,521.63,Third Party Payments,Other Establishments,Section 75 Sussex Partnership,Contrib to S31 Partnership,
A TAD Ltd t/a Carewatch (Brighton & Hove),CF01470293,24/09/2010,717.20,Third Party Payments,Other Establishments,Adult Social Care,Adult Social Care,
A TAD Ltd t/a Carewatch (Brighton & Hove),CF01470294,24/09/2010,842.80,Third Party Payments,Other Establishments,Adult Social Care,Adult Social Care,
A TAD Ltd t/a Carewatch (Brighton & Hove),CF01470406,24/09/2010,842.80,Third Party Payments,Other Establishments,Section 75 Sussex Partnership,Contrib to S31 Partnership,
A TAD Ltd t/a Carewatch (Brighton & Hove),CF01470488,24/09/2010,-38.00,Customer and Client Receipts,Fees and Charges,Adult Social Care,Adult Social Care,
A TAD Ltd t/a Carewatch (Brighton & Hove),CF01470488,24/09/2010,539.59,Third Party Payments,Other Establishments,Adult Social Care,Adult Social Care,
A TAD Ltd t/a Carewatch (Brighton & Hove),CF01470489,24/09/2010,-38.00,Customer and Client Receipts,Fees and Charges,Adult Social Care,Adult Social Care,
A TAD Ltd t/a Carewatch (Brighton & Hove),CF01470489,24/09/2010,543.15,Third Party Payments,Other Establishments,Adult Social Care,Adult Social Care,
A TAD Ltd t/a Carewatch (Brighton & Hove),CF01470520,24/09/2010,-58.00,Customer and Client Receipts,Fees and Charges,Section 75 Sussex Partnership,Contrib to S31 Partnership,
A TAD Ltd t/a Carewatch (Brighton & Hove),CF01470520,24/09/2010,637.84,Third Party Payments,Other Establishments,Section 75 Sussex Partnership,Contrib to S31 Partnership,
A TAD Ltd t/a Carewatch (Brighton & Hove),CF01470521,24/09/2010,-58.00,Customer and Client Receipts,Fees and Charges,Section 75 Sussex Partnership,Contrib to S31 Partnership,
A TAD Ltd t/a Carewatch (Brighton & Hove),CF01470521,24/09/2010,604.17,Third Party Payments,Other Establishments,Section 75 Sussex Partnership,Contrib to S31 Partnership,
A TAD Ltd t/a Carewatch (Brighton & Hove),CF01470543,24/09/2010,"1,025.64",Third Party Payments,Other Establishments,Section 75 Adult Social Care,Contrib to S31 Partnership,
A TAD Ltd t/a Carewatch (Brighton & Hove),CF01470544,24/09/2010,559.45,Third Party Payments,Other Establishments,Section 75 Adult Social Care,Contrib to S31 Partnership,
A TAD Ltd t/a Carewatch (Brighton & Hove),CF01470559,24/09/2010,-30.00,Customer and Client Receipts,Fees and Charges,Adult Social Care,Adult Social Care,
A TAD Ltd t/a Carewatch (Brighton & Hove),CF01470559,24/09/2010,637.84,Third Party Payments,Other Establishments,Adult Social Care,Adult Social Care,
A TAD Ltd t/a Carewatch (Brighton & Hove),CF01470683,24/09/2010,637.00,Third Party Payments,Other Establishments,Adult Social Care,Adult Social Care,
A TAD Ltd t/a Carewatch (Brighton & Hove),CF01470684,24/09/2010,637.84,Third Party Payments,Other Establishments,Adult Social Care,Adult Social Care,
A TAD Ltd t/a Carewatch (Brighton & Hove),CF01472791,29/09/2010,-58.00,Customer and Client Receipts,Fees and Charges,Section 75 Sussex Partnership,Contrib to S31 Partnership,
A TAD Ltd t/a Carewatch (Brighton & Hove),CF01472791,29/09/2010,637.84,Third Party Payments,Other Establishments,Section 75 Sussex Partnership,Contrib to S31 Partnership,
A TAD Ltd t/a Carewatch (Brighton & Hove),CF01472792,29/09/2010,556.59,Third Party Payments,Other Establishments,Section 75 Sussex Partnership,Contrib to S31 Partnership,
A TAD Ltd t/a Carewatch (Brighton & Hove),CF01475286,01/10/2010,550.24,Third Party Payments,Other Establishments,Adult Social Care,Adult Social Care,
A TAD Ltd t/a Carewatch (Brighton & Hove),CF01475287,01/10/2010,513.05,Third Party Payments,Other Establishments,Adult Social Care,Adult Social Care,
A TAD Ltd t/a Carewatch (Brighton & Hove),CF01475551,01/10/2010,-51.00,Customer and Client Receipts,Fees and Charges,Adult Social Care,Adult Social Care,
A TAD Ltd t/a Carewatch (Brighton & Hove),CF01475551,01/10/2010,639.94,Third Party Payments,Other Establishments,Adult Social Care,Adult Social Care,
A TAD Ltd t/a Carewatch (Brighton & Hove),CF01475552,01/10/2010,-51.00,Customer and Client Receipts,Fees and Charges,Adult Social Care,Adult Social Care,
A TAD Ltd t/a Carewatch (Brighton & Hove),CF01475552,01/10/2010,718.61,Third Party Payments,Other Establishments,Adult Social Care,Adult Social Care,
A TAD Ltd t/a Carewatch (Brighton & Hove),CF01475554,01/10/2010,-51.00,Customer and Client Receipts,Fees and Charges,Adult Social Care,Adult Social Care,
A TAD Ltd t/a Carewatch (Brighton & Hove),CF01475554,01/10/2010,718.61,Third Party Payments,Other Establishments,Adult Social Care,Adult Social Care,
ATCO Structures and Logistics UK Ltd,04009311,10/09/2010,"6,988.87",New Construction and Conversion,,Chilren & Young People's Trust,Area Integrated Working,
Atkins Ltd/Faithful & Gould Ltd,03963335,01/09/2010,"2,370.00",New Construction and Conversion,,"Housing, Culture & Capital",Major Projects & Regeneration,
Atkins Ltd/Faithful & Gould Ltd,04026679,29/09/2010,"2,370.00",New Construction and Conversion,,"Housing, Culture & Capital",Major Projects & Regeneration,
Atlas Direct Mail,03989649,01/09/2010,715.07,Supplies and Services,Miscellaneous Expenses,"Housing, Culture & Capital",Royal Pavilion & Museums,
ATS Euromaster Ltd,04040655,29/09/2010,464.61,Transport Related,Contract Hire and Operating Leas,Environment,Waste,
ATS Euromaster Ltd,04040655,29/09/2010,"1,979.83",Transport Related,Direct Transport Costs,Environment,Quality of Life & Green Spaces,
ATS Euromaster Ltd,04040655,29/09/2010,"5,660.89",Transport Related,Direct Transport Costs,Environment,Waste,
Audioactive 2,04018700,15/09/2010,"1,752.00",Supplies and Services,Miscellaneous Expenses,Chilren & Young People's Trust,Area Integrated Working,
Avco Systems Ltd,04002457,08/09/2010,"5,000.00",Supplies and Services,Communications and Computing,Finance & Resources,ICT,
Aviation Projects Ltd,04050548,29/09/2010,"1,500.00",Supplies and Services,Services,Finance & Resources,ICT,
Avon Estates (London) Ltd,0039172,01/09/2010,850.00,Premises Related,Rents Payable,"Housing, Culture & Capital",Housing Strategy,
Avon Estates (London) Ltd,0039460,15/09/2010,500.00,Premises Related,Rents Payable,"Housing, Culture & Capital",Housing Strategy,
Avon Estates (London) Ltd,0040086,01/10/2010,850.00,Premises Related,Rents Payable,"Housing, Culture & Capital",Housing Strategy,
AWCFA Limited,04021658,15/09/2010,"2,442.00",Supplies and Services,Services,Finance & Resources,ICT,
A.W. Matthews Ornamental Fabrication,03994922,03/09/2010,782.00,Premises Related,Repair Maintenance and Alterations,"Housing, Culture & Capital",Tourism & Venues,
A.W. Matthews Ornamental Fabrication,04002583,08/09/2010,"2,500.00",Premises Related,Repair Maintenance and Alterations,"Housing, Culture & Capital",Tourism & Venues,
AXA Sun Life Plc - SLUA Ltd,03984644,01/09/2010,"5,479.95",Premises Related,Premises Insurance,Adult Social Care,Housing Management,
AXA Sun Life Plc - SLUA Ltd,03984644,01/09/2010,"7,891.63",Premises Related,Repair Maintenance and Alterations,Adult Social Care,Housing Management,
AXA Sun Life Plc - SLUA Ltd,04061663,29/09/2010,"9,115.75",Premises Related,Rents Payable,"Housing, Culture & Capital",Royal Pavilion & Museums,
Baby Ducks Playgroup,UL01444427,01/09/2010,"2,909.00",Supplies and Services,Grants and Subscriptions,Chilren & Young People's Trust,Area Integrated Working,
Baby Ducks Playgroup,UL01473419,01/10/2010,"2,909.00",Supplies and Services,Grants and Subscriptions,Chilren & Young People's Trust,Area Integrated Working,
Back Care Solutions Limited,04011192,10/09/2010,887.36,Supplies and Services,Equipment Furniture and Materials,Finance & Resources,Customer Services,
Bailey Partnership,04012463,10/09/2010,"6,446.21",New Construction and Conversion,,Finance & Resources,Property & Design,
Bailey Partnership,04040752,22/09/2010,"1,950.00",New Construction and Conversion,,Finance & Resources,Property & Design,
Ballater House,CF01449433,08/09/2010,-71.15,Customer and Client Receipts,Fees and Charges,Section 75 Adult Social Care,Contrib to S31 Partnership,
Ballater House,CF01449433,08/09/2010,"1,995.00",Third Party Payments,Other Establishments,Section 75 Adult Social Care,Contrib to S31 Partnership,
Ballater House,CF01449434,08/09/2010,-71.15,Customer and Client Receipts,Fees and Charges,Section 75 Adult Social Care,Contrib to S31 Partnership,
Ballater House,CF01449434,08/09/2010,"1,995.00",Third Party Payments,Other Establishments,Section 75 Adult Social Care,Contrib to S31 Partnership,
Ballater House,CF01449435,08/09/2010,-71.15,Customer and Client Receipts,Fees and Charges,Section 75 Adult Social Care,Contrib to S31 Partnership,
Ballater House,CF01449435,08/09/2010,"1,995.00",Third Party Payments,Other Establishments,Section 75 Adult Social Care,Contrib to S31 Partnership,
Ballater House,CF01449436,08/09/2010,-71.15,Customer and Client Receipts,Fees and Charges,Section 75 Adult Social Care,Contrib to S31 Partnership,
Ballater House,CF01449436,08/09/2010,"1,995.00",Third Party Payments,Other Establishments,Section 75 Adult Social Care,Contrib to S31 Partnership,
Ballater House,CF01471442,29/09/2010,-71.15,Customer and Client Receipts,Fees and Charges,Section 75 Adult Social Care,Contrib to S31 Partnership,
Ballater House,CF01471442,29/09/2010,"1,995.00",Third Party Payments,Other Establishments,Section 75 Adult Social Care,Contrib to S31 Partnership,
Ballater House,CF01471443,29/09/2010,-71.15,Customer and Client Receipts,Fees and Charges,Section 75 Adult Social Care,Contrib to S31 Partnership,
Ballater House,CF01471443,29/09/2010,"1,995.00",Third Party Payments,Other Establishments,Section 75 Adult Social Care,Contrib to S31 Partnership,
Ballater House,CF01471444,29/09/2010,-71.15,Customer and Client Receipts,Fees and Charges,Section 75 Adult Social Care,Contrib to S31 Partnership,
Ballater House,CF01471444,29/09/2010,"1,995.00",Third Party Payments,Other Establishments,Section 75 Adult Social Care,Contrib to S31 Partnership,
Ballater House,CF01471445,29/09/2010,-71.15,Customer and Client Receipts,Fees and Charges,Section 75 Adult Social Care,Contrib to S31 Partnership,
Ballater House,CF01471445,29/09/2010,"1,995.00",Third Party Payments,Other Establishments,Section 75 Adult Social Care,Contrib to S31 Partnership,
Baqus Group Plc t/a Baqus Boxall Sayer ,03975909,08/09/2010,"1,540.00",Supplies and Services,Services,Finance & Resources,Property & Design,
Payment to Individual,0039441,10/09/2010,560.00,Premises Related,Rents Payable,"Housing, Culture & Capital",Housing Strategy,
Payment to Individual,0039764,22/09/2010,765.00,Premises Related,Rents Payable,"Housing, Culture & Capital",Housing Strategy,
Payment to Individual,0039765,22/09/2010,615.00,Premises Related,Rents Payable,"Housing, Culture & Capital",Housing Strategy,
Payment to Individual,0039766,22/09/2010,915.00,Premises Related,Rents Payable,"Housing, Culture & Capital",Housing Strategy,
Payment to Individual,0039767,22/09/2010,615.00,Premises Related,Rents Payable,"Housing, Culture & Capital",Housing Strategy,
Barber of Sheffield Ltd,04037257,22/09/2010,785.00,Supplies and Services,Equipment Furniture and Materials,Finance & Resources,Customer Services,
Barchester Healthcare Homes Ltd,CF01461236,22/09/2010,-141.43,Customer and Client Receipts,Fees and Charges,Adult Social Care,Adult Social Care,
Barchester Healthcare Homes Ltd,CF01461236,22/09/2010,"1,078.92",Third Party Payments,Other Establishments,Adult Social Care,Adult Social Care,
Barchester Healthcare Homes Ltd,CF01461237,22/09/2010,-141.43,Customer and Client Receipts,Fees and Charges,Adult Social Care,Adult Social Care,
Barchester Healthcare Homes Ltd,CF01461237,22/09/2010,"1,078.92",Third Party Payments,Other Establishments,Adult Social Care,Adult Social Care,
Barchester Healthcare Homes Ltd,CF01461238,22/09/2010,-141.43,Customer and Client Receipts,Fees and Charges,Adult Social Care,Adult Social Care,
Barchester Healthcare Homes Ltd,CF01461238,22/09/2010,"1,078.92",Third Party Payments,Other Establishments,Adult Social Care,Adult Social Care,
Barchester Healthcare Homes Ltd,CF01461239,22/09/2010,-141.43,Customer and Client Receipts,Fees and Charges,Adult Social Care,Adult Social Care,
Barchester Healthcare Homes Ltd,CF01461239,22/09/2010,"1,078.92",Third Party Payments,Other Establishments,Adult Social Care,Adult Social Care,
Barchester Healthcare t/a Dudwell St Mary,CF01473490,01/10/2010,-352.96,Customer and Client Receipts,Fees and Charges,Section 75 Sussex Partnership,Contrib to S31 Partnership,
Barchester Healthcare t/a Dudwell St Mary,CF01473490,01/10/2010,891.40,Third Party Payments,Other Establishments,Section 75 Sussex Partnership,Contrib to S31 Partnership,
Barchester Healthcare t/a Dudwell St Mary,CF01473491,01/10/2010,-352.96,Customer and Client Receipts,Fees and Charges,Section 75 Sussex Partnership,Contrib to S31 Partnership,
Barchester Healthcare t/a Dudwell St Mary,CF01473491,01/10/2010,891.40,Third Party Payments,Other Establishments,Section 75 Sussex Partnership,Contrib to S31 Partnership,
Barchester Healthcare t/a Dudwell St Mary,CF01473492,01/10/2010,-352.96,Customer and Client Receipts,Fees and Charges,Section 75 Sussex Partnership,Contrib to S31 Partnership,
Barchester Healthcare t/a Dudwell St Mary,CF01473492,01/10/2010,891.40,Third Party Payments,Other Establishments,Section 75 Sussex Partnership,Contrib to S31 Partnership,
Barchester Healthcare t/a Dudwell St Mary,CF01473493,01/10/2010,-352.96,Customer and Client Receipts,Fees and Charges,Section 75 Sussex Partnership,Contrib to S31 Partnership,
Barchester Healthcare t/a Dudwell St Mary,CF01473493,01/10/2010,891.40,Third Party Payments,Other Establishments,Section 75 Sussex Partnership,Contrib to S31 Partnership,
Barnardos,CF01443506,01/09/2010,"1,148.10",Third Party Payments,Other Establishments,Chilren & Young People's Trust,Commissioning & Governance,
Barnardos,CF01443507,01/09/2010,803.67,Third Party Payments,Other Establishments,Chilren & Young People's Trust,Commissioning & Governance,
Barnardos,CF01443508,01/09/2010,803.67,Third Party Payments,Other Establishments,Chilren & Young People's Trust,Commissioning & Governance,
Barnardos,CF01443509,01/09/2010,803.67,Third Party Payments,Other Establishments,Chilren & Young People's Trust,Commissioning & Governance,
Barnardos,CF01443510,01/09/2010,803.67,Third Party Payments,Other Establishments,Chilren & Young People's Trust,Commissioning & Governance,
Barnardos,CF01443511,01/09/2010,803.67,Third Party Payments,Other Establishments,Chilren & Young People's Trust,Commissioning & Governance,
Barnardos,CF01443512,01/09/2010,803.67,Third Party Payments,Other Establishments,Chilren & Young People's Trust,Commissioning & Governance,
Barnardos,CF01443513,01/09/2010,803.67,Third Party Payments,Other Establishments,Chilren & Young People's Trust,Commissioning & Governance,
Barnardos,CF01443514,01/09/2010,803.67,Third Party Payments,Other Establishments,Chilren & Young People's Trust,Commissioning & Governance,
Barnardos,CF01443515,01/09/2010,803.67,Third Party Payments,Other Establishments,Chilren & Young People's Trust,Commissioning & Governance,
Barnardos,CF01443516,01/09/2010,803.67,Third Party Payments,Other Establishments,Chilren & Young People's Trust,Commissioning & Governance,
Barnardos,CF01443517,01/09/2010,803.67,Third Party Payments,Other Establishments,Chilren & Young People's Trust,Commissioning & Governance,
Barnardos,CF01443518,01/09/2010,803.67,Third Party Payments,Other Establishments,Chilren & Young People's Trust,Commissioning & Governance,
Barnardos,CF01443526,01/09/2010,"11,595.81",Third Party Payments,Other Establishments,Chilren & Young People's Trust,Commissioning & Governance,
Barnardos,CF01443816,03/09/2010,803.67,Third Party Payments,Other Establishments,Chilren & Young People's Trust,Commissioning & Governance,
Barnardos,CF01443817,03/09/2010,803.67,Third Party Payments,Other Establishments,Chilren & Young People's Trust,Commissioning & Governance,
Barnardos,CF01443818,03/09/2010,803.67,Third Party Payments,Other Establishments,Chilren & Young People's Trust,Commissioning & Governance,
Barnardos,CF01443819,03/09/2010,803.67,Third Party Payments,Other Establishments,Chilren & Young People's Trust,Commissioning & Governance,
Barnardo Services Ltd,03991873,01/09/2010,"30,766.00",Third Party Payments,Other Agencies,Chilren & Young People's Trust,Learning Schools & Skills,
Barnes DAF,03989940,01/09/2010,683.90,Transport Related,Direct Transport Costs,Environment,Waste,
Bartlett Mechanical Services Ltd,04018425,15/09/2010,"2,918.00",Direct Employees,Salaries,Finance & Resources,Property & Design,
Batcheller Thacker,04017727,15/09/2010,"4,992.00",Supplies and Services,Services,Strategy & Governance,Legal and Democratic Services,
Bates Wells & Braithwaite London LLP,04009502,10/09/2010,"1,990.00",New Construction and Conversion,,"Housing, Culture & Capital",Culture & Economy,
Bay Media Ltd,03998928,10/09/2010,960.00,Supplies and Services,Miscellaneous Expenses,"Housing, Culture & Capital",Tourism & Venues,
Beach House Kingsdown Ltd,CF01444645,01/09/2010,-71.15,Customer and Client Receipts,Fees and Charges,Section 75 Adult Social Care,Contrib to S31 Partnership,
Beach House Kingsdown Ltd,CF01444645,01/09/2010,814.98,Third Party Payments,Other Establishments,Section 75 Adult Social Care,Contrib to S31 Partnership,
Beach House Kingsdown Ltd,CF01444646,01/09/2010,-71.15,Customer and Client Receipts,Fees and Charges,Section 75 Adult Social Care,Contrib to S31 Partnership,
Beach House Kingsdown Ltd,CF01444646,01/09/2010,814.98,Third Party Payments,Other Establishments,Section 75 Adult Social Care,Contrib to S31 Partnership,
Beach House Kingsdown Ltd,CF01444647,01/09/2010,-71.15,Customer and Client Receipts,Fees and Charges,Section 75 Adult Social Care,Contrib to S31 Partnership,
Beach House Kingsdown Ltd,CF01444647,01/09/2010,814.98,Third Party Payments,Other Establishments,Section 75 Adult Social Care,Contrib to S31 Partnership,
Beach House Kingsdown Ltd,CF01444648,01/09/2010,-71.15,Customer and Client Receipts,Fees and Charges,Section 75 Adult Social Care,Contrib to S31 Partnership,
Beach House Kingsdown Ltd,CF01444648,01/09/2010,814.98,Third Party Payments,Other Establishments,Section 75 Adult Social Care,Contrib to S31 Partnership,
Beacon,04008723,10/09/2010,"1,555.20",Supplies and Services,Miscellaneous Expenses,Environment,Leisure,
BeCCA Playgroup,04062675,01/10/2010,698.40,Supplies and Services,Miscellaneous Expenses,Chilren & Young People's Trust,Area Integrated Working,
BeCCA Playgroup,UL01444402,01/09/2010,751.30,Supplies and Services,Grants and Subscriptions,Chilren & Young People's Trust,Area Integrated Working,
BeCCA Playgroup,UL01473396,01/10/2010,691.00,Supplies and Services,Grants and Subscriptions,Chilren & Young People's Trust,Area Integrated Working,
Beech Lodge,CF01461273,22/09/2010,-84.10,Customer and Client Receipts,Fees and Charges,Section 75 Adult Social Care,Contrib to S31 Partnership,
Beech Lodge,CF01461273,22/09/2010,"1,594.93",Third Party Payments,Other Establishments,Section 75 Adult Social Care,Contrib to S31 Partnership,
Beech Lodge,CF01461274,22/09/2010,-84.10,Customer and Client Receipts,Fees and Charges,Section 75 Adult Social Care,Contrib to S31 Partnership,
Beech Lodge,CF01461274,22/09/2010,"1,594.93",Third Party Payments,Other Establishments,Section 75 Adult Social Care,Contrib to S31 Partnership,
Beech Lodge,CF01461275,22/09/2010,-84.10,Customer and Client Receipts,Fees and Charges,Section 75 Adult Social Care,Contrib to S31 Partnership,
Beech Lodge,CF01461275,22/09/2010,"1,594.93",Third Party Payments,Other Establishments,Section 75 Adult Social Care,Contrib to S31 Partnership,
Beech Lodge,CF01461276,22/09/2010,-84.10,Customer and Client Receipts,Fees and Charges,Section 75 Adult Social Care,Contrib to S31 Partnership,
Beech Lodge,CF01461276,22/09/2010,"1,594.93",Third Party Payments,Other Establishments,Section 75 Adult Social Care,Contrib to S31 Partnership,
BemroseBooth Ltd,03960383,01/09/2010,"2,380.00",Supplies and Services,Printing Stationery & General Office Expenses,Environment,Sustainable Transport&Planning,
BemroseBooth Ltd,03976128,08/09/2010,546.00,Supplies and Services,Printing Stationery & General Office Expenses,Environment,Sustainable Transport&Planning,
BemroseBooth Ltd,04061647,29/09/2010,500.00,Supplies and Services,Miscellaneous Expenses,Environment,Sustainable Transport&Planning,
BemroseBooth Ltd,04063690,01/10/2010,800.00,Supplies and Services,Printing Stationery & General Office Expenses,Environment,Sustainable Transport&Planning,
Payment to Individual,0039992,29/09/2010,825.00,Premises Related,Rents Payable,"Housing, Culture & Capital",Housing Strategy,
Beyond Skin Ltd,04008082,10/09/2010,630.00,Supplies and Services,Miscellaneous Expenses,Chilren & Young People's Trust,Area Integrated Working,
BHAFC Albion in the Community,03984220,01/09/2010,"7,000.00",Supplies and Services,Grants and Subscriptions,Chilren & Young People's Trust,Area Integrated Working,
BHAFC Albion in the Community,04057169,29/09/2010,"3,750.00",Supplies and Services,Grants and Subscriptions,Strategy & Governance,Communities & Equality,
BHASVIC,04020086,15/09/2010,"9,000.00",Indirect Employees,Training,Chilren & Young People's Trust,Learning Schools & Skills,
B & H Business Community Partnership,04055734,29/09/2010,"3,750.00",Supplies and Services,Grants and Subscriptions,Strategy & Governance,Communities & Equality,
Bike for Life,04057172,29/09/2010,"2,500.00",Supplies and Services,Grants and Subscriptions,Strategy & Governance,Communities & Equality,
Birchgrove Healthcare (Sussex) Ltd,CF01465457,22/09/2010,591.20,Third Party Payments,Other Establishments,Section 75 Sussex Partnership,Contrib to S31 Partnership,
Birchgrove Healthcare (Sussex) Ltd,CF01465458,22/09/2010,591.20,Third Party Payments,Other Establishments,Section 75 Sussex Partnership,Contrib to S31 Partnership,
Birchgrove Healthcare (Sussex) Ltd,CF01465459,22/09/2010,591.20,Third Party Payments,Other Establishments,Section 75 Sussex Partnership,Contrib to S31 Partnership,
Birchgrove Healthcare (Sussex) Ltd,CF01465460,22/09/2010,591.20,Third Party Payments,Other Establishments,Section 75 Sussex Partnership,Contrib to S31 Partnership,
Birchgrove Healthcare (Sussex) Ltd,CF01465465,22/09/2010,516.30,Third Party Payments,Other Establishments,Adult Social Care,Adult Social Care,
Birchgrove Healthcare (Sussex) Ltd,CF01465466,22/09/2010,516.30,Third Party Payments,Other Establishments,Adult Social Care,Adult Social Care,
Birchgrove Healthcare (Sussex) Ltd,CF01465467,22/09/2010,516.30,Third Party Payments,Other Establishments,Adult Social Care,Adult Social Care,
Birchgrove Healthcare (Sussex) Ltd,CF01465468,22/09/2010,516.30,Third Party Payments,Other Establishments,Adult Social Care,Adult Social Care,
Birchgrove Healthcare (Sussex) Ltd,CF01465473,22/09/2010,594.30,Third Party Payments,Other Establishments,Section 75 Sussex Partnership,Contrib to S31 Partnership,
Birchgrove Healthcare (Sussex) Ltd,CF01465474,22/09/2010,594.30,Third Party Payments,Other Establishments,Section 75 Sussex Partnership,Contrib to S31 Partnership,
Birchgrove Healthcare (Sussex) Ltd,CF01465475,22/09/2010,594.30,Third Party Payments,Other Establishments,Section 75 Sussex Partnership,Contrib to S31 Partnership,
Birchgrove Healthcare (Sussex) Ltd,CF01465476,22/09/2010,594.30,Third Party Payments,Other Establishments,Section 75 Sussex Partnership,Contrib to S31 Partnership,
Birchgrove Healthcare (Sussex) Ltd,CF01465481,22/09/2010,720.40,Third Party Payments,Other Establishments,Adult Social Care,Adult Social Care,
Birchgrove Healthcare (Sussex) Ltd,CF01465482,22/09/2010,720.40,Third Party Payments,Other Establishments,Adult Social Care,Adult Social Care,
Birchgrove Healthcare (Sussex) Ltd,CF01465483,22/09/2010,720.40,Third Party Payments,Other Establishments,Adult Social Care,Adult Social Care,
Birchgrove Healthcare (Sussex) Ltd,CF01465484,22/09/2010,720.40,Third Party Payments,Other Establishments,Adult Social Care,Adult Social Care,
Birchgrove Healthcare (Sussex) Ltd,CF01465485,22/09/2010,549.40,Third Party Payments,Other Establishments,Section 75 Sussex Partnership,Contrib to S31 Partnership,
Birchgrove Healthcare (Sussex) Ltd,CF01465486,22/09/2010,549.40,Third Party Payments,Other Establishments,Section 75 Sussex Partnership,Contrib to S31 Partnership,
Birchgrove Healthcare (Sussex) Ltd,CF01465487,22/09/2010,549.40,Third Party Payments,Other Establishments,Section 75 Sussex Partnership,Contrib to S31 Partnership,
Birchgrove Healthcare (Sussex) Ltd,CF01465488,22/09/2010,549.40,Third Party Payments,Other Establishments,Section 75 Sussex Partnership,Contrib to S31 Partnership,
Birchgrove Healthcare (Sussex) Ltd,CF01465497,22/09/2010,552.40,Third Party Payments,Other Establishments,Section 75 Sussex Partnership,Contrib to S31 Partnership,
Birchgrove Healthcare (Sussex) Ltd,CF01465498,22/09/2010,552.40,Third Party Payments,Other Establishments,Section 75 Sussex Partnership,Contrib to S31 Partnership,
Birchgrove Healthcare (Sussex) Ltd,CF01465499,22/09/2010,552.40,Third Party Payments,Other Establishments,Section 75 Sussex Partnership,Contrib to S31 Partnership,
Birchgrove Healthcare (Sussex) Ltd,CF01465500,22/09/2010,552.40,Third Party Payments,Other Establishments,Section 75 Sussex Partnership,Contrib to S31 Partnership,
Birchgrove Healthcare (Sussex) Ltd,CF01465501,22/09/2010,559.30,Third Party Payments,Other Establishments,Section 75 Sussex Partnership,Contrib to S31 Partnership,
Birchgrove Healthcare (Sussex) Ltd,CF01465502,22/09/2010,559.30,Third Party Payments,Other Establishments,Section 75 Sussex Partnership,Contrib to S31 Partnership,
Birchgrove Healthcare (Sussex) Ltd,CF01465503,22/09/2010,559.30,Third Party Payments,Other Establishments,Section 75 Sussex Partnership,Contrib to S31 Partnership,
Birchgrove Healthcare (Sussex) Ltd,CF01465504,22/09/2010,559.30,Third Party Payments,Other Establishments,Section 75 Sussex Partnership,Contrib to S31 Partnership,
Birchgrove Healthcare (Sussex) Ltd,CF01465517,22/09/2010,897.00,Third Party Payments,Other Establishments,Section 75 Adult Social Care,Contrib to S31 Partnership,
Birchgrove Healthcare (Sussex) Ltd,CF01465518,22/09/2010,897.00,Third Party Payments,Other Establishments,Section 75 Adult Social Care,Contrib to S31 Partnership,
Birchgrove Healthcare (Sussex) Ltd,CF01465519,22/09/2010,897.00,Third Party Payments,Other Establishments,Section 75 Adult Social Care,Contrib to S31 Partnership,
Birchgrove Healthcare (Sussex) Ltd,CF01465520,22/09/2010,897.00,Third Party Payments,Other Establishments,Section 75 Adult Social Care,Contrib to S31 Partnership,
Birchgrove Healthcare (Sussex) Ltd,CF01465521,22/09/2010,"1,045.00",Third Party Payments,Other Establishments,Section 75 Adult Social Care,Contrib to S31 Partnership,
Birchgrove Healthcare (Sussex) Ltd,CF01465522,22/09/2010,"1,045.00",Third Party Payments,Other Establishments,Section 75 Adult Social Care,Contrib to S31 Partnership,
Birchgrove Healthcare (Sussex) Ltd,CF01465523,22/09/2010,"1,045.00",Third Party Payments,Other Establishments,Section 75 Adult Social Care,Contrib to S31 Partnership,
Birchgrove Healthcare (Sussex) Ltd,CF01465524,22/09/2010,"1,045.00",Third Party Payments,Other Establishments,Section 75 Adult Social Care,Contrib to S31 Partnership,
Birchgrove Healthcare (Sussex) Ltd,CF01465567,22/09/2010,552.40,Third Party Payments,Other Establishments,Adult Social Care,Adult Social Care,
Birchgrove Healthcare (Sussex) Ltd,CF01465568,22/09/2010,552.40,Third Party Payments,Other Establishments,Adult Social Care,Adult Social Care,
Birchgrove Healthcare (Sussex) Ltd,CF01465569,22/09/2010,552.40,Third Party Payments,Other Establishments,Adult Social Care,Adult Social Care,
Birchgrove Healthcare (Sussex) Ltd,CF01465570,22/09/2010,552.40,Third Party Payments,Other Establishments,Adult Social Care,Adult Social Care,
Birchgrove Healthcare (Sussex) Ltd,CF01465571,22/09/2010,552.40,Third Party Payments,Other Establishments,Adult Social Care,Adult Social Care,
Birchgrove Healthcare (Sussex) Ltd,CF01465572,22/09/2010,552.40,Third Party Payments,Other Establishments,Adult Social Care,Adult Social Care,
Birchgrove Healthcare (Sussex) Ltd,CF01465573,22/09/2010,552.40,Third Party Payments,Other Establishments,Adult Social Care,Adult Social Care,
Birchgrove Healthcare (Sussex) Ltd,CF01465574,22/09/2010,552.40,Third Party Payments,Other Establishments,Adult Social Care,Adult Social Care,
Birchgrove Healthcare (Sussex) Ltd,CF01465575,22/09/2010,552.40,Third Party Payments,Other Establishments,Adult Social Care,Adult Social Care,
Birchgrove Healthcare (Sussex) Ltd,CF01465576,22/09/2010,-89.50,Customer and Client Receipts,Fees and Charges,Adult Social Care,Adult Social Care,
Birchgrove Healthcare (Sussex) Ltd,CF01465576,22/09/2010,597.06,Third Party Payments,Other Establishments,Adult Social Care,Adult Social Care,
Birchgrove Healthcare (Sussex) Ltd,CF01465577,22/09/2010,-89.50,Customer and Client Receipts,Fees and Charges,Adult Social Care,Adult Social Care,
Birchgrove Healthcare (Sussex) Ltd,CF01465577,22/09/2010,597.06,Third Party Payments,Other Establishments,Adult Social Care,Adult Social Care,
Birchgrove Healthcare (Sussex) Ltd,CF01465578,22/09/2010,-89.50,Customer and Client Receipts,Fees and Charges,Adult Social Care,Adult Social Care,
Birchgrove Healthcare (Sussex) Ltd,CF01465578,22/09/2010,597.06,Third Party Payments,Other Establishments,Adult Social Care,Adult Social Care,
Birchgrove Healthcare (Sussex) Ltd,CF01465579,22/09/2010,-89.50,Customer and Client Receipts,Fees and Charges,Adult Social Care,Adult Social Care,
Birchgrove Healthcare (Sussex) Ltd,CF01465579,22/09/2010,597.06,Third Party Payments,Other Establishments,Adult Social Care,Adult Social Care,
Birchwood Grove Nursing Home,CF01451433,10/09/2010,-110.30,Customer and Client Receipts,Fees and Charges,Adult Social Care,Adult Social Care,
Birchwood Grove Nursing Home,CF01451433,10/09/2010,613.30,Third Party Payments,Other Establishments,Adult Social Care,Adult Social Care,
Birchwood Grove Nursing Home,CF01451434,10/09/2010,-110.30,Customer and Client Receipts,Fees and Charges,Adult Social Care,Adult Social Care,
Birchwood Grove Nursing Home,CF01451434,10/09/2010,613.30,Third Party Payments,Other Establishments,Adult Social Care,Adult Social Care,
Birchwood Grove Nursing Home,CF01451435,10/09/2010,-110.30,Customer and Client Receipts,Fees and Charges,Adult Social Care,Adult Social Care,
Birchwood Grove Nursing Home,CF01451435,10/09/2010,613.30,Third Party Payments,Other Establishments,Adult Social Care,Adult Social Care,
Birchwood Grove Nursing Home,CF01451436,10/09/2010,-110.30,Customer and Client Receipts,Fees and Charges,Adult Social Care,Adult Social Care,
Birchwood Grove Nursing Home,CF01451436,10/09/2010,613.30,Third Party Payments,Other Establishments,Adult Social Care,Adult Social Care,
Birchwood Grove Nursing Home,CF01451437,10/09/2010,571.40,Third Party Payments,Other Establishments,Section 75 Sussex Partnership,Contrib to S31 Partnership,
Birchwood Grove Nursing Home,CF01451438,10/09/2010,571.40,Third Party Payments,Other Establishments,Section 75 Sussex Partnership,Contrib to S31 Partnership,
Birchwood Grove Nursing Home,CF01451439,10/09/2010,571.40,Third Party Payments,Other Establishments,Section 75 Sussex Partnership,Contrib to S31 Partnership,
Birchwood Grove Nursing Home,CF01451440,10/09/2010,571.40,Third Party Payments,Other Establishments,Section 75 Sussex Partnership,Contrib to S31 Partnership,
Birchwood Grove Nursing Home,CF01451457,10/09/2010,707.30,Third Party Payments,Other Establishments,Section 75 Sussex Partnership,Contrib to S31 Partnership,
Birchwood Grove Nursing Home,CF01451458,10/09/2010,707.30,Third Party Payments,Other Establishments,Section 75 Sussex Partnership,Contrib to S31 Partnership,
Birchwood Grove Nursing Home,CF01451459,10/09/2010,707.30,Third Party Payments,Other Establishments,Section 75 Sussex Partnership,Contrib to S31 Partnership,
Birchwood Grove Nursing Home,CF01451460,10/09/2010,707.30,Third Party Payments,Other Establishments,Section 75 Sussex Partnership,Contrib to S31 Partnership,
Bishop`s Move,04022851,15/09/2010,"2,314.00",Supplies and Services,Miscellaneous Expenses,"Housing, Culture & Capital",Housing Strategy,
Bishop`s Move,04033138,22/09/2010,"5,504.60",Supplies and Services,Miscellaneous Expenses,"Housing, Culture & Capital",Housing Strategy,
Bishop`s Move,04033154,22/09/2010,894.40,Supplies and Services,Miscellaneous Expenses,"Housing, Culture & Capital",Housing Strategy,
Bishop`s Move,04051686,29/09/2010,"3,722.00",Supplies and Services,Miscellaneous Expenses,"Housing, Culture & Capital",Housing Strategy,
Bishop`s Move,04051699,29/09/2010,963.20,Supplies and Services,Miscellaneous Expenses,"Housing, Culture & Capital",Housing Strategy,
Bizspace Ltd,04067133,01/10/2010,"2,241.28",Premises Related,Premises Insurance,"Housing, Culture & Capital",Culture & Economy,
Bizspace Ltd,04067159,01/10/2010,659.20,Premises Related,Premises Insurance,"Housing, Culture & Capital",Culture & Economy,
B & J G Richardson Business Account,CF01466165,22/09/2010,"-1,054.82",Customer and Client Receipts,Fees and Charges,Adult Social Care,Adult Social Care,
B & J G Richardson Business Account,CF01466165,22/09/2010,"1,827.53",Third Party Payments,Other Establishments,Adult Social Care,Adult Social Care,
B & J G Richardson Business Account,CF01466166,22/09/2010,"-1,054.82",Customer and Client Receipts,Fees and Charges,Adult Social Care,Adult Social Care,
B & J G Richardson Business Account,CF01466166,22/09/2010,"1,827.53",Third Party Payments,Other Establishments,Adult Social Care,Adult Social Care,
B & J G Richardson Business Account,CF01466167,22/09/2010,"-1,054.82",Customer and Client Receipts,Fees and Charges,Adult Social Care,Adult Social Care,
B & J G Richardson Business Account,CF01466167,22/09/2010,"1,827.53",Third Party Payments,Other Establishments,Adult Social Care,Adult Social Care,
B & J G Richardson Business Account,CF01466168,22/09/2010,"-1,054.82",Customer and Client Receipts,Fees and Charges,Adult Social Care,Adult Social Care,
B & J G Richardson Business Account,CF01466168,22/09/2010,"1,827.53",Third Party Payments,Other Establishments,Adult Social Care,Adult Social Care,
B & J G Richardson Business Account,CF01466169,22/09/2010,"-1,054.82",Customer and Client Receipts,Fees and Charges,Adult Social Care,Adult Social Care,
B & J G Richardson Business Account,CF01466169,22/09/2010,"1,827.53",Third Party Payments,Other Establishments,Adult Social Care,Adult Social Care,
Blackburns 0f Bolton Ltd,04065397,01/10/2010,"1,465.00",Supplies and Services,Printing Stationery & General Office Expenses,Chilren & Young People's Trust,Learning Schools & Skills,
Blackburns Metals Ltd,03966633,01/09/2010,697.80,Supplies and Services,Services,Strategy & Governance,Communications,
Black & Minority Ethnic Comm Partnership,04056092,29/09/2010,"6,000.00",Supplies and Services,Grants and Subscriptions,Strategy & Governance,Communities & Equality,
Blockbusters Contracts Ltd,03985711,01/09/2010,"1,795.00",Premises Related,Repair Maintenance and Alterations,Finance & Resources,Property & Design,
Blockbusters Contracts Ltd,04067049,01/10/2010,"9,300.00",New Construction and Conversion,,Environment,Sustainable Transport&Planning,
Blockbusters Contracts Ltd,04067049,01/10/2010,"2,300.00",Premises Related,Repair Maintenance and Alterations,Environment,Sustainable Transport&Planning,
Blueberry Nursery & Early Learning Organisation Ld,UL01444367,01/09/2010,"7,902.00",Supplies and Services,Grants and Subscriptions,Chilren & Young People's Trust,Area Integrated Working,
Blueberry Nursery & Early Learning Organisation Ld,UL01473467,01/10/2010,"7,902.00",Supplies and Services,Grants and Subscriptions,Chilren & Young People's Trust,Area Integrated Working,
Blueprint Management Systems Ltd,04021153,15/09/2010,"8,947.57",Supplies and Services,Communications and Computing,Finance & Resources,ICT,
Blue Sky Fostering Limited,CF01454564,15/09/2010,811.30,Third Party Payments,Other Establishments,Chilren & Young People's Trust,Commissioning & Governance,
Blue Sky Fostering Limited,CF01454565,15/09/2010,811.30,Third Party Payments,Other Establishments,Chilren & Young People's Trust,Commissioning & Governance,
Blue Sky Fostering Limited,CF01454566,15/09/2010,811.30,Third Party Payments,Other Establishments,Chilren & Young People's Trust,Commissioning & Governance,
Blue Sky Fostering Limited,CF01454567,15/09/2010,811.30,Third Party Payments,Other Establishments,Chilren & Young People's Trust,Commissioning & Governance,
Blue Sky Fostering Limited,CF01454569,15/09/2010,811.30,Third Party Payments,Other Establishments,Chilren & Young People's Trust,Commissioning & Governance,
Blue Sky Fostering Limited,CF01454570,15/09/2010,811.30,Third Party Payments,Other Establishments,Chilren & Young People's Trust,Commissioning & Governance,
Blue Sky Fostering Limited,CF01454571,15/09/2010,811.30,Third Party Payments,Other Establishments,Chilren & Young People's Trust,Commissioning & Governance,
Blue Sky Fostering Limited,CF01454572,15/09/2010,811.30,Third Party Payments,Other Establishments,Chilren & Young People's Trust,Commissioning & Governance,
Blue Sky Fostering Limited,CF01462736,22/09/2010,"1,043.10",Third Party Payments,Other Establishments,Chilren & Young People's Trust,Commissioning & Governance,
Blue Sky Fostering Limited,CF01462737,22/09/2010,811.30,Third Party Payments,Other Establishments,Chilren & Young People's Trust,Commissioning & Governance,
Blue Sky Fostering Limited,CF01462738,22/09/2010,811.30,Third Party Payments,Other Establishments,Chilren & Young People's Trust,Commissioning & Governance,
Blue Sky Fostering Limited,CF01462739,22/09/2010,811.30,Third Party Payments,Other Establishments,Chilren & Young People's Trust,Commissioning & Governance,
Blue Sky Fostering Limited,CF01462740,22/09/2010,"1,043.10",Third Party Payments,Other Establishments,Chilren & Young People's Trust,Commissioning & Governance,
Blue Sky Fostering Limited,CF01462741,22/09/2010,811.30,Third Party Payments,Other Establishments,Chilren & Young People's Trust,Commissioning & Governance,
Blue Sky Fostering Limited,CF01462742,22/09/2010,811.30,Third Party Payments,Other Establishments,Chilren & Young People's Trust,Commissioning & Governance,
Blue Sky Fostering Limited,CF01462743,22/09/2010,811.30,Third Party Payments,Other Establishments,Chilren & Young People's Trust,Commissioning & Governance,
Boomerang Kids,UL01444403,01/09/2010,"5,736.00",Supplies and Services,Grants and Subscriptions,Chilren & Young People's Trust,Area Integrated Working,
Boomerang Kids,UL01473397,01/10/2010,"5,736.00",Supplies and Services,Grants and Subscriptions,Chilren & Young People's Trust,Area Integrated Working,
Borough Green Primary School,03998711,08/09/2010,"1,050.00",Supplies and Services,Services,Chilren & Young People's Trust,Learning Schools & Skills,
Bowles Rocks Trust Ltd,03983344,10/09/2010,"3,396.00",Supplies and Services,Miscellaneous Expenses,Chilren & Young People's Trust,Area Integrated Working,
Bradfield House,CF01445436,01/09/2010,-71.15,Customer and Client Receipts,Fees and Charges,Section 75 Adult Social Care,Contrib to S31 Partnership,
Bradfield House,CF01445436,01/09/2010,"1,515.00",Third Party Payments,Other Establishments,Section 75 Adult Social Care,Contrib to S31 Partnership,
Bradfield House,CF01445437,01/09/2010,-71.15,Customer and Client Receipts,Fees and Charges,Section 75 Adult Social Care,Contrib to S31 Partnership,
Bradfield House,CF01445437,01/09/2010,"1,515.00",Third Party Payments,Other Establishments,Section 75 Adult Social Care,Contrib to S31 Partnership,
Bradfield House,CF01445438,01/09/2010,-71.15,Customer and Client Receipts,Fees and Charges,Section 75 Adult Social Care,Contrib to S31 Partnership,
Bradfield House,CF01445438,01/09/2010,"1,515.00",Third Party Payments,Other Establishments,Section 75 Adult Social Care,Contrib to S31 Partnership,
Bradfield House,CF01445439,01/09/2010,-71.15,Customer and Client Receipts,Fees and Charges,Section 75 Adult Social Care,Contrib to S31 Partnership,
Bradfield House,CF01445439,01/09/2010,"1,515.00",Third Party Payments,Other Establishments,Section 75 Adult Social Care,Contrib to S31 Partnership,
Bradfield House,CF01471450,29/09/2010,-71.15,Customer and Client Receipts,Fees and Charges,Section 75 Adult Social Care,Contrib to S31 Partnership,
Bradfield House,CF01471450,29/09/2010,"1,515.00",Third Party Payments,Other Establishments,Section 75 Adult Social Care,Contrib to S31 Partnership,
Bradfield House,CF01471451,29/09/2010,-71.15,Customer and Client Receipts,Fees and Charges,Section 75 Adult Social Care,Contrib to S31 Partnership,
Bradfield House,CF01471451,29/09/2010,"1,515.00",Third Party Payments,Other Establishments,Section 75 Adult Social Care,Contrib to S31 Partnership,
Bradfield House,CF01471452,29/09/2010,-71.15,Customer and Client Receipts,Fees and Charges,Section 75 Adult Social Care,Contrib to S31 Partnership,
Bradfield House,CF01471452,29/09/2010,"1,515.00",Third Party Payments,Other Establishments,Section 75 Adult Social Care,Contrib to S31 Partnership,
Bradfield House,CF01471453,29/09/2010,-71.15,Customer and Client Receipts,Fees and Charges,Section 75 Adult Social Care,Contrib to S31 Partnership,
Bradfield House,CF01471453,29/09/2010,"1,515.00",Third Party Payments,Other Establishments,Section 75 Adult Social Care,Contrib to S31 Partnership,
Bramber Nursing Home Ltd,CF01463156,22/09/2010,676.40,Third Party Payments,Other Establishments,Section 75 Sussex Partnership,Contrib to S31 Partnership,
Bramber Nursing Home Ltd,CF01463157,22/09/2010,676.40,Third Party Payments,Other Establishments,Section 75 Sussex Partnership,Contrib to S31 Partnership,
Bramber Nursing Home Ltd,CF01463158,22/09/2010,676.40,Third Party Payments,Other Establishments,Section 75 Sussex Partnership,Contrib to S31 Partnership,
Bramber Nursing Home Ltd,CF01463159,22/09/2010,676.40,Third Party Payments,Other Establishments,Section 75 Sussex Partnership,Contrib to S31 Partnership,
Bramble Care Homes Ltd,CF01463160,22/09/2010,-118.70,Customer and Client Receipts,Fees and Charges,Adult Social Care,Adult Social Care,
Bramble Care Homes Ltd,CF01463160,22/09/2010,635.00,Third Party Payments,Other Establishments,Adult Social Care,Adult Social Care,
Bramble Care Homes Ltd,CF01463161,22/09/2010,-118.70,Customer and Client Receipts,Fees and Charges,Adult Social Care,Adult Social Care,
Bramble Care Homes Ltd,CF01463161,22/09/2010,635.00,Third Party Payments,Other Establishments,Adult Social Care,Adult Social Care,
Bramble Care Homes Ltd,CF01463162,22/09/2010,-118.70,Customer and Client Receipts,Fees and Charges,Adult Social Care,Adult Social Care,
Bramble Care Homes Ltd,CF01463162,22/09/2010,635.00,Third Party Payments,Other Establishments,Adult Social Care,Adult Social Care,
Bramble Care Homes Ltd,CF01463163,22/09/2010,-118.70,Customer and Client Receipts,Fees and Charges,Adult Social Care,Adult Social Care,
Bramble Care Homes Ltd,CF01463163,22/09/2010,635.00,Third Party Payments,Other Establishments,Adult Social Care,Adult Social Care,
Brambles Respite Care Hotel,CF01450141,08/09/2010,675.40,Third Party Payments,Other Establishments,Adult Social Care,Adult Social Care,
Bricks 2 Mortar Construction Company Ltd,03990094,01/09/2010,"17,100.00",New Construction and Conversion,,Chilren & Young People's Trust,Director Childrens Services,
Bricks 2 Mortar Construction Company Ltd,03990308,01/09/2010,"43,700.00",New Construction and Conversion,,Chilren & Young People's Trust,Director Childrens Services,
Bricks 2 Mortar Construction Company Ltd,04030908,17/09/2010,797.80,New Construction and Conversion,,Chilren & Young People's Trust,Director Childrens Services,
Bridge Community Education Centre,04015703,15/09/2010,"7,570.00",Supplies and Services,Miscellaneous Expenses,Chilren & Young People's Trust,Learning Schools & Skills,
Bridge Management Trng Ltd t/a Bridge,04010821,10/09/2010,559.40,Supplies and Services,Services,Environment,Director of Environment,
Brief Therapy Practice,03980761,08/09/2010,550.00,Indirect Employees,Training,Adult Social Care,Adult Social Care,
Brighter Futures Foster Care Ltd,CF01454669,15/09/2010,700.71,Third Party Payments,Other Establishments,Chilren & Young People's Trust,Commissioning & Governance,
Brighter Futures Foster Care Ltd,CF01454670,15/09/2010,860.00,Third Party Payments,Other Establishments,Chilren & Young People's Trust,Commissioning & Governance,
Brighter Futures Foster Care Ltd,CF01454671,15/09/2010,860.00,Third Party Payments,Other Establishments,Chilren & Young People's Trust,Commissioning & Governance,
Brighter Futures Foster Care Ltd,CF01454672,15/09/2010,860.00,Third Party Payments,Other Establishments,Chilren & Young People's Trust,Commissioning & Governance,
Brighter Futures Foster Care Ltd,CF01454673,15/09/2010,860.00,Third Party Payments,Other Establishments,Chilren & Young People's Trust,Commissioning & Governance,
Brighter Futures Foster Care Ltd,CF01454674,15/09/2010,620.66,Third Party Payments,Other Establishments,Chilren & Young People's Trust,Commissioning & Governance,
Brighter Futures Foster Care Ltd,CF01454675,15/09/2010,620.66,Third Party Payments,Other Establishments,Chilren & Young People's Trust,Commissioning & Governance,
Brighter Futures Foster Care Ltd,CF01454676,15/09/2010,620.66,Third Party Payments,Other Establishments,Chilren & Young People's Trust,Commissioning & Governance,
Brighter Futures Foster Care Ltd,CF01454677,15/09/2010,620.66,Third Party Payments,Other Establishments,Chilren & Young People's Trust,Commissioning & Governance,
Brighter Futures Foster Care Ltd,CF01454678,15/09/2010,620.66,Third Party Payments,Other Establishments,Chilren & Young People's Trust,Commissioning & Governance,
Brighter Futures Foster Care Ltd,CF01454680,15/09/2010,620.66,Third Party Payments,Other Establishments,Chilren & Young People's Trust,Commissioning & Governance,
Brighter Futures Foster Care Ltd,CF01454681,15/09/2010,620.66,Third Party Payments,Other Establishments,Chilren & Young People's Trust,Commissioning & Governance,
Brighter Futures Foster Care Ltd,CF01454682,15/09/2010,620.66,Third Party Payments,Other Establishments,Chilren & Young People's Trust,Commissioning & Governance,
Brighter Futures Foster Care Ltd,CF01454683,15/09/2010,620.66,Third Party Payments,Other Establishments,Chilren & Young People's Trust,Commissioning & Governance,
Brighter Futures Foster Care Ltd,CF01454685,15/09/2010,620.66,Third Party Payments,Other Establishments,Chilren & Young People's Trust,Commissioning & Governance,
Brighter Futures Foster Care Ltd,CF01454686,15/09/2010,620.66,Third Party Payments,Other Establishments,Chilren & Young People's Trust,Commissioning & Governance,
Brighter Futures Foster Care Ltd,CF01454687,15/09/2010,620.66,Third Party Payments,Other Establishments,Chilren & Young People's Trust,Commissioning & Governance,
Brighter Futures Foster Care Ltd,CF01454688,15/09/2010,620.66,Third Party Payments,Other Establishments,Chilren & Young People's Trust,Commissioning & Governance,
Brighter Futures Foster Care Ltd,CF01454690,15/09/2010,620.66,Third Party Payments,Other Establishments,Chilren & Young People's Trust,Commissioning & Governance,
Brighter Futures Foster Care Ltd,CF01454691,15/09/2010,620.66,Third Party Payments,Other Establishments,Chilren & Young People's Trust,Commissioning & Governance,
Brighter Futures Foster Care Ltd,CF01454692,15/09/2010,620.66,Third Party Payments,Other Establishments,Chilren & Young People's Trust,Commissioning & Governance,
Brighter Futures Foster Care Ltd,CF01454693,15/09/2010,620.66,Third Party Payments,Other Establishments,Chilren & Young People's Trust,Commissioning & Governance,
Brighter Futures Foster Care Ltd,CF01454695,15/09/2010,620.66,Third Party Payments,Other Establishments,Chilren & Young People's Trust,Commissioning & Governance,
Brighter Futures Foster Care Ltd,CF01454696,15/09/2010,620.66,Third Party Payments,Other Establishments,Chilren & Young People's Trust,Commissioning & Governance,
Brighter Futures Foster Care Ltd,CF01454697,15/09/2010,620.66,Third Party Payments,Other Establishments,Chilren & Young People's Trust,Commissioning & Governance,
Brighter Futures Foster Care Ltd,CF01454698,15/09/2010,620.66,Third Party Payments,Other Establishments,Chilren & Young People's Trust,Commissioning & Governance,
Brighter Futures Foster Care Ltd,CF01454700,15/09/2010,620.66,Third Party Payments,Other Establishments,Chilren & Young People's Trust,Commissioning & Governance,
Brighter Futures Foster Care Ltd,CF01454701,15/09/2010,620.66,Third Party Payments,Other Establishments,Chilren & Young People's Trust,Commissioning & Governance,
Brighter Futures Foster Care Ltd,CF01454702,15/09/2010,620.66,Third Party Payments,Other Establishments,Chilren & Young People's Trust,Commissioning & Governance,
Brighter Futures Foster Care Ltd,CF01454703,15/09/2010,620.66,Third Party Payments,Other Establishments,Chilren & Young People's Trust,Commissioning & Governance,
Brighter Futures Foster Care Ltd,CF01454705,15/09/2010,760.00,Third Party Payments,Other Establishments,Chilren & Young People's Trust,Commissioning & Governance,
Brighter Futures Foster Care Ltd,CF01454706,15/09/2010,760.00,Third Party Payments,Other Establishments,Chilren & Young People's Trust,Commissioning & Governance,
Brighter Futures Foster Care Ltd,CF01454707,15/09/2010,760.00,Third Party Payments,Other Establishments,Chilren & Young People's Trust,Commissioning & Governance,
Brighter Futures Foster Care Ltd,CF01454708,15/09/2010,760.00,Third Party Payments,Other Establishments,Chilren & Young People's Trust,Commissioning & Governance,
Brighter Futures Foster Care Ltd,CF01454710,15/09/2010,760.00,Third Party Payments,Other Establishments,Chilren & Young People's Trust,Commissioning & Governance,
Brighter Futures Foster Care Ltd,CF01454711,15/09/2010,760.00,Third Party Payments,Other Establishments,Chilren & Young People's Trust,Commissioning & Governance,
Brighter Futures Foster Care Ltd,CF01454712,15/09/2010,760.00,Third Party Payments,Other Establishments,Chilren & Young People's Trust,Commissioning & Governance,
Brighter Futures Foster Care Ltd,CF01454713,15/09/2010,760.00,Third Party Payments,Other Establishments,Chilren & Young People's Trust,Commissioning & Governance,
Brighthelm Church & Community Centre Trust Ltd,UL01444335,01/09/2010,688.40,Supplies and Services,Grants and Subscriptions,Chilren & Young People's Trust,Area Integrated Working,
Brighthelm Church & Community Centre Trust Ltd,UL01473436,01/10/2010,590.00,Supplies and Services,Grants and Subscriptions,Chilren & Young People's Trust,Area Integrated Working,
Brighthelm Security Limited,04025874,17/09/2010,"1,848.00",Premises Related,Repair Maintenance and Alterations,Environment,Public Safety,
Brighthelm Security Limited,04025900,17/09/2010,"1,848.00",Premises Related,Repair Maintenance and Alterations,Environment,Public Safety,
Brighthelm Security Limited,04025913,17/09/2010,"1,848.00",Premises Related,Repair Maintenance and Alterations,Environment,Public Safety,
Brighthelm Security Limited,04025955,17/09/2010,"1,848.00",Premises Related,Repair Maintenance and Alterations,Environment,Public Safety,
Brighthelm Security Limited,04025984,17/09/2010,"1,848.00",Premises Related,Repair Maintenance and Alterations,Environment,Public Safety,
Brighthelm Security Limited,04026019,17/09/2010,"1,848.00",Premises Related,Repair Maintenance and Alterations,Environment,Public Safety,
Bright Interactive Ltd,03989584,01/09/2010,985.00,Supplies and Services,Services,"Housing, Culture & Capital",Royal Pavilion & Museums,
BrightonArt Ltd,04024862,29/09/2010,639.37,Supplies and Services,Miscellaneous Expenses,"Housing, Culture & Capital",Culture & Economy,
Brighton College,UL01444376,01/09/2010,"5,763.00",Supplies and Services,Grants and Subscriptions,Chilren & Young People's Trust,Area Integrated Working,
Brighton College,UL01473475,01/10/2010,"5,763.00",Supplies and Services,Grants and Subscriptions,Chilren & Young People's Trust,Area Integrated Working,
Brighton College Services Ltd,04053642,29/09/2010,648.00,Premises Related,Rents Payable,Chilren & Young People's Trust,Learning Schools & Skills,
Brighton Communication Systems,04010559,10/09/2010,"1,440.00",Plant Machinery and Equipment,,Chilren & Young People's Trust,Director Childrens Services,
Brighton Day Nursery,UL01444399,01/09/2010,877.00,Supplies and Services,Grants and Subscriptions,Chilren & Young People's Trust,Area Integrated Working,
Brighton Day Nursery,UL01473393,01/10/2010,877.00,Supplies and Services,Grants and Subscriptions,Chilren & Young People's Trust,Area Integrated Working,
Brighton Dome & Festival Ltd,03990861,01/09/2010,"1,250.00",Supplies and Services,Miscellaneous Expenses,"Housing, Culture & Capital",Culture & Economy,
Brighton Dome & Festival Ltd,03992474,01/09/2010,"3,272.41",Premises Related,Energy Costs,"Housing, Culture & Capital",Royal Pavilion & Museums,
Brighton Dome & Festival Ltd,03992490,01/09/2010,"3,307.36",Premises Related,Energy Costs,"Housing, Culture & Capital",Royal Pavilion & Museums,
Brighton Dome & Festival Ltd,04062426,29/09/2010,"2,218.42",Premises Related,Energy Costs,"Housing, Culture & Capital",Royal Pavilion & Museums,
Brighton Dome & Festival Ltd,04062439,29/09/2010,"2,198.68",Premises Related,Water Services,"Housing, Culture & Capital",Royal Pavilion & Museums,
Brighton Dome & Festival Ltd,04070272,01/10/2010,"294,442.00",Third Party Payments,Other Establishments,"Housing, Culture & Capital",Culture & Economy,
Brighton Dome & Festival (Trading) Ltd,04039488,22/09/2010,"1,000.00",Supplies and Services,Miscellaneous Expenses,"Housing, Culture & Capital",Culture & Economy,
Brighton Festival Fringe Limited,04057101,29/09/2010,"2,500.00",Supplies and Services,Grants and Subscriptions,Strategy & Governance,Communities & Equality,
Brighton Housing Trust,03998834,08/09/2010,"14,635.25",Third Party Payments,Other Establishments,Section 75 Sussex Partnership,Contrib to S31 Partnership,
Brighton Housing Trust,04046358,24/09/2010,"4,450.25",Third Party Payments,Other Establishments,Section 75 Sussex Partnership,Contrib to S31 Partnership,
Brighton Housing Trust,04053626,29/09/2010,650.00,Supplies and Services,Grants and Subscriptions,Strategy & Governance,Human Resources,
Brighton Housing Trust,04057648,29/09/2010,"5,000.00",Supplies and Services,Grants and Subscriptions,Strategy & Governance,Communities & Equality,
Brighton Housing Trust,04057664,29/09/2010,"17,500.00",Supplies and Services,Grants and Subscriptions,Strategy & Governance,Communities & Equality,
Brighton Housing Trust,04057677,29/09/2010,"5,000.00",Supplies and Services,Grants and Subscriptions,Strategy & Governance,Communities & Equality,
Brighton Housing Trust,04058058,29/09/2010,"13,858.00",Third Party Payments,Other Establishments,Section 75 Sussex Partnership,Contrib to S31 Partnership,
Brighton Housing Trust,04058061,29/09/2010,"13,858.00",Third Party Payments,Other Establishments,Section 75 Sussex Partnership,Contrib to S31 Partnership,
Brighton Housing Trust,CS01451297,08/09/2010,"2,631.30",Transfer Payments,Supporting People,"Housing, Culture & Capital",Housing Strategy,
Brighton Housing Trust,CS01451298,08/09/2010,"2,631.30",Transfer Payments,Supporting People,"Housing, Culture & Capital",Housing Strategy,
Brighton Housing Trust,CS01451299,08/09/2010,"2,631.30",Transfer Payments,Supporting People,"Housing, Culture & Capital",Housing Strategy,
Brighton Housing Trust,CS01451300,08/09/2010,"2,631.30",Transfer Payments,Supporting People,"Housing, Culture & Capital",Housing Strategy,
Brighton Housing Trust,CS01451301,08/09/2010,"3,774.26",Transfer Payments,Supporting People,"Housing, Culture & Capital",Housing Strategy,
Brighton Housing Trust,CS01451302,08/09/2010,"3,774.26",Transfer Payments,Supporting People,"Housing, Culture & Capital",Housing Strategy,
Brighton Housing Trust,CS01451303,08/09/2010,"3,774.26",Transfer Payments,Supporting People,"Housing, Culture & Capital",Housing Strategy,
Brighton Housing Trust,CS01451304,08/09/2010,"3,774.26",Transfer Payments,Supporting People,"Housing, Culture & Capital",Housing Strategy,
Brighton Housing Trust,CS01451317,08/09/2010,"2,055.34",Transfer Payments,Supporting People,"Housing, Culture & Capital",Housing Strategy,
Brighton Housing Trust,CS01451318,08/09/2010,"2,055.34",Transfer Payments,Supporting People,"Housing, Culture & Capital",Housing Strategy,
Brighton Housing Trust,CS01451319,08/09/2010,"2,055.34",Transfer Payments,Supporting People,"Housing, Culture & Capital",Housing Strategy,
Brighton Housing Trust,CS01451320,08/09/2010,"2,055.34",Transfer Payments,Supporting People,"Housing, Culture & Capital",Housing Strategy,
Brighton Housing Trust,CS01451321,08/09/2010,"10,015.60",Transfer Payments,Supporting People,"Housing, Culture & Capital",Housing Strategy,
Brighton Housing Trust,CS01451322,08/09/2010,"10,015.60",Transfer Payments,Supporting People,"Housing, Culture & Capital",Housing Strategy,
Brighton Housing Trust,CS01451323,08/09/2010,"10,015.60",Transfer Payments,Supporting People,"Housing, Culture & Capital",Housing Strategy,
Brighton Housing Trust,CS01451324,08/09/2010,"10,015.60",Transfer Payments,Supporting People,"Housing, Culture & Capital",Housing Strategy,
Brighton Housing Trust,CS01451325,08/09/2010,"1,807.40",Transfer Payments,Supporting People,"Housing, Culture & Capital",Housing Strategy,
Brighton Housing Trust,CS01451326,08/09/2010,"1,807.40",Transfer Payments,Supporting People,"Housing, Culture & Capital",Housing Strategy,
Brighton Housing Trust,CS01451327,08/09/2010,"1,807.40",Transfer Payments,Supporting People,"Housing, Culture & Capital",Housing Strategy,
Brighton Housing Trust,CS01451328,08/09/2010,"1,807.40",Transfer Payments,Supporting People,"Housing, Culture & Capital",Housing Strategy,
Brighton Housing Trust,CS01451329,08/09/2010,"1,342.46",Transfer Payments,Supporting People,"Housing, Culture & Capital",Housing Strategy,
Brighton Housing Trust,CS01451330,08/09/2010,"1,342.46",Transfer Payments,Supporting People,"Housing, Culture & Capital",Housing Strategy,
Brighton Housing Trust,CS01451331,08/09/2010,"1,342.46",Transfer Payments,Supporting People,"Housing, Culture & Capital",Housing Strategy,
Brighton Housing Trust,CS01451332,08/09/2010,"1,342.46",Transfer Payments,Supporting People,"Housing, Culture & Capital",Housing Strategy,
Brighton Housing Trust,CS01451333,08/09/2010,"1,984.99",Transfer Payments,Supporting People,"Housing, Culture & Capital",Housing Strategy,
Brighton Housing Trust,CS01451334,08/09/2010,"1,984.99",Transfer Payments,Supporting People,"Housing, Culture & Capital",Housing Strategy,
Brighton Housing Trust,CS01451335,08/09/2010,"1,984.99",Transfer Payments,Supporting People,"Housing, Culture & Capital",Housing Strategy,
Brighton Housing Trust,CS01451336,08/09/2010,"1,984.99",Transfer Payments,Supporting People,"Housing, Culture & Capital",Housing Strategy,
Brighton Housing Trust,CS01451337,08/09/2010,"10,162.88",Transfer Payments,Supporting People,"Housing, Culture & Capital",Housing Strategy,
Brighton Housing Trust,CS01451338,08/09/2010,"10,162.88",Transfer Payments,Supporting People,"Housing, Culture & Capital",Housing Strategy,
Brighton Housing Trust,CS01451339,08/09/2010,"10,162.88",Transfer Payments,Supporting People,"Housing, Culture & Capital",Housing Strategy,
Brighton Housing Trust,CS01451340,08/09/2010,"10,162.88",Transfer Payments,Supporting People,"Housing, Culture & Capital",Housing Strategy,
Brighton Housing Trust,CS01451341,08/09/2010,"8,821.89",Transfer Payments,Supporting People,"Housing, Culture & Capital",Housing Strategy,
Brighton Housing Trust,CS01451342,08/09/2010,"8,821.89",Transfer Payments,Supporting People,"Housing, Culture & Capital",Housing Strategy,
Brighton Housing Trust,CS01451343,08/09/2010,"8,821.89",Transfer Payments,Supporting People,"Housing, Culture & Capital",Housing Strategy,
Brighton Housing Trust,CS01451344,08/09/2010,"8,821.89",Transfer Payments,Supporting People,"Housing, Culture & Capital",Housing Strategy,
Brighton & Hove Allotment Federation,04032948,22/09/2010,745.61,Supplies and Services,Printing Stationery & General Office Expenses,Environment,Quality of Life & Green Spaces,
Brighton & Hove Bus & Coach Co Ltd,03983438,01/09/2010,553.65,Transport Related,Public Transport,Chilren & Young People's Trust,Area Integrated Working,
Brighton & Hove Bus & Coach Co Ltd,03987751,01/09/2010,"712,896.83",Transport Related,Public Transport,Finance & Resources,Corporate Management,
Brighton & Hove Bus & Coach Co Ltd,03987997,01/09/2010,"4,152.00",Supplies and Services,Goods for Resale,"Housing, Culture & Capital",Royal Pavilion & Museums,
Brighton & Hove Bus & Coach Co Ltd,03989102,01/09/2010,"1,155.00",Third Party Payments,Other Establishments,Chilren & Young People's Trust,Area Integrated Working,
Brighton & Hove Bus & Coach Co Ltd,03989953,01/09/2010,784.00,Transport Related,Contract Hire and Operating Leas,Environment,Waste,
Brighton & Hove Bus & Coach Co Ltd,03989966,01/09/2010,"1,013.88",Transport Related,Contract Hire and Operating Leas,Environment,Waste,
Brighton & Hove Bus & Coach Co Ltd,03989982,01/09/2010,784.00,Transport Related,Contract Hire and Operating Leas,Environment,Waste,
Brighton & Hove Bus & Coach Co Ltd,03990052,01/09/2010,"1,218.05",Transfer Payments,Other Transfer Payments,Chilren & Young People's Trust,Area Integrated Working,
Brighton & Hove Bus & Coach Co Ltd,04000682,08/09/2010,696.75,Third Party Payments,Other Establishments,Chilren & Young People's Trust,Area Integrated Working,
Brighton & Hove Bus & Coach Co Ltd,04014607,15/09/2010,"19,089.00",Third Party Payments,Private Contractors,Environment,Sustainable Transport&Planning,
Brighton & Hove Bus & Coach Co Ltd,04014801,15/09/2010,519.90,Transport Related,Public Transport,Chilren & Young People's Trust,Area Integrated Working,
Brighton & Hove Bus & Coach Co Ltd,04020785,15/09/2010,"67,810.49",Third Party Payments,Private Contractors,Environment,Sustainable Transport&Planning,
Brighton & Hove Bus & Coach Co Ltd,04020976,15/09/2010,"114,320.87",Transport Related,Other Transport Costs,Chilren & Young People's Trust,Learning Schools & Skills,
Brighton & Hove Bus & Coach Co Ltd,04040082,22/09/2010,586.00,Transport Related,Public Transport,"Housing, Culture & Capital",Housing Strategy,
Brighton & Hove Bus & Coach Co Ltd,04042912,24/09/2010,"1,013.88",Transport Related,Contract Hire and Operating Leas,Environment,Waste,
Brighton & Hove Bus & Coach Co Ltd,04042970,24/09/2010,784.00,Transport Related,Contract Hire and Operating Leas,Environment,Waste,
Brighton & Hove Bus & Coach Co Ltd,04056539,29/09/2010,784.00,Transport Related,Contract Hire and Operating Leas,Environment,Waste,
Brighton & Hove Bus & Coach Co Ltd,04058333,29/09/2010,"7,762.88",Third Party Payments,Private Contractors,Finance & Resources,Strategic Finance Procurement,
Brighton & Hove Bus & Coach Co Ltd,04060787,29/09/2010,"1,155.00",Transport Related,Public Transport,Chilren & Young People's Trust,Area Integrated Working,
Brighton & Hove Bus & Coach Co Ltd,04063580,01/10/2010,696.75,Third Party Payments,Other Establishments,Chilren & Young People's Trust,Area Integrated Working,
Brighton & Hove Bus & Coach Co Ltd,04064657,01/10/2010,"647,640.49",Transport Related,Public Transport,Finance & Resources,Corporate Management,
Brighton & Hove Business Forum Ltd,04058472,29/09/2010,"20,000.00",Supplies and Services,Miscellaneous Expenses,"Housing, Culture & Capital",Culture & Economy,
Brighton & Hove Business Forum Ltd,04058485,29/09/2010,"21,500.00",Supplies and Services,Miscellaneous Expenses,"Housing, Culture & Capital",Culture & Economy,
Brighton & Hove Business Show ,04008163,10/09/2010,750.00,Supplies and Services,Miscellaneous Expenses,"Housing, Culture & Capital",Tourism & Venues,
Brighton & Hove Citizens Advice Bureau,04057787,29/09/2010,"25,000.00",Supplies and Services,Grants and Subscriptions,Strategy & Governance,Communities & Equality,
Brighton & Hove City Teaching PCT,04031279,17/09/2010,"8,934.50",Third Party Payments,Other Establishments,Adult Social Care,Adult Social Care,
Brighton & Hove City Teaching PCT,04045692,24/09/2010,"119,790.00",Supplies and Services,Miscellaneous Expenses,Adult Social Care,Adult Social Care,
Brighton & Hove City Teaching PCT,03956876,01/09/2010,"2,500.00",Supplies and Services,Miscellaneous Expenses,"Housing, Culture & Capital",Culture & Economy,
Brighton & Hove City Teaching PCT,04040079,22/09/2010,"2,000.00",Supplies and Services,Miscellaneous Expenses,"Housing, Culture & Capital",Culture & Economy,
Brighton Hove & District Early Childhood Project,04041007,22/09/2010,822.83,Third Party Payments,Other Establishments,Chilren & Young People's Trust,Learning Schools & Skills,
Brighton Hove & District Early Childhood Project,04057240,29/09/2010,"2,000.00",Supplies and Services,Grants and Subscriptions,Strategy & Governance,Communities & Equality,
Brighton & Hove Federation of Disabled People ,04057761,29/09/2010,"5,000.00",Supplies and Services,Grants and Subscriptions,Strategy & Governance,Communities & Equality,
Brighton & Hove Food Partnership,04012515,10/09/2010,"2,500.00",Third Party Payments,Other Establishments,Chilren & Young People's Trust,Learning Schools & Skills,
Brighton & Hove High School- Junior Dept,UL01444396,01/09/2010,"3,288.00",Supplies and Services,Grants and Subscriptions,Chilren & Young People's Trust,Area Integrated Working,
Brighton & Hove High School- Junior Dept,UL01473390,01/10/2010,"3,288.00",Supplies and Services,Grants and Subscriptions,Chilren & Young People's Trust,Area Integrated Working,
Brighton & Hove Impetus,04057729,29/09/2010,"5,750.00",Supplies and Services,Grants and Subscriptions,Strategy & Governance,Communities & Equality,
Brighton & Hove Impetus,04057758,29/09/2010,"6,250.00",Supplies and Services,Grants and Subscriptions,Strategy & Governance,Communities & Equality,
Brighton & Hove Inclusion Project,03986189,01/09/2010,"4,100.00",Supplies and Services,Grants and Subscriptions,Chilren & Young People's Trust,Area Integrated Working,
Brighton & Hove Independent Mediation Service,04056034,29/09/2010,"1,250.00",Supplies and Services,Grants and Subscriptions,Strategy & Governance,Communities & Equality,
Brighton & Hove LGBT Switchboard,04055789,29/09/2010,"7,000.00",Supplies and Services,Grants and Subscriptions,Strategy & Governance,Communities & Equality,
Brighton & Hove Mencap,CS01450697,08/09/2010,"3,613.96",Transfer Payments,Supporting People,"Housing, Culture & Capital",Housing Strategy,
Brighton & Hove Mencap,CS01450698,08/09/2010,"3,613.96",Transfer Payments,Supporting People,"Housing, Culture & Capital",Housing Strategy,
Brighton & Hove Mencap,CS01450699,08/09/2010,"3,613.96",Transfer Payments,Supporting People,"Housing, Culture & Capital",Housing Strategy,
Brighton & Hove Mencap,CS01450700,08/09/2010,"3,613.96",Transfer Payments,Supporting People,"Housing, Culture & Capital",Housing Strategy,
Brighton & Hove Montessori School,04050438,24/09/2010,528.00,Supplies and Services,Services,Chilren & Young People's Trust,Learning Schools & Skills,
Brighton & Hove Montessori School,UL01444382,01/09/2010,"4,434.00",Supplies and Services,Grants and Subscriptions,Chilren & Young People's Trust,Area Integrated Working,
Brighton & Hove Montessori School,UL01473376,01/10/2010,"4,194.00",Supplies and Services,Grants and Subscriptions,Chilren & Young People's Trust,Area Integrated Working,
Brighton & Hove Muslim Forum,04002813,08/09/2010,"2,500.00",Supplies and Services,Miscellaneous Expenses,Environment,Public Safety,
Brighton & Hove Radio Cabs Ltd,03989445,01/09/2010,818.40,Transport Related,Other Transport Costs,Chilren & Young People's Trust,Learning Schools & Skills,
Brighton & Hove Radio Cabs Ltd,04036151,22/09/2010,"4,009.10",Transport Related,Other Transport Costs,Chilren & Young People's Trust,Learning Schools & Skills,
Brighton & Hove Radio Cabs Ltd,04043092,24/09/2010,531.00,Transport Related,Public Transport,Finance & Resources,Corporate Management,
Brighton & Hove Radio Cabs Ltd,04043306,24/09/2010,"1,019.60",Transport Related,Other Transport Costs,Chilren & Young People's Trust,Learning Schools & Skills,
Brighton & Hove Radio Cabs Ltd,04065203,01/10/2010,"1,551.20",Transport Related,Other Transport Costs,Chilren & Young People's Trust,Learning Schools & Skills,
Brighton & Hove Social Welfare Educational Trust,04054777,29/09/2010,"7,790.00",Supplies and Services,Miscellaneous Expenses,Adult Social Care,Housing Management,
Brighton & Hove Social Welfare Educational Trust,04057703,29/09/2010,"22,500.00",Supplies and Services,Grants and Subscriptions,Strategy & Governance,Communities & Equality,
Brighton & Hove Speak Out,04032524,22/09/2010,960.00,Supplies and Services,Miscellaneous Expenses,Strategy & Governance,Communities & Equality,
Brighton & Hove Speak Out,04055556,29/09/2010,"2,500.00",Supplies and Services,Grants and Subscriptions,Strategy & Governance,Communities & Equality,
Brighton & Hove Streamline Taxis Ltd,04016663,15/09/2010,709.50,Transport Related,Public Transport,Adult Social Care,Housing Management,
Brighton & Hove Streamline Taxis Ltd,04021137,15/09/2010,"1,774.00",Transport Related,Public Transport,Finance & Resources,Corporate Management,
Brighton & Hove Streamline Taxis Ltd,04044842,24/09/2010,525.14,Transport Related,Public Transport,Environment,Sustainable Transport&Planning,
Brighton & Hove Wood Recycling Project,04042051,22/09/2010,500.00,Premises Related,Repair Maintenance and Alterations,Finance & Resources,Property & Design,
Brighton & Hove Wood Recycling Project,04042064,22/09/2010,530.00,Premises Related,Repair Maintenance and Alterations,Finance & Resources,Property & Design,
Brighton & Hove Working Together Project,04055129,29/09/2010,"4,000.00",Supplies and Services,Grants and Subscriptions,Strategy & Governance,Communities & Equality,
Brighton Kite Flyers,03985478,01/09/2010,"3,000.00",Supplies and Services,Miscellaneous Expenses,Environment,Leisure,
Brighton Oasis Project,04047849,24/09/2010,"5,568.50",Supplies and Services,Grants and Subscriptions,Environment,Public Safety,
Brighton Oasis Project,04056474,29/09/2010,"5,000.00",Supplies and Services,Grants and Subscriptions,Strategy & Governance,Communities & Equality,
Brighton Peace & Environment Centre,04055763,29/09/2010,"1,250.00",Supplies and Services,Grants and Subscriptions,Strategy & Governance,Communities & Equality,
Brighton Property Letting Services Ltd,04037354,22/09/2010,690.00,Transfer Payments,Other Transfer Payments,Chilren & Young People's Trust,Area Integrated Working,
Brighton School of Business & Management Ltd,04011794,10/09/2010,"1,115.00",Supplies and Services,Grants and Subscriptions,Strategy & Governance,Human Resources,
Brighton School of Business & Management Ltd,04026705,17/09/2010,"1,312.50",Indirect Employees,Training,Chilren & Young People's Trust,Area Integrated Working,
Brighton Steiner School Ltd,UL01444433,01/09/2010,"3,379.00",Supplies and Services,Grants and Subscriptions,Chilren & Young People's Trust,Area Integrated Working,
Brighton Steiner School Ltd,UL01473425,01/10/2010,"3,379.00",Supplies and Services,Grants and Subscriptions,Chilren & Young People's Trust,Area Integrated Working,
Brighton & Sussex University Hospitals NHS Trust,04024011,15/09/2010,"26,000.00",Supplies and Services,Miscellaneous Expenses,"Housing, Culture & Capital",Culture & Economy,
Brighton & Sussex University Hospitals NHS Trust,04036834,22/09/2010,"2,394.50",Supplies and Services,Equipment Furniture and Materials,Finance & Resources,Customer Services,
Brighton & Sussex University Hospitals NHS Trust,04036902,22/09/2010,"2,869.00",Supplies and Services,Equipment Furniture and Materials,Finance & Resources,Customer Services,
Brighton & Sussex University Hospitals NHS Trust,04036986,22/09/2010,"2,352.50",Supplies and Services,Equipment Furniture and Materials,Finance & Resources,Customer Services,
Brighton & Sussex University Hospitals NHS Trust,UL01444334,01/09/2010,"2,893.00",Supplies and Services,Grants and Subscriptions,Chilren & Young People's Trust,Area Integrated Working,
Brighton & Sussex University Hospitals NHS Trust,UL01473435,01/10/2010,"2,893.00",Supplies and Services,Grants and Subscriptions,Chilren & Young People's Trust,Area Integrated Working,
Brighton Unemployed Ctr Families Project,04056458,29/09/2010,"10,750.00",Supplies and Services,Grants and Subscriptions,Strategy & Governance,Communities & Equality,
Brighton Women`s Centre Ltd/BWC Toybox,04047975,24/09/2010,570.00,Supplies and Services,Miscellaneous Expenses,Environment,Public Safety,
Brighton Women`s Centre Ltd/BWC Toybox,04050506,29/09/2010,"1,088.00",Third Party Payments,Other Establishments,Chilren & Young People's Trust,Area Integrated Working,
Brighton Women`s Centre Ltd/BWC Toybox,04056380,29/09/2010,"2,500.00",Supplies and Services,Grants and Subscriptions,Strategy & Governance,Communities & Equality,
Brighton YMCA,CS01451193,08/09/2010,584.71,Transfer Payments,Supporting People,"Housing, Culture & Capital",Housing Strategy,
Brighton YMCA,CS01451194,08/09/2010,584.71,Transfer Payments,Supporting People,"Housing, Culture & Capital",Housing Strategy,
Brighton YMCA,CS01451195,08/09/2010,584.71,Transfer Payments,Supporting People,"Housing, Culture & Capital",Housing Strategy,
Brighton YMCA,CS01451196,08/09/2010,584.71,Transfer Payments,Supporting People,"Housing, Culture & Capital",Housing Strategy,
Brighton YMCA,CS01451197,08/09/2010,"1,176.28",Transfer Payments,Supporting People,"Housing, Culture & Capital",Housing Strategy,
Brighton YMCA,CS01451198,08/09/2010,"1,176.28",Transfer Payments,Supporting People,"Housing, Culture & Capital",Housing Strategy,
Brighton YMCA,CS01451199,08/09/2010,"1,176.28",Transfer Payments,Supporting People,"Housing, Culture & Capital",Housing Strategy,
Brighton YMCA,CS01451200,08/09/2010,"1,176.28",Transfer Payments,Supporting People,"Housing, Culture & Capital",Housing Strategy,
Brighton YMCA,CS01451201,08/09/2010,"1,932.35",Transfer Payments,Supporting People,"Housing, Culture & Capital",Housing Strategy,
Brighton YMCA,CS01451202,08/09/2010,"1,932.35",Transfer Payments,Supporting People,"Housing, Culture & Capital",Housing Strategy,
Brighton YMCA,CS01451203,08/09/2010,"1,932.35",Transfer Payments,Supporting People,"Housing, Culture & Capital",Housing Strategy,
Brighton YMCA,CS01451204,08/09/2010,"1,932.35",Transfer Payments,Supporting People,"Housing, Culture & Capital",Housing Strategy,
Brighton YMCA,CS01451205,08/09/2010,"1,066.03",Transfer Payments,Supporting People,"Housing, Culture & Capital",Housing Strategy,
Brighton YMCA,CS01451206,08/09/2010,"1,066.03",Transfer Payments,Supporting People,"Housing, Culture & Capital",Housing Strategy,
Brighton YMCA,CS01451207,08/09/2010,"1,066.03",Transfer Payments,Supporting People,"Housing, Culture & Capital",Housing Strategy,
Brighton YMCA,CS01451208,08/09/2010,"1,066.03",Transfer Payments,Supporting People,"Housing, Culture & Capital",Housing Strategy,
Brighton YMCA,CS01451209,08/09/2010,"1,139.53",Transfer Payments,Supporting People,"Housing, Culture & Capital",Housing Strategy,
Brighton YMCA,CS01451210,08/09/2010,"1,139.53",Transfer Payments,Supporting People,"Housing, Culture & Capital",Housing Strategy,
Brighton YMCA,CS01451211,08/09/2010,"1,139.53",Transfer Payments,Supporting People,"Housing, Culture & Capital",Housing Strategy,
Brighton YMCA,CS01451212,08/09/2010,"1,139.53",Transfer Payments,Supporting People,"Housing, Culture & Capital",Housing Strategy,
Brighton YMCA,CS01451213,08/09/2010,"5,462.03",Transfer Payments,Supporting People,"Housing, Culture & Capital",Housing Strategy,
Brighton YMCA,CS01451214,08/09/2010,"5,462.03",Transfer Payments,Supporting People,"Housing, Culture & Capital",Housing Strategy,
Brighton YMCA,CS01451215,08/09/2010,"5,462.03",Transfer Payments,Supporting People,"Housing, Culture & Capital",Housing Strategy,
Brighton YMCA,CS01451216,08/09/2010,"5,462.03",Transfer Payments,Supporting People,"Housing, Culture & Capital",Housing Strategy,
Brighton YMCA,CS01451217,08/09/2010,"1,932.35",Transfer Payments,Supporting People,"Housing, Culture & Capital",Housing Strategy,
Brighton YMCA,CS01451218,08/09/2010,"1,932.35",Transfer Payments,Supporting People,"Housing, Culture & Capital",Housing Strategy,
Brighton YMCA,CS01451219,08/09/2010,"1,932.35",Transfer Payments,Supporting People,"Housing, Culture & Capital",Housing Strategy,
Brighton YMCA,CS01451220,08/09/2010,"1,932.35",Transfer Payments,Supporting People,"Housing, Culture & Capital",Housing Strategy,
Brighton YMCA,CS01451221,08/09/2010,514.57,Transfer Payments,Supporting People,"Housing, Culture & Capital",Housing Strategy,
Brighton YMCA,CS01451222,08/09/2010,514.57,Transfer Payments,Supporting People,"Housing, Culture & Capital",Housing Strategy,
Brighton YMCA,CS01451223,08/09/2010,514.57,Transfer Payments,Supporting People,"Housing, Culture & Capital",Housing Strategy,
Brighton YMCA,CS01451224,08/09/2010,514.57,Transfer Payments,Supporting People,"Housing, Culture & Capital",Housing Strategy,
Brightstone Consulting Ltd,03994605,03/09/2010,750.00,Indirect Employees,Training,Environment,Public Safety,
Brightstone Consulting Ltd,04017691,15/09/2010,755.00,Indirect Employees,Training,Strategy & Governance,Performance & Analysis,
British Assoc for Supported Employment,04040587,22/09/2010,"1,525.00",Indirect Employees,Training,"Housing, Culture & Capital",Culture & Economy,
British Gas Business,03988873,01/09/2010,"2,197.78",Premises Related,Energy Costs,Environment,Sustainable Transport&Planning,
British Gas Business,04002758,08/09/2010,"1,912.86",Premises Related,Energy Costs,Environment,Sustainable Transport&Planning,
British Telecommunications Plc,04000705,08/09/2010,"3,392.00",Premises Related,Repair Maintenance and Alterations,Environment,Sustainable Transport&Planning,
British Telecommunications Plc,04000705,08/09/2010,"2,180.50",Supplies and Services,Services,Environment,Sustainable Transport&Planning,
British Telecommunications Plc,04000747,08/09/2010,"3,454.50",Supplies and Services,Communications and Computing,Environment,Sustainable Transport&Planning,
Brittens Music Direct Ltd,04016757,15/09/2010,"1,191.49",Supplies and Services,Equipment Furniture and Materials,Chilren & Young People's Trust,Learning Schools & Skills,
Broadreach House Limited,CF01445487,01/09/2010,-43.15,Customer and Client Receipts,Fees and Charges,Section 75 Sussex Partnership,Contrib to S31 Partnership,
Broadreach House Limited,CF01445487,01/09/2010,600.00,Third Party Payments,Other Establishments,Section 75 Sussex Partnership,Contrib to S31 Partnership,
Broadreach House Limited,CF01469330,24/09/2010,-43.15,Customer and Client Receipts,Fees and Charges,Section 75 Sussex Partnership,Contrib to S31 Partnership,
Broadreach House Limited,CF01469330,24/09/2010,600.00,Third Party Payments,Other Establishments,Section 75 Sussex Partnership,Contrib to S31 Partnership,
Broadreach House Limited,CF01469331,24/09/2010,-43.15,Customer and Client Receipts,Fees and Charges,Section 75 Sussex Partnership,Contrib to S31 Partnership,
Broadreach House Limited,CF01469331,24/09/2010,600.00,Third Party Payments,Other Establishments,Section 75 Sussex Partnership,Contrib to S31 Partnership,
Broadreach House Limited,CF01469332,24/09/2010,-43.15,Customer and Client Receipts,Fees and Charges,Section 75 Sussex Partnership,Contrib to S31 Partnership,
Broadreach House Limited,CF01469332,24/09/2010,600.00,Third Party Payments,Other Establishments,Section 75 Sussex Partnership,Contrib to S31 Partnership,
Broadreach House Limited,CF01469333,24/09/2010,-43.15,Customer and Client Receipts,Fees and Charges,Section 75 Sussex Partnership,Contrib to S31 Partnership,
Broadreach House Limited,CF01469333,24/09/2010,600.00,Third Party Payments,Other Establishments,Section 75 Sussex Partnership,Contrib to S31 Partnership,
Brother UK Limited,04031897,17/09/2010,"4,938.89",Plant Machinery and Equipment,,Chilren & Young People's Trust,Director Childrens Services,
Broxap Ltd,04025968,17/09/2010,"6,238.00",New Construction and Conversion,,Environment,Sustainable Transport&Planning,
Broxap Ltd,04026653,17/09/2010,"3,908.00",New Construction and Conversion,,Environment,Sustainable Transport&Planning,
Broxap Ltd,04029511,17/09/2010,"4,836.00",New Construction and Conversion,,Environment,Sustainable Transport&Planning,
Broxap Ltd,04032731,22/09/2010,"3,393.00",Supplies and Services,Equipment Furniture and Materials,Environment,Quality of Life & Green Spaces,
Broxap Ltd,04043788,24/09/2010,"1,800.00",New Construction and Conversion,,Environment,Sustainable Transport&Planning,
Broxap Ltd,04046604,24/09/2010,"1,640.00",New Construction and Conversion,,Environment,Sustainable Transport&Planning,
Payment to Individual,0039518,15/09/2010,575.00,Premises Related,Rents Payable,"Housing, Culture & Capital",Housing Strategy,
B S Russell Commercials Limited,04000501,22/09/2010,535.39,Transport Related,Direct Transport Costs,Environment,Waste,
B S Russell Commercials Limited,04000679,17/09/2010,788.12,Transport Related,Direct Transport Costs,Environment,Waste,
Bton & Hove City Schools Services Ltd,04022628,15/09/2010,"237,033.70",Supplies and Services,Services,Chilren & Young People's Trust,Director Childrens Services,
BTR Brakes (Sussex) Ltd,04049517,24/09/2010,"1,504.54",Transport Related,Direct Transport Costs,Environment,Waste,
Building Research Establishment Ltd,03983920,01/09/2010,"1,535.00",Premises Related,Repair Maintenance and Alterations,Finance & Resources,Property & Design,
Building Research Establishment Ltd,03995497,08/09/2010,"3,000.00",Supplies and Services,Services,Finance & Resources,Property & Design,
Bupa Care Homes,CF01461216,22/09/2010,-110.30,Customer and Client Receipts,Fees and Charges,Adult Social Care,Adult Social Care,
Bupa Care Homes,CF01461216,22/09/2010,674.53,Third Party Payments,Other Establishments,Adult Social Care,Adult Social Care,
Bupa Care Homes,CF01461217,22/09/2010,-110.30,Customer and Client Receipts,Fees and Charges,Adult Social Care,Adult Social Care,
Bupa Care Homes,CF01461217,22/09/2010,674.53,Third Party Payments,Other Establishments,Adult Social Care,Adult Social Care,
Bupa Care Homes,CF01461218,22/09/2010,-110.30,Customer and Client Receipts,Fees and Charges,Adult Social Care,Adult Social Care,
Bupa Care Homes,CF01461218,22/09/2010,674.53,Third Party Payments,Other Establishments,Adult Social Care,Adult Social Care,
Bupa Care Homes,CF01461219,22/09/2010,-110.30,Customer and Client Receipts,Fees and Charges,Adult Social Care,Adult Social Care,
Bupa Care Homes,CF01461219,22/09/2010,674.53,Third Party Payments,Other Establishments,Adult Social Care,Adult Social Care,
BUPA Care Services,CF01463874,22/09/2010,824.40,Third Party Payments,Other Establishments,Adult Social Care,Adult Social Care,
BUPA Care Services,CF01463875,22/09/2010,824.40,Third Party Payments,Other Establishments,Adult Social Care,Adult Social Care,
BUPA Care Services,CF01463876,22/09/2010,824.40,Third Party Payments,Other Establishments,Adult Social Care,Adult Social Care,
BUPA Care Services,CF01463877,22/09/2010,824.40,Third Party Payments,Other Establishments,Adult Social Care,Adult Social Care,
Business Community Partnership,CS01451285,08/09/2010,"1,916.81",Transfer Payments,Supporting People,"Housing, Culture & Capital",Housing Strategy,
Business Community Partnership,CS01451286,08/09/2010,"1,916.81",Transfer Payments,Supporting People,"Housing, Culture & Capital",Housing Strategy,
Business Community Partnership,CS01451287,08/09/2010,"1,916.81",Transfer Payments,Supporting People,"Housing, Culture & Capital",Housing Strategy,
Business Community Partnership,CS01451288,08/09/2010,"1,916.81",Transfer Payments,Supporting People,"Housing, Culture & Capital",Housing Strategy,
Butterfly Bay Ltd t/a The Play Station ,UL01444398,01/09/2010,"1,792.00",Supplies and Services,Grants and Subscriptions,Chilren & Young People's Trust,Area Integrated Working,
Butterfly Bay Ltd t/a The Play Station ,UL01473392,01/10/2010,"1,792.00",Supplies and Services,Grants and Subscriptions,Chilren & Young People's Trust,Area Integrated Working,
Butterfly Nursery,UL01444420,01/09/2010,"2,412.00",Supplies and Services,Grants and Subscriptions,Chilren & Young People's Trust,Area Integrated Working,
Butterfly Nursery,UL01473412,01/10/2010,"2,460.00",Supplies and Services,Grants and Subscriptions,Chilren & Young People's Trust,Area Integrated Working,
C A Goodwin Limited,03998562,08/09/2010,"1,041.86",Premises Related,Repair Maintenance and Alterations,Adult Social Care,Housing Management,
C A Goodwin Limited,04002091,08/09/2010,598.00,Premises Related,Repair Maintenance and Alterations,Finance & Resources,Property & Design,
C A Goodwin Limited,04002101,08/09/2010,854.17,Premises Related,Repair Maintenance and Alterations,Finance & Resources,Property & Design,
C A Goodwin Limited,04020837,15/09/2010,750.00,Premises Related,Repair Maintenance and Alterations,Finance & Resources,Property & Design,
C A Goodwin Limited,04023630,15/09/2010,"2,530.00",Premises Related,Repair Maintenance and Alterations,"Housing, Culture & Capital",Tourism & Venues,
C A Goodwin Limited,04023724,15/09/2010,746.90,Premises Related,Repair Maintenance and Alterations,"Housing, Culture & Capital",Tourism & Venues,
C A Goodwin Limited,04026077,17/09/2010,"1,078.00",Premises Related,Repair Maintenance and Alterations,"Housing, Culture & Capital",Tourism & Venues,
C A Goodwin Limited,04031033,17/09/2010,"10,277.26",Premises Related,Repair Maintenance and Alterations,"Housing, Culture & Capital",Tourism & Venues,
C A Goodwin Limited,04034108,22/09/2010,701.40,Premises Related,Repair Maintenance and Alterations,Finance & Resources,Property & Design,
C A Goodwin Limited,04038955,22/09/2010,"2,661.60",Premises Related,Repair Maintenance and Alterations,Finance & Resources,Property & Design,
C A Goodwin Limited,04060978,29/09/2010,598.00,Premises Related,Repair Maintenance and Alterations,"Housing, Culture & Capital",Housing Strategy,
C A Goodwin Limited,04067612,01/10/2010,"1,398.00",Premises Related,Repair Maintenance and Alterations,"Housing, Culture & Capital",Tourism & Venues,
Calcom Group Limited,03990476,01/09/2010,"15,000.00",Supplies and Services,Services,Environment,Waste,
Calcom Group Limited,03990492,01/09/2010,"14,500.00",Supplies and Services,Services,Environment,Waste,
Calcom Group Limited,03990515,01/09/2010,"7,000.00",Supplies and Services,Services,Environment,Waste,
Calcom Group Limited,03990528,01/09/2010,"1,320.00",Supplies and Services,Services,Environment,Waste,
Caldecott Foundation,CF01443775,01/09/2010,"1,723.97",Third Party Payments,Other Establishments,Chilren & Young People's Trust,Commissioning & Governance,
Caldecott Foundation,CF01443776,01/09/2010,"3,272.50",Third Party Payments,Other Establishments,Chilren & Young People's Trust,Commissioning & Governance,
Caldecott Foundation,CF01443777,01/09/2010,"3,272.50",Third Party Payments,Other Establishments,Chilren & Young People's Trust,Commissioning & Governance,
Caldecott Foundation,CF01443778,01/09/2010,"3,272.50",Third Party Payments,Other Establishments,Chilren & Young People's Trust,Commissioning & Governance,
Caldecott Foundation,CF01443779,01/09/2010,"3,272.50",Third Party Payments,Other Establishments,Chilren & Young People's Trust,Commissioning & Governance,
Caldecott Foundation,CF01443780,01/09/2010,"1,494.10",Third Party Payments,Other Establishments,Chilren & Young People's Trust,Commissioning & Governance,
Caldecott Foundation,CF01443781,01/09/2010,"3,587.50",Third Party Payments,Other Establishments,Chilren & Young People's Trust,Commissioning & Governance,
Caldecott Foundation,CF01443782,01/09/2010,"3,587.50",Third Party Payments,Other Establishments,Chilren & Young People's Trust,Commissioning & Governance,
Caldecott Foundation,CF01443783,01/09/2010,"3,587.50",Third Party Payments,Other Establishments,Chilren & Young People's Trust,Commissioning & Governance,
Caldecott Foundation,CF01443784,01/09/2010,"3,587.50",Third Party Payments,Other Establishments,Chilren & Young People's Trust,Commissioning & Governance,
Caldecott Foundation,CF01454767,15/09/2010,"1,142.86",Third Party Payments,Other Establishments,Chilren & Young People's Trust,Commissioning & Governance,
Camelot Property Management Ltd,04028677,17/09/2010,506.62,Supplies and Services,Services,Finance & Resources,Property & Design,
Canterbury Oast Trust Ltd,CF01456885,15/09/2010,-71.15,Customer and Client Receipts,Fees and Charges,Section 75 Adult Social Care,Contrib to S31 Partnership,
Canterbury Oast Trust Ltd,CF01456885,15/09/2010,"1,590.75",Third Party Payments,Other Establishments,Section 75 Adult Social Care,Contrib to S31 Partnership,
Canterbury Oast Trust Ltd,CF01456886,15/09/2010,-71.15,Customer and Client Receipts,Fees and Charges,Section 75 Adult Social Care,Contrib to S31 Partnership,
Canterbury Oast Trust Ltd,CF01456886,15/09/2010,"1,590.75",Third Party Payments,Other Establishments,Section 75 Adult Social Care,Contrib to S31 Partnership,
Canterbury Oast Trust Ltd,CF01456887,15/09/2010,-71.15,Customer and Client Receipts,Fees and Charges,Section 75 Adult Social Care,Contrib to S31 Partnership,
Canterbury Oast Trust Ltd,CF01456887,15/09/2010,"1,590.75",Third Party Payments,Other Establishments,Section 75 Adult Social Care,Contrib to S31 Partnership,
Canterbury Oast Trust Ltd,CF01456888,15/09/2010,-71.15,Customer and Client Receipts,Fees and Charges,Section 75 Adult Social Care,Contrib to S31 Partnership,
Canterbury Oast Trust Ltd,CF01456888,15/09/2010,"1,590.75",Third Party Payments,Other Establishments,Section 75 Adult Social Care,Contrib to S31 Partnership,
Capita Business Services Ltd,03968563,03/09/2010,700.00,Indirect Employees,Training,Environment,Sustainable Transport&Planning,
Capita Business Services Ltd,03990832,10/09/2010,700.00,Indirect Employees,Training,Adult Social Care,Housing Management,
Capital Hygiene/Capital Cleaning,04017756,15/09/2010,718.46,Premises Related,Repair Maintenance and Alterations,Finance & Resources,Property & Design,
Cardinal Newman School,04066794,01/10/2010,940.00,Third Party Payments,Other Establishments,Chilren & Young People's Trust,Learning Schools & Skills,
Care Co-operatives Ltd,04039417,22/09/2010,"1,000.00",Supplies and Services,Miscellaneous Expenses,"Housing, Culture & Capital",Culture & Economy,
Care Co-operatives Ltd,04056924,29/09/2010,"2,110.00",Third Party Payments,Other Establishments,Section 75 Sussex Partnership,Contrib to S31 Partnership,
Care Co-operatives Ltd,04056953,29/09/2010,"3,209.50",Third Party Payments,Other Establishments,Section 75 Sussex Partnership,Contrib to S31 Partnership,
Care Co-operatives Ltd,04058443,29/09/2010,"21,885.50",Third Party Payments,Other Establishments,Section 75 Sussex Partnership,Contrib to S31 Partnership,
Care Co-operatives Ltd,CS01450681,08/09/2010,"1,367.10",Transfer Payments,Supporting People,"Housing, Culture & Capital",Housing Strategy,
Care Co-operatives Ltd,CS01450682,08/09/2010,"1,367.10",Transfer Payments,Supporting People,"Housing, Culture & Capital",Housing Strategy,
Care Co-operatives Ltd,CS01450683,08/09/2010,"1,367.10",Transfer Payments,Supporting People,"Housing, Culture & Capital",Housing Strategy,
Care Co-operatives Ltd,CS01450684,08/09/2010,"1,367.10",Transfer Payments,Supporting People,"Housing, Culture & Capital",Housing Strategy,
Care Outlook,03990324,01/09/2010,"1,847.00",Third Party Payments,Other Establishments,Adult Social Care,Adult Social Care,
Care Outlook,CF01450402,08/09/2010,510.76,Third Party Payments,Other Establishments,Adult Social Care,Adult Social Care,
Care Outlook,CF01450403,08/09/2010,537.08,Third Party Payments,Other Establishments,Adult Social Care,Adult Social Care,
Care Outlook,CF01450404,08/09/2010,537.08,Third Party Payments,Other Establishments,Adult Social Care,Adult Social Care,
Care Outlook,CF01450405,08/09/2010,537.08,Third Party Payments,Other Establishments,Adult Social Care,Adult Social Care,
Care Outlook,CF01473815,01/10/2010,537.08,Third Party Payments,Other Establishments,Adult Social Care,Adult Social Care,
Care Outlook,CF01473816,01/10/2010,537.08,Third Party Payments,Other Establishments,Adult Social Care,Adult Social Care,
Care Outlook,CF01473817,01/10/2010,537.08,Third Party Payments,Other Establishments,Adult Social Care,Adult Social Care,
Care Quality Commission,04030209,17/09/2010,"8,595.83",Third Party Payments,Other Establishments,Adult Social Care,Adult Social Care,
Carers Centre for Brighton & Hove Ltd,03998575,08/09/2010,"1,381.00",Third Party Payments,Other Establishments,Section 75 Adult Social Care,Contrib to S31 Partnership,
Carers Centre for Brighton & Hove Ltd,04057619,29/09/2010,"2,750.00",Supplies and Services,Grants and Subscriptions,Strategy & Governance,Communities & Equality,
Car-es (UK) Ltd,04007753,10/09/2010,515.65,Third Party Payments,Other Establishments,Chilren & Young People's Trust,Area Integrated Working,
Care UK Children`s Services,CF01443820,03/09/2010,772.21,Third Party Payments,Other Establishments,Chilren & Young People's Trust,Commissioning & Governance,
Care UK Children`s Services,CF01443821,03/09/2010,772.21,Third Party Payments,Other Establishments,Chilren & Young People's Trust,Commissioning & Governance,
Care UK Children`s Services,CF01443822,03/09/2010,772.21,Third Party Payments,Other Establishments,Chilren & Young People's Trust,Commissioning & Governance,
Care UK Children`s Services,CF01443823,03/09/2010,772.21,Third Party Payments,Other Establishments,Chilren & Young People's Trust,Commissioning & Governance,
Care UK Children`s Services,CF01443824,03/09/2010,772.21,Third Party Payments,Other Establishments,Chilren & Young People's Trust,Commissioning & Governance,
Care UK Children`s Services,CF01462406,01/10/2010,772.21,Third Party Payments,Other Establishments,Chilren & Young People's Trust,Commissioning & Governance,
Care UK Children`s Services,CF01462407,01/10/2010,772.21,Third Party Payments,Other Establishments,Chilren & Young People's Trust,Commissioning & Governance,
Care UK Children`s Services,CF01462408,01/10/2010,772.21,Third Party Payments,Other Establishments,Chilren & Young People's Trust,Commissioning & Governance,
Care UK Children`s Services,CF01462409,01/10/2010,772.21,Third Party Payments,Other Establishments,Chilren & Young People's Trust,Commissioning & Governance,
Care UK Community Partnerships Ltd,CF01461076,22/09/2010,786.40,Third Party Payments,Other Establishments,Section 75 Sussex Partnership,Contrib to S31 Partnership,
Care UK Community Partnerships Ltd,CF01461077,22/09/2010,786.40,Third Party Payments,Other Establishments,Section 75 Sussex Partnership,Contrib to S31 Partnership,
Care UK Community Partnerships Ltd,CF01461078,22/09/2010,786.40,Third Party Payments,Other Establishments,Section 75 Sussex Partnership,Contrib to S31 Partnership,
Care UK Community Partnerships Ltd,CF01461079,22/09/2010,786.40,Third Party Payments,Other Establishments,Section 75 Sussex Partnership,Contrib to S31 Partnership,
Care UK Community Partnerships Ltd,CF01461080,22/09/2010,786.40,Third Party Payments,Other Establishments,Section 75 Sussex Partnership,Contrib to S31 Partnership,
Care UK Homecare,03990201,01/09/2010,"3,075.00",Third Party Payments,Other Establishments,Adult Social Care,Adult Social Care,
Care UK Homecare,CF01459768,17/09/2010,-3.00,Customer and Client Receipts,Fees and Charges,Section 75 Sussex Partnership,Contrib to S31 Partnership,
Care UK Homecare,CF01459768,17/09/2010,574.06,Third Party Payments,Other Establishments,Section 75 Sussex Partnership,Contrib to S31 Partnership,
Care UK Homecare,CF01459776,17/09/2010,-3.00,Customer and Client Receipts,Fees and Charges,Section 75 Sussex Partnership,Contrib to S31 Partnership,
Care UK Homecare,CF01459776,17/09/2010,565.70,Third Party Payments,Other Establishments,Section 75 Sussex Partnership,Contrib to S31 Partnership,
Care UK Homecare,CF01472169,29/09/2010,641.59,Third Party Payments,Other Establishments,Adult Social Care,Adult Social Care,
Care UK Homecare,CF01472170,29/09/2010,671.18,Third Party Payments,Other Establishments,Adult Social Care,Adult Social Care,
Care UK Homecare,CF01472171,29/09/2010,671.18,Third Party Payments,Other Establishments,Adult Social Care,Adult Social Care,
Care UK Homecare,CF01473033,29/09/2010,-21.00,Customer and Client Receipts,Fees and Charges,Adult Social Care,Adult Social Care,
Care UK Homecare,CF01473033,29/09/2010,655.99,Third Party Payments,Other Establishments,Adult Social Care,Adult Social Care,
Carlisle Staffing Plc,UL01426139,03/09/2010,"10,459.28",Direct Employees,Salaries,Adult Social Care,Adult Social Care,
Carlisle Staffing Plc,UL01426139,03/09/2010,"13,367.12",Direct Employees,Salaries,Adult Social Care,Housing Management,
Carlisle Staffing Plc,UL01426139,03/09/2010,"22,285.24",Direct Employees,Salaries,Chilren & Young People's Trust,Area Integrated Working,
Carlisle Staffing Plc,UL01426139,03/09/2010,199.10,Direct Employees,Salaries,Chilren & Young People's Trust,Commissioning & Governance,
Carlisle Staffing Plc,UL01426139,03/09/2010,513.93,Direct Employees,Salaries,Chilren & Young People's Trust,Director Childrens Services,
Carlisle Staffing Plc,UL01426139,03/09/2010,"2,344.13",Direct Employees,Salaries,Chilren & Young People's Trust,Learning Schools & Skills,
Carlisle Staffing Plc,UL01426139,03/09/2010,350.14,Direct Employees,Salaries,Environment,City Planning,
Carlisle Staffing Plc,UL01426139,03/09/2010,4.00,Direct Employees,Salaries,Environment,Director of Environment,
Carlisle Staffing Plc,UL01426139,03/09/2010,"1,617.21",Direct Employees,Salaries,Environment,Public Safety,
Carlisle Staffing Plc,UL01426139,03/09/2010,"3,319.29",Direct Employees,Salaries,Environment,Quality of Life & Green Spaces,
Carlisle Staffing Plc,UL01426139,03/09/2010,"5,630.76",Direct Employees,Salaries,Environment,Sustainable Transport&Planning,
Carlisle Staffing Plc,UL01426139,03/09/2010,"2,974.08",Direct Employees,Salaries,Environment,Waste,
Carlisle Staffing Plc,UL01426139,03/09/2010,342.50,Direct Employees,Salaries,Finance & Resources,Audit and Business Risk,
Carlisle Staffing Plc,UL01426139,03/09/2010,"3,994.98",Direct Employees,Salaries,Finance & Resources,Customer Services,
Carlisle Staffing Plc,UL01426139,03/09/2010,"5,794.32",Direct Employees,Salaries,Finance & Resources,Financial Services,
Carlisle Staffing Plc,UL01426139,03/09/2010,"3,247.23",Direct Employees,Salaries,Finance & Resources,ICT,
Carlisle Staffing Plc,UL01426139,03/09/2010,990.63,Direct Employees,Salaries,Finance & Resources,Property & Design,
Carlisle Staffing Plc,UL01426139,03/09/2010,"1,834.50",Direct Employees,Salaries,Finance & Resources,Strategic Finance Procurement,
Carlisle Staffing Plc,UL01426139,03/09/2010,306.13,Direct Employees,Salaries,"Housing, Culture & Capital",Cul & Ent Directors Office,
Carlisle Staffing Plc,UL01426139,03/09/2010,"8,341.45",Direct Employees,Salaries,"Housing, Culture & Capital",Housing Strategy,
Carlisle Staffing Plc,UL01426139,03/09/2010,463.55,Direct Employees,Salaries,"Housing, Culture & Capital",Royal Pavilion & Museums,
Carlisle Staffing Plc,UL01426139,03/09/2010,"4,258.02",Direct Employees,Salaries,Section 75 Adult Social Care,Contrib to S31 Partnership,
Carlisle Staffing Plc,UL01426139,03/09/2010,"1,539.76",Direct Employees,Salaries,Section 75 South Downs Health,Contrib to S31 Partnership,
Carlisle Staffing Plc,UL01426139,03/09/2010,"5,458.78",Direct Employees,Salaries,Section 75 Sussex Partnership,Contrib to S31 Partnership,
Carlisle Staffing Plc,UL01426139,03/09/2010,834.80,Direct Employees,Salaries,Strategy & Governance,Communications,
Carlisle Staffing Plc,UL01426139,03/09/2010,"10,621.45",Direct Employees,Salaries,Strategy & Governance,Human Resources,
Carlisle Staffing Plc,UL01426139,03/09/2010,"4,885.45",Direct Employees,Salaries,Strategy & Governance,Legal and Democratic Services,
Carlisle Staffing Plc,UL01426139,03/09/2010,523.18,Direct Employees,Salaries,Strategy & Governance,Strategy & Governance,
Carlisle Staffing Plc,UL01426139,03/09/2010,433.16,Direct Employees,Wages,Finance & Resources,Customer Services,
Carlisle Staffing Plc,UL01426139,03/09/2010,318.30,Direct Employees,Wages,"Housing, Culture & Capital",Housing Strategy,
Carlisle Staffing Plc,UL01426139,03/09/2010,3.75,Direct Employees,Wages,"Housing, Culture & Capital",Royal Pavilion & Museums,
Carlisle Staffing Plc,UL01426139,03/09/2010,375.82,Direct Employees,Wages,"Housing, Culture & Capital",Tourism & Venues,
Carlisle Staffing Plc,UL01426139,03/09/2010,441.35,New Construction and Conversion,,"Housing, Culture & Capital",Housing Strategy,
Carlisle Staffing Plc,UL01431176,10/09/2010,"1,725.22",Direct Employees,Salaries,Finance & Resources,Strategic Finance Procurement,
Carlisle Staffing Plc,UL01431178,10/09/2010,"11,874.07",Direct Employees,Salaries,Adult Social Care,Adult Social Care,
Carlisle Staffing Plc,UL01431178,10/09/2010,"15,021.45",Direct Employees,Salaries,Adult Social Care,Housing Management,
Carlisle Staffing Plc,UL01431178,10/09/2010,"14,041.71",Direct Employees,Salaries,Chilren & Young People's Trust,Area Integrated Working,
Carlisle Staffing Plc,UL01431178,10/09/2010,357.28,Direct Employees,Salaries,Chilren & Young People's Trust,Commissioning & Governance,
Carlisle Staffing Plc,UL01431178,10/09/2010,529.22,Direct Employees,Salaries,Chilren & Young People's Trust,Director Childrens Services,
Carlisle Staffing Plc,UL01431178,10/09/2010,"2,663.33",Direct Employees,Salaries,Chilren & Young People's Trust,Learning Schools & Skills,
Carlisle Staffing Plc,UL01431178,10/09/2010,410.70,Direct Employees,Salaries,Environment,City Planning,
Carlisle Staffing Plc,UL01431178,10/09/2010,5.00,Direct Employees,Salaries,Environment,Director of Environment,
Carlisle Staffing Plc,UL01431178,10/09/2010,"7,574.66",Direct Employees,Salaries,Environment,Public Safety,
Carlisle Staffing Plc,UL01431178,10/09/2010,"3,440.39",Direct Employees,Salaries,Environment,Quality of Life & Green Spaces,
Carlisle Staffing Plc,UL01431178,10/09/2010,"4,389.56",Direct Employees,Salaries,Environment,Sustainable Transport&Planning,
Carlisle Staffing Plc,UL01431178,10/09/2010,"2,886.01",Direct Employees,Salaries,Environment,Waste,
Carlisle Staffing Plc,UL01431178,10/09/2010,5.25,Direct Employees,Salaries,Finance & Resources,Audit and Business Risk,
Carlisle Staffing Plc,UL01431178,10/09/2010,"3,445.79",Direct Employees,Salaries,Finance & Resources,Customer Services,
Carlisle Staffing Plc,UL01431178,10/09/2010,"1,866.78",Direct Employees,Salaries,Finance & Resources,Financial Services,
Carlisle Staffing Plc,UL01431178,10/09/2010,"1,409.61",Direct Employees,Salaries,Finance & Resources,ICT,
Carlisle Staffing Plc,UL01431178,10/09/2010,7.13,Direct Employees,Salaries,Finance & Resources,Property & Design,
Carlisle Staffing Plc,UL01431178,10/09/2010,"1,834.50",Direct Employees,Salaries,Finance & Resources,Strategic Finance Procurement,
Carlisle Staffing Plc,UL01431178,10/09/2010,204.43,Direct Employees,Salaries,"Housing, Culture & Capital",Cul & Ent Directors Office,
Carlisle Staffing Plc,UL01431178,10/09/2010,317.28,Direct Employees,Salaries,"Housing, Culture & Capital",Culture & Economy,
Carlisle Staffing Plc,UL01431178,10/09/2010,"9,957.03",Direct Employees,Salaries,"Housing, Culture & Capital",Housing Strategy,
Carlisle Staffing Plc,UL01431178,10/09/2010,330.70,Direct Employees,Salaries,"Housing, Culture & Capital",Royal Pavilion & Museums,
Carlisle Staffing Plc,UL01431178,10/09/2010,"5,088.41",Direct Employees,Salaries,Section 75 Adult Social Care,Contrib to S31 Partnership,
Carlisle Staffing Plc,UL01431178,10/09/2010,"1,155.93",Direct Employees,Salaries,Section 75 South Downs Health,Contrib to S31 Partnership,
Carlisle Staffing Plc,UL01431178,10/09/2010,"5,422.29",Direct Employees,Salaries,Section 75 Sussex Partnership,Contrib to S31 Partnership,
Carlisle Staffing Plc,UL01431178,10/09/2010,869.46,Direct Employees,Salaries,Strategy & Governance,Communications,
Carlisle Staffing Plc,UL01431178,10/09/2010,"2,526.27",Direct Employees,Salaries,Strategy & Governance,Human Resources,
Carlisle Staffing Plc,UL01431178,10/09/2010,"3,804.81",Direct Employees,Salaries,Strategy & Governance,Legal and Democratic Services,
Carlisle Staffing Plc,UL01431178,10/09/2010,150.01,Direct Employees,Salaries,Strategy & Governance,Performance & Analysis,
Carlisle Staffing Plc,UL01431178,10/09/2010,521.73,Direct Employees,Salaries,Strategy & Governance,Strategy & Governance,
Carlisle Staffing Plc,UL01431178,10/09/2010,318.30,Direct Employees,Wages,"Housing, Culture & Capital",Housing Strategy,
Carlisle Staffing Plc,UL01431178,10/09/2010,3.75,Direct Employees,Wages,"Housing, Culture & Capital",Royal Pavilion & Museums,
Carlisle Staffing Plc,UL01431178,10/09/2010,453.96,New Construction and Conversion,,"Housing, Culture & Capital",Housing Strategy,
Carlisle Staffing Plc,UL01440022,17/09/2010,"11,159.60",Direct Employees,Salaries,Adult Social Care,Adult Social Care,
Carlisle Staffing Plc,UL01440022,17/09/2010,"15,183.62",Direct Employees,Salaries,Adult Social Care,Housing Management,
Carlisle Staffing Plc,UL01440022,17/09/2010,"14,436.57",Direct Employees,Salaries,Chilren & Young People's Trust,Area Integrated Working,
Carlisle Staffing Plc,UL01440022,17/09/2010,491.55,Direct Employees,Salaries,Chilren & Young People's Trust,Commissioning & Governance,
Carlisle Staffing Plc,UL01440022,17/09/2010,514.24,Direct Employees,Salaries,Chilren & Young People's Trust,Director Childrens Services,
Carlisle Staffing Plc,UL01440022,17/09/2010,"3,423.75",Direct Employees,Salaries,Chilren & Young People's Trust,Learning Schools & Skills,
Carlisle Staffing Plc,UL01440022,17/09/2010,328.21,Direct Employees,Salaries,Environment,City Planning,
Carlisle Staffing Plc,UL01440022,17/09/2010,4.63,Direct Employees,Salaries,Environment,Director of Environment,
Carlisle Staffing Plc,UL01440022,17/09/2010,"1,799.18",Direct Employees,Salaries,Environment,Public Safety,
Carlisle Staffing Plc,UL01440022,17/09/2010,"3,324.60",Direct Employees,Salaries,Environment,Quality of Life & Green Spaces,
Carlisle Staffing Plc,UL01440022,17/09/2010,"4,883.71",Direct Employees,Salaries,Environment,Sustainable Transport&Planning,
Carlisle Staffing Plc,UL01440022,17/09/2010,"2,321.79",Direct Employees,Salaries,Environment,Waste,
Carlisle Staffing Plc,UL01440022,17/09/2010,247.13,Direct Employees,Salaries,Finance & Resources,Audit and Business Risk,
Carlisle Staffing Plc,UL01440022,17/09/2010,"3,268.40",Direct Employees,Salaries,Finance & Resources,Customer Services,
Carlisle Staffing Plc,UL01440022,17/09/2010,"2,056.47",Direct Employees,Salaries,Finance & Resources,Financial Services,
Carlisle Staffing Plc,UL01440022,17/09/2010,"2,510.60",Direct Employees,Salaries,Finance & Resources,ICT,
Carlisle Staffing Plc,UL01440022,17/09/2010,819.33,Direct Employees,Salaries,Finance & Resources,Property & Design,
Carlisle Staffing Plc,UL01440022,17/09/2010,"1,467.60",Direct Employees,Salaries,Finance & Resources,Strategic Finance Procurement,
Carlisle Staffing Plc,UL01440022,17/09/2010,204.43,Direct Employees,Salaries,"Housing, Culture & Capital",Cul & Ent Directors Office,
Carlisle Staffing Plc,UL01440022,17/09/2010,317.28,Direct Employees,Salaries,"Housing, Culture & Capital",Culture & Economy,
Carlisle Staffing Plc,UL01440022,17/09/2010,"8,174.88",Direct Employees,Salaries,"Housing, Culture & Capital",Housing Strategy,
Carlisle Staffing Plc,UL01440022,17/09/2010,324.76,Direct Employees,Salaries,"Housing, Culture & Capital",Royal Pavilion & Museums,
Carlisle Staffing Plc,UL01440022,17/09/2010,"4,383.76",Direct Employees,Salaries,Section 75 Adult Social Care,Contrib to S31 Partnership,
Carlisle Staffing Plc,UL01440022,17/09/2010,772.67,Direct Employees,Salaries,Section 75 South Downs Health,Contrib to S31 Partnership,
Carlisle Staffing Plc,UL01440022,17/09/2010,"8,377.83",Direct Employees,Salaries,Section 75 Sussex Partnership,Contrib to S31 Partnership,
Carlisle Staffing Plc,UL01440022,17/09/2010,480.01,Direct Employees,Salaries,Strategy & Governance,Communications,
Carlisle Staffing Plc,UL01440022,17/09/2010,"2,048.80",Direct Employees,Salaries,Strategy & Governance,Human Resources,
Carlisle Staffing Plc,UL01440022,17/09/2010,"10,943.09",Direct Employees,Salaries,Strategy & Governance,Legal and Democratic Services,
Carlisle Staffing Plc,UL01440022,17/09/2010,307.64,Direct Employees,Salaries,Strategy & Governance,Performance & Analysis,
Carlisle Staffing Plc,UL01440022,17/09/2010,533.44,Direct Employees,Salaries,Strategy & Governance,Strategy & Governance,
Carlisle Staffing Plc,UL01440022,17/09/2010,318.30,Direct Employees,Wages,"Housing, Culture & Capital",Housing Strategy,
Carlisle Staffing Plc,UL01440022,17/09/2010,3.75,Direct Employees,Wages,"Housing, Culture & Capital",Royal Pavilion & Museums,
Carlisle Staffing Plc,UL01440022,17/09/2010,41.72,Direct Employees,Wages,"Housing, Culture & Capital",Tourism & Venues,
Carlisle Staffing Plc,UL01440022,17/09/2010,457.11,New Construction and Conversion,,"Housing, Culture & Capital",Housing Strategy,
Carlisle Staffing Plc,UL01446982,24/09/2010,"17,730.62",Direct Employees,Salaries,Adult Social Care,Adult Social Care,
Carlisle Staffing Plc,UL01446982,24/09/2010,"12,995.20",Direct Employees,Salaries,Adult Social Care,Housing Management,
Carlisle Staffing Plc,UL01446982,24/09/2010,"20,175.07",Direct Employees,Salaries,Chilren & Young People's Trust,Area Integrated Working,
Carlisle Staffing Plc,UL01446982,24/09/2010,360.32,Direct Employees,Salaries,Chilren & Young People's Trust,Commissioning & Governance,
Carlisle Staffing Plc,UL01446982,24/09/2010,312.53,Direct Employees,Salaries,Chilren & Young People's Trust,Director Childrens Services,
Carlisle Staffing Plc,UL01446982,24/09/2010,"4,041.27",Direct Employees,Salaries,Chilren & Young People's Trust,Learning Schools & Skills,
Carlisle Staffing Plc,UL01446982,24/09/2010,387.89,Direct Employees,Salaries,Environment,City Planning,
Carlisle Staffing Plc,UL01446982,24/09/2010,"1,740.69",Direct Employees,Salaries,Environment,Public Safety,
Carlisle Staffing Plc,UL01446982,24/09/2010,"3,013.19",Direct Employees,Salaries,Environment,Quality of Life & Green Spaces,
Carlisle Staffing Plc,UL01446982,24/09/2010,"5,728.42",Direct Employees,Salaries,Environment,Sustainable Transport&Planning,
Carlisle Staffing Plc,UL01446982,24/09/2010,"3,055.39",Direct Employees,Salaries,Environment,Waste,
Carlisle Staffing Plc,UL01446982,24/09/2010,399.00,Direct Employees,Salaries,Finance & Resources,Audit and Business Risk,
Carlisle Staffing Plc,UL01446982,24/09/2010,"3,488.64",Direct Employees,Salaries,Finance & Resources,Customer Services,
Carlisle Staffing Plc,UL01446982,24/09/2010,"2,038.85",Direct Employees,Salaries,Finance & Resources,Financial Services,
Carlisle Staffing Plc,UL01446982,24/09/2010,"2,231.78",Direct Employees,Salaries,Finance & Resources,ICT,
Carlisle Staffing Plc,UL01446982,24/09/2010,"1,337.54",Direct Employees,Salaries,Finance & Resources,Property & Design,
Carlisle Staffing Plc,UL01446982,24/09/2010,"1,834.50",Direct Employees,Salaries,Finance & Resources,Strategic Finance Procurement,
Carlisle Staffing Plc,UL01446982,24/09/2010,204.43,Direct Employees,Salaries,"Housing, Culture & Capital",Cul & Ent Directors Office,
Carlisle Staffing Plc,UL01446982,24/09/2010,"9,850.55",Direct Employees,Salaries,"Housing, Culture & Capital",Housing Strategy,
Carlisle Staffing Plc,UL01446982,24/09/2010,238.79,Direct Employees,Salaries,"Housing, Culture & Capital",Royal Pavilion & Museums,
Carlisle Staffing Plc,UL01446982,24/09/2010,"2,941.51",Direct Employees,Salaries,Section 75 Adult Social Care,Contrib to S31 Partnership,
Carlisle Staffing Plc,UL01446982,24/09/2010,941.27,Direct Employees,Salaries,Section 75 South Downs Health,Contrib to S31 Partnership,
Carlisle Staffing Plc,UL01446982,24/09/2010,"7,070.02",Direct Employees,Salaries,Section 75 Sussex Partnership,Contrib to S31 Partnership,
Carlisle Staffing Plc,UL01446982,24/09/2010,834.80,Direct Employees,Salaries,Strategy & Governance,Communications,
Carlisle Staffing Plc,UL01446982,24/09/2010,"2,343.48",Direct Employees,Salaries,Strategy & Governance,Human Resources,
Carlisle Staffing Plc,UL01446982,24/09/2010,"4,594.42",Direct Employees,Salaries,Strategy & Governance,Legal and Democratic Services,
Carlisle Staffing Plc,UL01446982,24/09/2010,231.37,Direct Employees,Salaries,Strategy & Governance,Performance & Analysis,
Carlisle Staffing Plc,UL01446982,24/09/2010,523.29,Direct Employees,Salaries,Strategy & Governance,Strategy & Governance,
Carlisle Staffing Plc,UL01446982,24/09/2010,318.30,Direct Employees,Wages,"Housing, Culture & Capital",Housing Strategy,
Carlisle Staffing Plc,UL01446982,24/09/2010,3.75,Direct Employees,Wages,"Housing, Culture & Capital",Royal Pavilion & Museums,
Carlisle Staffing Plc,UL01446982,24/09/2010,277.42,New Construction and Conversion,,"Housing, Culture & Capital",Housing Strategy,
Carlisle Staffing Plc,UL01453693,01/10/2010,"12,311.85",Direct Employees,Salaries,Adult Social Care,Adult Social Care,
Carlisle Staffing Plc,UL01453693,01/10/2010,"17,460.05",Direct Employees,Salaries,Adult Social Care,Housing Management,
Carlisle Staffing Plc,UL01453693,01/10/2010,"15,156.52",Direct Employees,Salaries,Chilren & Young People's Trust,Area Integrated Working,
Carlisle Staffing Plc,UL01453693,01/10/2010,457.89,Direct Employees,Salaries,Chilren & Young People's Trust,Commissioning & Governance,
Carlisle Staffing Plc,UL01453693,01/10/2010,228.90,Direct Employees,Salaries,Chilren & Young People's Trust,Director Childrens Services,
Carlisle Staffing Plc,UL01453693,01/10/2010,"2,598.40",Direct Employees,Salaries,Chilren & Young People's Trust,Learning Schools & Skills,
